{"text_format":"1","workbook":"xlsx","n_sheets":12,"sheets":["Main Screen","Tags","Todays Data","Curve Screen","SettingsList","ModbusScalingRoutine","Sheet1","ModbusScalingList","Modbus Register mapping","SanternoVFDOut","Devlog","Sheet2"],"not_rendered":{"charts":3,"images":38,"macros":1,"external_links":0,"defined_names":1,"comments":0,"pivot_tables":0},"unopened":[],"bounds":{"document_bytes":16777216,"sheet_cells":100000,"rows_first":2000,"rows_last":500,"rows_between":2000,"halvings":0,"cell_chars":16384,"cell_head_chars":4096},"cells_cut":0,"cells_raw":0,"read":"whole","date_system":"1900"}

{"sheet":"Main Screen","index":0,"n_rows":203,"n_cols":49,"rows_kept":203,"cut":false,"hidden":false,"merged":[]}
["O2:",{"$f":"V63","v":21.6922},253,null,null,null,null,null,null,null,null,null,null,"fi",null,null,null,null,null,null,null,null,null,null,null,null,0,"PCCHPOnOff",0,0,null,null,null,null,1]
["NOLowPPM:",{"$f":"V64","v":-2.0068000000000001},null,null,null,null,null,null,null,null,null,null," ",null,null,null,null,null,null,null,null,44212.716736111113,null,null,null,null,89,"StartEngineCMD",1,0,null,null,null,null,2]
["NOHiPPM:",{"$f":"V65","v":-5.5385999999999997},null,null,null,null,null,null,null,null,null,null,null,null,null,null,null,null,null,null,"OilPressReal:",-0.19980000000000001,0,0,0,0,0,"spareMC3",0,0,null,null,null,null,3]
["COppm:",{"$f":"V66","v":19.518699999999999},null,null,null,null,null,null,null,null,null,null,null,null,null,null,null,null,null,null,"HdH2OPresReal:",0.4884,0,0,0,0,0,"spareMC4",0,0,null,null,null,null,4]
["COno2PPM:",{"$f":"V67","v":-4.3716999999999997},null,null,null,null,null,null,null,null,null,null,null,null,null,null,null,null,null,null,"EngOutH2OReal:",1.4345000000000001,0,0,0,0,0,"spareMC5",0,0,null,null,null,null,5]
["CO2Percent:",{"$f":"V68","v":-6.3600000000000004E-2},null,null,null,null,null,null,null,null,null,null,null,null,null,null,null,null,null,null,"H2ONzlePresReal:",-0.36620000000000003,0,0,0,0,0,"Reset",0,0,"Shutdown",null,null,null,6]
["CEMcabTemp:",{"$f":"V69","v":98.794399999999996},null,null,null,null,null,null,null,null,null,null,null,null,null,"p0;.",null,null,null,null,"FuelDPReal:",1.2637,0,0,0,0,0,"spareMC7",0,0,"Emergency shutdown",null,null,null,7]
["CEMH20Temp:",{"$f":"V70","v":96.108699999999999}," ","Gen speed",null,null,null,null,null,null,null,null,null,null,null,null,null,null,null,null,"FuelPresReal:",0.10680000000000001,0,0,0,0,0,"spareMC8",0,0,null,null,null,null,8]
["LamRight",{"$f":"V21","v":0.75109999999999999},null,null,null,null,null,null,null,null,null,null,null,null,null,null,null,null,null,null,"H2OJacketDPReal:",1.2278,0,0,0,0,0,"spareMC9",0,0,"Shutdown",null,null,null,9]
["LamLeft",{"$f":"V22","v":0.68510000000000004},null,null,null,null,null,null,null,null,null,null,null,null,null,null,null,null,null,null,"H2OManDPReal:",0.1482,0,0,0,0,1530,"spareMC10",0,0,null,null,null,null,10]
["lam ave",{"$f":"(V22+V21)/2","v":0.71809999999999996},null,"Calc Kw:",{"$f":"$V$82*$V$77/5252/1.34","v":0},null,null,null,null,null,null,null,null,null,null,null,null,null,null,null,"DPAirFiltReal:",-6.8599999999999994E-2,0,0,0,0,1000,"spareMC11",0,1,"Oil level OK",null,null,null,11,null,null,"EngineH2ORt","wire 19"]
["Cntrl SP=",{"$f":"AA34/10000","v":0.96540000000000004},null,null,null,null,null,null,null,null,null,null,null,null,null,null,null,null,null,null,"DPGasMixerReal:",-0.1221,0,0,0,0,1500,"spareMC12",0,1,"Oil Pressure OK",null,null,null,12,null,null,"EngineH2OLf","wire 20"]
[null,null,null,"Heat Rate",{"$f":"-V7*1020/V111","v":{"$error":"#DIV/0!"}},null,null,null,null,null,{"$f":"U3","v":"OilPressReal:"},null,null,null,null,null,null,null,null,null,"ManifoldPresReal:",0.13150000000000001,0,0,0,0,0,"spareMC13",0,1,"Oil Pressure at SP",null,null,null,13,null,null,"H2OExhstMnRt","wire 17"]
["Feedwater",null,null,null,null,null,null,null,null,null,null,null,null,null,null,null,null,null,null,null,"ExhCatUpstrReal:",-24.9999,0,0,0,0,0,"spareMC14",0,1,"Oil Pressure Auto Control",null,null,null,14,null,null,"H2OExhstMnLf","wire 18"]
["Sat Steam",null,null,null,null,null,null,null,null,null,null,null,null,null,null,null,null,null,null,null,"CrnkCsPresReal:",0.128,0,0,0,0,0,"spareMC15",0,0,"Increase Oil VFD",null,null,null,15,null,null,"H2OCombOut","wire 16"]
["Exhaust",null,null,null,null,null,null,null,null,null,null,null,null,null,null,null,null,null,null,null,"GasToMixReal:",7.2599999999999998E-2,0,0,0,0,0,"DiagonsticOn",0,0,"Decress Oil VFD",null,null,null,16,null,null,"H2OHeadRt","wire 13"]
["Oil",null,null,null,{"$f":"-V111*0.3","v":0},null,null,null,null,null,null,null,null,null,null,null,null,null,null,null,"FeedH2oPressReal:",-11.5593,0,0,0,0,0,"DiagGenRun",0,1,null,null,null,null,17]
["Natural Gas",null,null,null,null,null,null,null,null,null,null,null,null,null,null,null,null,null,null,null,"LamFlowEle:",-312.60730000000001,0,0,0,0,0,"DiagFuelOn",0,0,null,null,null,null,18,null,null,"ExhstRt","wire 10"]
["comp Air",null,null,null,null,null,null,null,null,null,null,null,null,null,null,null,null,null,null,null,"EngH20VlvPct:",97.456000000000003,0,0,0,0,0,"DiagIgn",0,0,null,null,null,null,19]
["Comb Air",null,null,null,null,null,null,null,null,null,null,null,null,null,null,null,null,null,null,null,"ManH20VlvPct:",56.020099999999999,0,0,0,0,76,"DiagOilPumpOn",0,1,"Feed H2O OK",null,null,null,20,null,null,"Catouttemp:","wire 15"]
[null,null,null,null,null,null,null,null,null,null,null,null,null,null,null,null,null,null,null,null,"LambdaRt:",0.75109999999999999,0,0,0,0,32,"DiagOilPressAuto",0,1,null,null,null,null,21,null,null,"OilTank:","wire 22"]
[null,null,null,null,null,null,null,null,null,null,null,null,null,null,null,null,null,null,null,null,"LambdaLeft:",0.68510000000000004,0,0,0,0,0,"spareMC22",0,1,null,null,null,null,22,null,null,"OilFilter:","wire 23"]
[null,null,null,null,null,null,null,null,null,null,null,null,null,null,null,null,null,null,null,null,"GasRegHdPres:",5.7000000000000002E-2,0,0,0,0,150,"DiagH2OEngOn",0,1,null,null,null,null,23,null,null,"OilHXH2Oin:","wire 14"]
[null,null,null,null,null,null,null,null,null,null,null,null,null,null,null,null,null,null,null,null,"Supply12vdc:",13.757899999999999,0,0,0,0,100,"DiagH2OEngVavMA",0,1,null,null,null,null,24,null,null,"OilHXH2Oout:","wire 12"]
[null,null,null,null,null,null,null,null,null,null,null,null,null,null,null,null,null,null,null,null,"Spare22:",25.417400000000001,0,0,0,0,25,"DiagH2OManOn",0,1,null,null,null,null,25,null,null,"GenAirOut:","wire 21"]
[null,null,null,null,null,null,null,null,null,null,null,null,null,null,null,null,null,null,null,null,"Spare23:",18.205400000000001,0,0,0,0,56,"DiagH2OManMA",0,1,null,null,null,null,26,null,null,"AirInTemp:","wire 11"]
[null,null,null,null,0,null,null,null,null,null,null,null,null,null,null,null,null,null,null,null,"EngExhst1:",65.971699999999998,0,0,0,0,11,"DiagEngVacOn",0,1,null,null,null,null,27,null,null,"CabinetTemp"]
[null,null,null,null,null,null,null,null,null,null,null,null,null,null,null,null,null,null,null,null,"EngExhst2:",67.7,0,0,0,0,192,"DiagEngVacMA",1,0,null,null,null,null,28]
[null,null,null,null,null,null,null,null,null,null,null,null,null,null,null,null,null,null,null,null,"EngExhst3:",68.789299999999997,0,0,0,0,97,"DiagEngTempOn",0,0,null,null,null,null,29]
[null,null,null,null,null,null,null,null,null,null,null,null,null,null,null,null,null,null,null,null,"EngExhst4:",69.099999999999994,0,0,0,0,183,"DiagMotFanMA",1,1,"Waiting to Start",null,null,null,30]
[null,null,null,null,null,null,null,null,null,null,null,null,null,null,null,null,null,null,null,null,"EngExhst5:",69.002300000000005,0,0,0,0,6000,"DiagRegOn",0,0,"StandBy",null,null,null,31]
[null,null,null,null,null,null,null,null,null,null,null,null,null,null,null,null,null,null,null,null,"EngExhst6:",68.599999999999994,0,0,0,0,5954,"DiagRegIPMA",1,0,"Start Water & Oil",null,null,null,32]
[null,null,null,null,null,null,null,null,null,null,null,null,null,null,null,null,null,null,null,null,"EngExhst7:",70.058400000000006,0,0,0,0,0,"RampCmd",0,0,null,null,null,null,33]
[null,null,null,null,null,null,null,null,null,null,null,null,null,null,null,null,null,null,null,null,"EngExhst8:",68.599999999999994,0,0,0,0,9654,"COLambdaCntOn",1,0,"Engine Start Roll",null,null,null,34]
[null,null,null,null,null,null,null,null,null,null,null,null,null,null,null,null,null,null,null,null,"EngH2OOutRt:",68.200800000000001,0,0,0,0,97,"GastoMixRegSet",0,0,"Gas and Ignition On",null,null,null,35]
[null,null,null,null,null,null,null,null,null,null,null,null,null,null,null,null,null,null,null,null,"EngH2OOutLf:",69.2,0,0,0,0,300,"GastoMixSet",0,0,"Warmup",null,null,null,36]
[null,null,null,null,null,null,null,null,null,null,null,null,null,null,null,null,null,null,null,null,"H2OExhstMnRt:",69.803899999999999,0,0,0,0,0,null,0,0,"On-Line",null,null,null,37]
[null,null,null,null,null,null,null,null,null,null,null,null,null,null,null,null,null,null,null,null,"H2OExhstMnLf:",69.848200000000006,0,0,0,0,0,null,0,0,"Pre-Shutdown",null,null,null,38]
[null,null,null,null,null,null,null,null,null,null,null,null,null,null,null,null,null,null,null,null,"CombinedH2OOut:",0,0,0,0,0,0,null,0,0,"Engine off Cooling",null,null,null,39]
[null,null,null,null,null,null,null,null,null,null,null,null,null,null,null,null,null,null,null,null,"H2OHead:",68,0,0,0,0,0,null,0,0,"Emergency Off",null,null,null,40]
["mc10",null,"mc11",null,null,null,null,null,null,null,null,null,null,null,null,null,null,null,null,null,"FirstTccard18:",1332.9,0,0,0,0,0,null,0,0,"Starting Up Engine",null,null,null,41]
[null,"Success",null,null,null,null,null,{"$f":"-V7*1020/V111","v":{"$error":"#DIV/0!"}},null,null,null,61926.296875,null,null,null,null,null,null,null,null,"FirstTccard19:",32.9,0,0,0,0,0,null,0,0,"Used to update the Modbus HiHi Hi Lo and LoLo for the first outs.  Will indicate what tripped the bastard",null,null,null,42]
[null,"Connection success","Success",null,null,null,null,null,null,null,null,null,null,null,null,null,null,null,null,null,"FuelTemp:",0,0,0,0,0,0,null,0,0,"Used for Regen VFD control",null,null,null,43]
["inibuttons",false,null,null,null,null,null,null,61926.921875,61927.10546875,{"$f":"J44-I44","v":0.18359375},null,null,null,null,null,null,null,null,null,"ExhstRt:",0,0,0,0,0,0,null,0,0,null,null,null,null,44]
[null,null,null,null,null,null,null,"kk",null,null,null,null,null,null,null,null,null,null,null,null,"ExhstLt:",0,0,0,0,0,0,null,0,0,null,null,null,null,45]
[null,null,null,null,null,null,null,null,null,null,null,null,null,null,null,null,null,null,null,null,"Catouttemp:",73.400000000000006,0,0,0,0,0,null,0,0,null,null,null,null,46]
[2,2117,4232,6347,8462,10577,12692,null,null,null,null,null,null,null,null,null,null,null,null,null,"OilOutTemp:",69.103800000000007,0,0,0,0,0,null,0,0,null,null,null,null,47]
[2,2210,4418,"Feedwater",8834,11042,13250,null,null,null,null,null,null,null,null,null,null,null,null,null,"OilInTemp:",70.5,0,0,0,0,0,null,0,0,null,null,null,null,48]
[2,2305,4608,"Oil",9214,11517,13820,null,null,null,null,null,null,null,null,null,null,null,null,null,"OilHXH2Oin:",74.102400000000003,0,0,0,0,0,null,0,0,null,null,null,null,49,null,null,null,null,null,"cells(59,37)= ArrayLoLo(24)"]
[2,2402,4802,"Oil",9602,12002,14402,null,null,null,null,null,null,null,null,null,null,null,null,null,"OilHXH2Oout:",70.900000000000006,0,0,0,0,0,null,0,0,null,null,null,null,50]
[null,null,null,"Oil",null,null,null,null,null,null,null,null,null,null,null,null,null,null,null,null,"GenAirOut:",68.900000000000006,0,0,0,0,0,null,1,0,null,null,null,null,51]
[null,null,null,"Natural Gas",null,null,null,null,null,null,null,null,null,null,null,null,null,null,null,null,"AirInTemp:",69.5,0,0,0,0,0,null,1,1,null,null,null,null,52]
[null,null,null,"Air ",null,null,null,null,null,null,null,null,null,null,null,null,null,null,null,null,"CabinetTemp:",80,0,0,0,0,0,null,0,1,null,null,null,null,53]
[null,null,null,null,null,null,null,null,null,null,null,null,null,null,null,null,null,null,null,null,"ManifoldTemp:",68.900000000000006,0,0,0,0,0,null,0,0,null,null,null,null,54]
[null,null,null,null,null,null,null,null,null,null,null,null,null,null,null,null,null,null,null,null,"NatGasTemp:",69.099999999999994,0,0,0,0,0,null,0,1,null,null,null,null,55]
[null,null,null,null,null,null,null,null,null,null,null,null,null,null,null,null,null,null,null,null,"TC153:",53,0,0,0,0,0,null,0,0,null,null,null,null,56]
[null,null,null,null,null,null,null,null,null,null,null,null,null,null,null,null,null,null,null,null,"SecTccard1:",667.13400000000001,0,0,0,0,0,null,0,0,null,null,null,null,57,null,0]
[1,2,3,4,5,6,7,8,9,10,11,12,13,14,15,16,17,18,19,20,"SecTccard2:",69.67,0,0,0,0,0,null,0,0,null,32,33,34,58,36,37,38,39,40,41,42,43,44,45,46,47,48,49]
[null,null,null,null,null,null,null,null,null,null,null,null,null,null,null,null,null,null,null,null,"spare56:",56,0,0,0,0,0,null,0,0,null,null,null,null,59,null,0]
[null,null,null,null,null,null,null,null,null,null,null,null,null,null,null,null,null,null,null,null,"spare57:",57,0,0,0,0,0,null,0,1,null,null,null,null,60]
[null,null,null,null,null,null,null,null,"print now",null,null,null,"print  CLng(Timer) >= lastsec + logtime",null,null,null,null,null,null,null,"spare58:",58,0,0,0,0,0,null,0,1,null,null,null,null,61]
[null,null,null,null,null,null,null,null,null,null,null,null,"print Data.Cells(1, 1) >= 21 And CLng(Timer) >= lastsec + logtime ",null,null,null,null,null,null,null,"spare59:",27.1662,0,0,0,0,0,null,0,0,null,null,null,null,62]
[null,null,null,null,null,null,null,null,null,null,null,null,null,null,null,null,null,null,null,null,"O2:",21.6922,0,0,0,0,0,null,0,0,null,null,null,null,63]
[null,null,null,null,null,null,null,null,null,null,null,null,null,null,null,null,null,null,null,null,"NOLowPPM:",-2.0068000000000001,0,0,0,0,0,null,0,1,null,null,null,null,64]
[null,null,null,null,null,null,null,null,null,null,null,null,null,null,null,null,null,null,null,null,"NOHiPPM:",-5.5385999999999997,0,0,0,0,0,null,0,0,null,null,null,null,65]
[null,null,null,null,null,null,null,null,null,null,null,null,null,null,null,null,null,null,null,null,"COppm:",19.518699999999999,0,0,0,0,0,null,0,0,null,null,null,null,66]
[null,null,null,null,null,null,null,null,null,null,null,null,null,null,null,null,null,null,null,null,"COno2PPM:",-4.3716999999999997,0,0,0,0,0,null,0,0,null,null,null,null,67]
[null,null,null,null,null,null,null,null,null,null,null,null,null,null,null,null,null,null,null,null,"CO2Percent:",-6.3600000000000004E-2,0,0,0,0,0,null,0,0,null,null,null,null,68]
[null,null,null,null,null,null,null,null,null,null,null,null,null,null,null,null,null,null,null,null,"CEMcabTemp:",98.794399999999996,0,0,0,0,0,null,0,0,null,null,null,null,69]
[null,null,null,null,null,null,null,null,null,null,null,null,null,null,null,null,null,null,null,null,"CEMH20Temp:",96.108699999999999,0,0,0,0,0,null,0,1,null,null,null,null,70]
[null,null,null,null,null,null,null,null,"print timer",null,null,null,null,null,null,null,null,null,null,null,"NOxCorr_3PctO2:",-2,0,0,0,0,0,null,0,0,null,null,null,null,71]
[null,null,null,null,null,null,null,null,null,null,null,null,null,null,null,null,null,null,null,null,"COCorr_3PctO2:",19,0,0,0,0,0,null,0,0,null,null,null,null,72]
[null,null,null,null,null,null,null,null,null,null,null,null,null,null,null,null,null,null,null,null,"EngSpeedset:",0,0,0,0,0,0,null,0,0,null,null,null,null,73]
[null,null,null,null,null,null,null,null,"if Format(now, \"hr-mm-\")  = \"11-59",null,null,null,null,null,null,null,null,null,null,null,"EngSpeeddec:",0,0,0,0,0,0,null,0,0,null,null,null,null,74]
[null,null,null,null,null,null,null,null,null,null,null,null,null,null,null,null,null,null,null,null,"SPDRAMPInt:",0,0,0,0,0,0,null,0,0,null,null,null,null,75]
[null,null,null,null,null,null,null,null,null,null,null,null,null,null,null,null,null,null,null,null,"SPDRAMPDec:",0,0,0,0,0,0,null,0,0,null,null,null,null,76]
[null,null,null,null,null,null,null,null,null,null,null,null,null,null,null,null,null,null,null,null,"MOTORSPdInt:",0,0,0,0,0,0,null,0,0,null,null,null,null,77]
[null,null,null,null,null,null,null,null,null,null,null,null,null,null,null,null,null,null,null,null,"MOTORSDDec:",0,0,0,0,0,0,null,0,0,null,null,null,null,78]
[null,null,null,null,null,null,null,null,null,null,null,null,null,null,null,null,null,null,null,null,"Frequency:",0,0,0,0,0,0,null,0,0,null,null,null,null,79]
[null,null,null,null,null,null,null,null,null,null,null,null,null,null,null,null,null,null,null,null,"TorqReference:",0,0,0,0,0,0,null,0,0,null,null,null,null,80]
[null,null,null,null,null,null,null,null,null,null,null,null,null,null,null,null,null,null,null,null,"TorqDemand:",0,0,0,0,0,0,null,0,0,null,null,null,null,81]
[null,null,null,null,null,null,null,null,null,null,null,null,null,null,null,null,null,null,null,null,"MotorTorque:",0,0,0,0,0,0,null,0,0,null,null,null,null,82]
[null,null,null,null,null,null,null,null,null,null,null,null,null,null,null,null,null,null,null,null,"TorqPct:",0,0,0,0,0,0,null,0,0,null,null,null,null,83]
[null,null,null,null,null,null,null,null,null,null,null,null,null,null,null,null,null,null,null,null,"TorqDdPct:",0,0,0,0,0,0,null,0,0,null,null,null,null,84]
[null,null,null,null,null,null,null,null,null,null,null,null,null,null,null,null,null,null,null,null,"MotorTqPct:",0,0,0,0,0,0,null,0,0]
[null,null,null,null,null,null,null,null,null,null,null,null,null,null,null,null,null,null,null,null,"MotorTqLimt:",0,0,0,0,0,0,null,0,0]
[null,null,null,null,null,null,null,null,null,null,null,null,null,null,null,null,null,null,null,null,"MotTqUsed:",0,0,0,0,0,0,null,0,0]
[null,null,null,null,null,null,null,null,null,null,null,null,null,null,null,null,null,null,null,null,"MotTqPctUsed:",0,0,0,0,0,0,null,1,0]
[null,null,null,null,null,null,null,null,null,null,null,null,null,null,null,null,null,null,null,null,"TorqLimPctUse:",0,0,0,0,0,0,null,0,0]
[null,null,null,null,null,null,null,null,null,null,null,0,null,null,null,null,null,null,null,null,"Flux:",0,0,0,0,0,0,null,0,0]
[null,null,null,null,null,null,null,null,null,null,null,null,null,null,null,null,null,null,null,null,"PIDReference:",0,0,0,0,0,0,null,0,0]
[null,null,null,null,null,null,null,null,null,null,null,null,null,null,null,null,null,null,null,null,":",0,0,0,0,0,0,null,0,0]
[null,null,null,null,null,null,null,null,null,null,null,null,null,null,null,null,null,null,null,null,"PidFeedbkPCTRl:",0,0,0,0,0,0,null,0,0]
[null,null,null,null,null,null,null,null,null,null,null,null,null,null,null,null,null,null,null,null,"PIDErrorRl:",100,0,0,0,0,0,null,0,0]
[null,null,null,null,null,null,null,null,null,null,null,null,null,null,null,null,null,null,null,null,"PIDOutPCTRl:",0,0,0,0,0,0,null,0,0]
[null,null,null,null,null,null,null,null,null,null,null,null,null,null,null,null,null,null,null,null,"PIDRefUsedRl:",0,0,0,0,0,0,null,0,0]
[null,null,null,null,null,null,null,null,null,null,null,null,null,null,null,null,null,null,null,null,"PidFeedbkRl:",0,0,0,0,0,0,null,0,0]
[null,null,null,null,null,null,null,null,null,null,null,null,null,null,null,null,null,null,null,null,"PIDOutputRl:",0,0,0,0,0,0,null,0,0]
[null,null,null,null,null,null,null,null,null,null,null,null,null,null,null,null,null,null,null,null,"GenAmp:",0,0,0,0,0,0,null,0,0]
[null,null,null,null,null,null,null,null,null,null,null,null,null,null,null,null,null,null,null,null,"GenVolt:",0,0,0,0,0,0,null,0,0]
[null,null,null,null,null,null,null,null,null,null,null,null,null,null,null,null,null,null,null,null,"MotKw:",0,0,0,0,0,0,null,0,0]
[null,null,null,null,null,null,null,null,null,null,null,null,null,null,null,null,null,null,null,null,"DCBusVoltage:",87,0,0,0,0,0,null,0,0]
[null,null,null,null,null,null,null,null,null,null,null,null,null,null,null,null,null,null,null,null,"SupplyVoltage:",5,0,0,0,0,0,null,0,0]
[null,null,null,null,null,null,null,null,null,null,null,null,null,null,null,null,null,null,null,null,"DigInputs:",3104,0,0,0,0,0,null,1,0]
[null,null,null,null,null,null,null,null,null,null,null,null,null,null,null,null,null,null,null,null,"AmbTemp:",80.87,0,0,0,0,0,null,0,0]
[null,null,null,null,null,null,null,null,null,null,null,null,null,null,null,null,null,null,null,null,"IGBTTp:",70.573999999999998,0,0,0,0,0,null,1,0]
[null,null,null,null,null,null,null,null,null,null,null,null,null,null,null,null,null,null,null,null,"OperateTime:",0,0,0,0,0,0,null,0,0,"HiOilLev"]
[null,null,null,null,null,null,null,null,null,null,null,null,null,null,null,null,null,null,null,null,":",1,0,0,0,0,-5270,null,0,0,"LowGasPres"]
[null,null,null,null,null,null,null,null,null,null,null,null,null,null,null,null,null,null,null,null,"RGenVDCReal:",88.2,0,0,0,0,-16630,null,0,0,"HiGasPres"]
[null,null,null,null,null,null,null,null,null,null,null,null,null,null,null,null,null,null,null,null,"RGenAmpsReal:",2,0,0,0,0,28201,null,0,0,"GenHiTemp"]
[null,null,null,null,null,null,null,null,null,null,null,null,null,null,null,null,null,null,null,null,"RGenPowerReal:",0,0,0,0,0,-16560,null,0,0,"OilFiltPlugSw"]
[null,null,null,null,null,null,null,null,null,null,null,null,null,null,null,null,null,null,null,null,"RGenACvoltReal:",5.4,0,0,0,0,-4135,null,0,0,"AirFiltSw"]
[null,null,null,null,null,null,null,null,null,null,null,null,null,null,null,null,null,null,null,"wy0","BlockFdVlv:",100,0,0,0,0,-16495,null,0,0,"DriveOK"]
[null,null,null,null,null,null,null,null,null,null,null,null,null,null,null,null,null,null,null,"wy1","ManFdVlv:",55.982900000000001,0,0,0,0,-24239,null,0,0,"POC"]
[null,null,null,null,null,null,null,null,null,null,null,null,null,null,null,null,null,null,null,"wy2",":",0,0,0,0,0,-16446,null,0,0,"Global High High Trip.  It indicates any of the inputs output RX numbers are in trip conditions and intitates a trip ofthe engine"]
[null,null,null,null,null,null,null,null,null,null,null,null,null,null,null,null,null,null,null,"wy3",":",0,0,0,0,0,19659,null,0,0,"Global High Alarm.  It indicates any of the inputs output RX numbers are in trip conditions and intitates a trip ofthe engine"]
[null,null,null,null,null,null,null,null,null,null,null,null,null,null,null,null,null,null,null,"wy4","GasRegPressOut:",46.666699999999999,0,0,0,0,-16390,null,0,0,"Global Low Alarm.  It indicates any of the inputs output RX numbers are in trip conditions and intitates a trip ofthe engine"]
[null,null,null,null,null,null,null,null,null,null,null,null,null,null,null,null,null,null,null,"wy5",":",0,0,0,0,0,-18766,null,0,0,"Global Low Low Trip.  It indicates any of the inputs output RX numbers are in trip conditions and intitates a trip ofthe engine"]
[null,null,null,null,null,null,null,null,null,null,null,null,null,null,null,null,null,null,null,"wy6",":",0,0,0,0,0,-16758,null,0,0]
[null,null,null,null,null,null,null,null,null,null,null,null,null,null,null,null,null,null,null,"wy7",":",0,0,0,0,0,null,null,null,0]
[null,null,null,null,null,null,null,null,null,null,null,null,null,null,null,null,null,null,null,"wy8",":",0,0,0,0,0,null,null,null,0]
[null,null,null,null,null,null,null,null,null,null,null,null,null,null,null,null,null,null,null,"wy9",":",0,0,0,0,0]
[null,null,null,null,null,null,null,null,null,null,null,null,null,null,null,null,null,null,null,"wy10",":",0,0,0,0,0]
[null,null,null,null,null,null,null,null,null,null,null,null,null,null,null,null,null,null,null,"wy11",":",0,0,0,0,0]
[null,null,null,null,null,null,null,null,null,null,null,null,null,null,null,null,null,null,null,"wy12",":",0,0,0,0,0,null,null,null,null,"Initializing P numbers failed"]
[null,null,null,null,null,null,null,null,null,null,null,null,null,null,null,null,null,null,null,"wy13",":",0,0,0,0,0,null,null,null,null,"Initiallizing CVFD numbers failed"]
[null,null,null,null,null,null,null,null,null,null,null,null,null,null,null,null,null,null,null,"wy14","CEMH2O:",100,0,0,0,0,null,null,null,null,"Initializing IVFD numbers failed"]
[null,null,null,null,null,null,null,null,null,null,null,null,null,null,null,null,null,null,null,"wy15",":",0,0,0,0,0]
[null,null,null,null,null,null,null,null,null,null,null,null,null,null,null,null,null,null,null,"wy16",":",0,0,0,0,0]
[null,null,null,null,null,null,null,null,null,null,null,null,null,null,null,null,null,null,null,"wy17",":",0,0,0,0,0]
[null,null,null,null,null,null,null,null,null,null,null,null,null,null,null,null,null,null,null,null,"OilVFDHxSP:",0,0,0,0,0]
[null,null,null,null,null,null,null,null,null,null,null,null,null,null,null,null,null,null,null,null,"OilVFDHZ:",0,0,0,0,0,null,null,null,null,"MI132"]
[null,null,null,null,null,null,null,null,null,null,null,null,null,null,null,null,null,null,null,null,"OilVFDAmp:",0,0,0,0,0,null,null,null,null,"MI133"]
[null,null,null,null,null,null,null,null,null,null,null,null,null,null,null,null,null,null,null,null,"OilVFDDCv:",642.4,0,0,0,0,null,null,null,null,"MI134"]
[null,null,null,null,null,null,null,null,null,null,null,null,null,null,null,null,null,null,null,null,"OilVFDVoltOut:",0,0,0,0,0,null,null,null,null,"MI135"]
[null,null,null,null,null,null,null,null,null,null,null,null,null,null,null,null,null,null,null,null,"OilGPM:",0,0,0,0,0,null,null,null,null,"MI136"]
[null,null,null,null,null,null,null,null,null,null,null,null,null,null,null,null,null,null,null,null,"OilVFDPF:",0,0,0,0,0,null,null,null,null,"MI137"]
[null,null,null,null,null,null,null,null,null,null,null,null,null,null,null,null,null,null,null,null,"OilVFDPctLoad:",0,0,0,0,0,null,null,null,null,"MI138"]
[null,null,null,null,null,null,null,null,null,null,null,null,null,null,null,null,null,null,null,null,"SpareInput136:",0.96540000000000004,0,0,1,0,null,null,null,null,"MI139"]
[null,null,null,null,null,null,null,null,null,null,null,null,null,null,null,null,null,null,null,null,"SpareInput137:",9,0,0,0,0,null,null,null,null,"MI140"]
[null,null,null,null,null,null,null,null,null,null,null,null,null,null,null,null,null,null,null,null,"SpareInput138:",9,0,0,0,0,null,null,null,null,"MI141"]
[null,null,null,null,null,null,null,null,null,null,null,null,null,null,null,null,null,null,null,null,"SpareInput139:",9,0,0,0,0,null,null,null,null,"MI142"]
[null,null,null,null,null,null,null,null,null,null,null,null,null,null,null,null,null,null,null,null,"SpareInput140:",9,0,0,0,0,null,null,null,null,"MI143"]
[null,null,null,null,null,null,null,null,null,null,null,null,null,null,null,null,null,null,null,null,"SpareInput141:",9,0,0,0,0,null,null,null,null,"MI144"]
[null,null,null,null,null,null,null,null,null,null,null,null,null,null,null,null,null,null,null,null,"SpareInput142:",9,0,0,0,0,null,null,null,null,"MI145"]
[null,null,null,null,null,null,null,null,null,null,null,null,null,null,null,null,null,null,null,null,"SpareInput143:",9,0,0,0,0,null,null,null,null,"MI146"]
[null,null,null,null,null,null,null,null,null,null,null,null,null,null,null,null,null,null,null,null,"SpareInput144:",9,0,0,0,0,null,null,null,null,"MI147"]
[null,null,null,null,null,null,null,null,null,null,null,null,null,null,null,null,null,null,null,null,"SpareInput145:",9,0,0,0,0,null,null,null,null,"MI148"]
[null,null,null,null,null,null,null,null,null,null,null,null,null,null,null,null,null,null,null,null,"SpareInput146:",0,0,0,0,0,null,null,null,null,"MI149"]
[null,null,null,null,null,null,null,null,null,null,null,null,null,null,null,null,null,null,null,null,"SpareInput147:",0,0,0,0,0,null,null,null,null,"MI150"]
[null,null,null,null,null,null,null,null,null,null,null,null,null,null,null,null,null,null,null,null,"SpareInput148:",0,0,0,0,0,null,null,null,null,"MI151"]
[null,null,null,null,null,null,null,null,null,null,null,null,null,null,null,null,null,null,null,null,"SpareInput149:",0,0,0,0,0,null,null,null,null,"MI152"]
[null,null,null,null,null,null,null,null,null,null,null,null,null,null,null,null,null,null,null,null,"SpareInput150:",0,0,0,0,0,null,null,null,null,"MI153"]
[null,null,null,null,null,null,null,null,null,null,null,null,null,null,null,null,null,null,null,null,"SpareInput151:",0,0,0,0,0,null,null,null,null,"MI154"]
[null,null,null,null,null,null,null,null,null,null,null,null,null,null,null,null,null,null,null,null,"SpareInput152:",0,0,0,0,0,null,null,null,null,"MI155"]
[null,null,null,null,null,null,null,null,null,null,null,null,null,null,null,null,null,null,null,null,"SpareInput153:",0,0,0,0,0,null,null,null,null,"MI156"]
[null,null,null,null,null,null,null,null,null,null,null,null,null,null,null,null,null,null,null,null,"SpareInput154:",0,0,0,0,0,null,null,null,null,"MI157"]
[null,null,null,null,null,null,null,null,null,null,null,null,null,null,null,null,null,null,null,null,"SpareInput155:",0,0,0,0,0,null,null,null,null,"MI158"]
[null,null,null,null,null,null,null,null,null,null,null,null,null,null,null,null,null,null,null,null,"SpareInput156:",0,0,0,0,0,null,null,null,null,"MI159"]
[null,null,null,null,null,null,null,null,null,null,null,null,null,null,null,null,null,null,null,null,"SpareInput157:",0,0,0,0,0,null,null,null,null,"MI160"]
[null,null,null,null,null,null,null,null,null,null,null,null,null,null,null,null,null,null,null,null,"SpareInput158:",0,0,0,0,0,null,null,null,null,"MI161"]
[null,null,null,null,null,null,null,null,null,null,null,null,null,null,null,null,null,null,null,null,"SpareInput159:",0,0,0,0,0,null,null,null,null,"MI162"]
[null,null,null,null,null,null,null,null,null,null,null,null,null,null,null,null,null,null,null,null,"SpareInput160:",0,0,0,0,0,null,null,null,null,"MI163"]
[null,null,null,null,null,null,null,null,null,null,null,null,null,null,null,null,null,null,null,null,"SpareInput161:",0,0,0,0,0,null,null,null,null,"MI164"]
[null,null,null,null,null,null,null,null,null,null,null,null,null,null,null,null,null,null,null,null,"SpareInput162:",0,0,0,0,0,null,null,null,null,"MI165"]
[null,null,null,null,null,null,null,null,null,null,null,null,null,null,null,null,null,null,null,null,"SpareInput163:",0,0,0,0,0,null,null,null,null,"MI166"]
[null,null,null,null,null,null,null,null,null,null,null,null,null,null,null,null,null,null,null,null,"SpareInput164:",0,0,0,0,0,null,null,null,null,"MI167"]
[null,null,null,null,null,null,null,null,null,null,null,null,null,null,null,null,null,null,null,null,"SpareInput165:",0,0,0,0,0,null,null,null,null,"MI168"]
[null,null,null,null,null,null,null,null,null,null,null,null,null,null,null,null,null,null,null,null,"SpareInput166:",0,0,0,0,0,null,null,null,null,"MI169"]
[null,null,null,null,null,null,null,null,null,null,null,null,null,null,null,null,null,null,null,null,"SpareInput167:",0,0,0,0,0,null,null,null,null,"MI170"]
[null,null,null,null,null,null,null,null,null,null,null,null,null,null,null,null,null,null,null,null,"SpareInput168:",0,0,0,0,0,null,null,null,null,"MI171"]
[null,null,null,null,null,null,null,null,null,null,null,null,null,null,null,null,null,null,null,null,"SpareInput169:",0,0,0,0,0,null,null,null,null,"MI172"]
[null,null,null,null,null,null,null,null,null,null,null,null,null,null,null,null,null,null,null,null,"SpareInput170:",0,0,0,0,0,null,null,null,null,"MI173"]
[null,null,null,null,null,null,null,null,null,null,null,null,null,null,null,null,null,null,null,null,"SpareInput171:",0,0,0,0,0,null,null,null,null,"MI174"]
[null,null,null,null,null,null,null,null,null,null,null,null,null,null,null,null,null,null,null,null,"SpareInput172:",0,0,0,0,0,null,null,null,null,"MI175"]
[null,null,null,null,null,null,null,null,null,null,null,null,null,null,null,null,null,null,null,null,"SpareInput173:",0,0,0,0,0,null,null,null,null,"MI176"]
[null,null,null,null,null,null,null,null,null,null,null,null,null,null,null,null,null,null,null,null,"SpareInput174:",0,0,0,0,0,null,null,null,null,"MI177"]
[null,null,null,null,null,null,null,null,null,null,null,null,null,null,null,null,null,null,null,null,"SpareInput175:",0,0,0,0,0,null,null,null,null,"MI178"]
[null,null,null,null,null,null,null,null,null,null,null,null,null,null,null,null,null,null,null,null,"SpareInput176:",0,0,0,0,0,null,null,null,null,"MI179"]
[null,null,null,null,null,null,null,null,null,null,null,null,null,null,null,null,null,null,null,null,"SpareInput177:",0,0,0,0,0,null,null,null,null,"MI180"]
[null,null,null,null,null,null,null,null,null,null,null,null,null,null,null,null,null,null,null,null,"SpareInput178:",0,0,0,0,0,null,null,null,null,"MI181"]
[null,null,null,null,null,null,null,null,null,null,null,null,null,null,null,null,null,null,null,null,"SpareInput179:",0,0,0,0,0,null,null,null,null,"MI182"]
[null,null,null,null,null,null,null,null,null,null,null,null,null,null,null,null,null,null,null,null,"SpareInput180:",0,0,0,0,0,null,null,null,null,"MI183"]
[null,null,null,null,null,null,null,null,null,null,null,null,null,null,null,null,null,null,null,null,null,null,{"$error":"#N/A"},{"$error":"#N/A"},{"$error":"#N/A"},{"$error":"#N/A"},null,null,null,null,"MI184"]
[null,null,null,null,null,null,null,null,null,null,null,null,null,null,null,null,null,null,null,null,null,null,{"$error":"#N/A"},{"$error":"#N/A"},{"$error":"#N/A"},{"$error":"#N/A"},null,null,null,null,"MI185"]
[null,null,null,null,null,null,null,null,null,null,null,null,null,null,null,null,null,null,null,null,null,null,{"$error":"#N/A"},{"$error":"#N/A"},{"$error":"#N/A"},{"$error":"#N/A"},null,null,null,null,"MI186"]
[null,null,null,null,null,null,null,null,null,null,null,null,null,null,null,null,null,null,null,null,null,null,{"$error":"#N/A"},{"$error":"#N/A"},{"$error":"#N/A"},{"$error":"#N/A"},null,null,null,null,"MI187"]
[null,null,null,null,null,null,null,null,null,null,null,null,null,null,null,null,null,null,null,null,null,null,{"$error":"#N/A"},{"$error":"#N/A"},{"$error":"#N/A"},{"$error":"#N/A"},null,null,null,null,"MI188"]
[null,null,null,null,null,null,null,null,null,null,null,null,null,null,null,null,null,null,null,null,null,null,{"$error":"#N/A"},{"$error":"#N/A"},{"$error":"#N/A"},{"$error":"#N/A"},null,null,null,null,"MI189"]
[null,null,null,null,null,null,null,null,null,null,null,null,null,null,null,null,null,null,null,null,null,null,{"$error":"#N/A"},{"$error":"#N/A"},{"$error":"#N/A"},{"$error":"#N/A"},null,null,null,null,"MI190"]
[null,null,null,null,null,null,null,null,null,null,null,null,null,null,null,null,null,null,null,null,null,null,{"$error":"#N/A"},{"$error":"#N/A"},{"$error":"#N/A"},{"$error":"#N/A"},null,null,null,null,"MI191"]
[null,null,null,null,null,null,null,null,null,null,null,null,null,null,null,null,null,null,null,null,null,null,{"$error":"#N/A"},{"$error":"#N/A"},{"$error":"#N/A"},{"$error":"#N/A"},null,null,null,null,"MI192"]
[null,null,null,null,null,null,null,null,null,null,null,null,null,null,null,null,null,null,null,null,null,null,{"$error":"#N/A"},{"$error":"#N/A"},{"$error":"#N/A"},{"$error":"#N/A"},null,null,null,null,"MI193"]
[null,null,null,null,null,null,null,null,null,null,null,null,null,null,null,null,null,null,null,null,null,null,{"$error":"#N/A"},{"$error":"#N/A"},{"$error":"#N/A"},{"$error":"#N/A"},null,null,null,null,"MI194"]
[null,null,null,null,null,null,null,null,null,null,null,null,null,null,null,null,null,null,null,null,null,null,{"$error":"#N/A"},{"$error":"#N/A"},{"$error":"#N/A"},{"$error":"#N/A"},null,null,null,null,"MI195"]
[null,null,null,null,null,null,null,null,null,null,null,null,null,null,null,null,null,null,null,null,null,null,{"$error":"#N/A"},{"$error":"#N/A"},{"$error":"#N/A"},{"$error":"#N/A"},null,null,null,null,"MI196"]
[null,null,null,null,null,null,null,null,null,null,null,null,null,null,null,null,null,null,null,null,null,null,{"$error":"#N/A"},{"$error":"#N/A"},{"$error":"#N/A"},{"$error":"#N/A"},null,null,null,null,"MI197"]
[null,null,null,null,null,null,null,null,null,null,null,null,null,null,null,null,null,null,null,null,null,null,{"$error":"#N/A"},{"$error":"#N/A"},{"$error":"#N/A"},{"$error":"#N/A"},null,null,null,null,"MI198"]
[null,null,null,null,null,null,null,null,null,null,null,null,null,null,null,null,null,null,null,null,null,null,{"$error":"#N/A"},{"$error":"#N/A"},{"$error":"#N/A"},{"$error":"#N/A"},null,null,null,null,"MI199"]
[null,null,null,null,null,null,null,null,null,null,null,null,null,null,null,null,null,null,null,null,null,null,{"$error":"#N/A"},{"$error":"#N/A"},{"$error":"#N/A"},{"$error":"#N/A"},null,null,null,null,"MI200"]
[null,null,null,null,null,null,null,null,null,null,null,null,null,null,null,null,null,null,null,null,null,null,{"$error":"#N/A"},{"$error":"#N/A"},{"$error":"#N/A"},{"$error":"#N/A"},null,null,null,null,"MI201"]
[null,null,null,null,null,null,null,null,null,null,null,null,null,null,null,null,null,null,null,null,null,null,{"$error":"#N/A"},{"$error":"#N/A"},{"$error":"#N/A"},{"$error":"#N/A"},null,null,null,null,"MI202"]
[null,null,null,null,null,null,null,null,null,null,null,null,null,null,null,null,null,null,null,null,null,null,{"$error":"#N/A"},{"$error":"#N/A"},{"$error":"#N/A"},{"$error":"#N/A"},null,null,null,null,"MI203"]

{"sheet":"Tags","index":1,"n_rows":2444,"n_cols":4,"rows_kept":2444,"cut":false,"hidden":false,"merged":[]}
["X0","EStop",null,"Estop"]
["X2","OilPresSw",null,"OilPressSwitch"]
["X3","HighOilPress",null,"HighOilPress"]
["X4","LowOilPresSw",null,"Low oil pressure"]
["X5","LoLoOilLevSw",null,"Low oil level"]
["X6","LowOilLevelSw",null,"Low oil level"]
["X7","BackFireSw",null,"BackfireRelay"]
["X8","HiOilLev",null,"High Oil level"]
["X9","LowGasPres",null,"Low Gas Pressure"]
["X10","HiGasPres",null,"high Gas Pressure"]
["X11","GenHiTemp",null,"Generator high temperature"]
["X12","OilFiltPlugSw",null,"Oil Filter Plug Switch"]
["X13","AirFiltSw",null,"Air Filter Negative Switch"]
["X14","DriveOK",null,"Drive OK Switch"]
["X15","CompAirOK",null,"Compressed Air OK"]
["Y0","FuelValve",null,"Fuel Shut off valve"]
["Y1","Ignition",null,"Ignition on"]
["Y2","H2OVlvIn",null,"Water Flow Valve In"]
["Y3","EngDrain",null,"Engine block Drain Valve"]
["Y4","H2OVlvOut",null,"Water Flow Valve out"]
["Y7","Alarm"]
["Y8","VFDStart",null,"Start the VFD"]
["Y16","CEMS_Chiller_Run"]
["WX0","PT100raw","OilPressXmt","0-4095 0-150psig"]
["WX1","PT101raw","HdH2OPresXmit","0-4095 0-100psig"]
["WX2","PT102raw","EngOutH2OXmt","0-4095 0-100psig"]
["WX3","PT103raw","H2ONzlePresXmt","0-4095 0-100psig"]
["WX4","FT100raw","FuelDPXmitter","0-4095 0-51.47Sc"]
["WX5","PT104raw","FuelPresXmt","0-4095 0-100psig"]
["WX6","FT101raw","H2OJacketDPXmt","0-4095  = 20GPM"]
["WX7","FT102raw","H2OManDPXmt","0-4095 = 2.52GPM"]
["WX8","FT103raw","DPAirFiltXmt","0-4095 = 25\"wc"]
["WX9","FT104raw","DPGasMixerXmt","0-4095 = 25\"wc"]
["WX10","PT105raw","ManifoldPresXmt","0-4095 = --14.7-30psi"]
["WX11","PT106raw","ExhCatUpstrXmt","missing"]
["WX12","PT107raw","CrankcasePresXmt","0-4095 =  --14.7-30psi"]
["WX13","PT108raw","GasToMixRaw","missing"]
["WX14","PT109raw","FeedH2oPressXmt","0-4095 0-150psig"]
["WX15","INC100raw","EncoderXmt"]
["WX16","VLV100raw",null,"FeedValve Feedback Signal"]
["WX17","VLV101raw",null,"Manifold vlv feedback signal"]
["WX18","SPR118raw","Spare","Lambda B4 Catalyst"]
["WX19","SPR119raw","Spare","Lambda After Catalyst"]
["WX20","SPR120raw","Spare"]
["WX21","SPR121raw","Spare"]
["WX22","SPR122raw","Spare"]
["WX23","SPR123raw","Spare"]
["WX24","TC124raw","_EngineExhst1"]
["WX25","TC125raw","_EngineExhst2"]
["WX26","TC126raw","_EngineExhst3"]
["WX27","TC127raw","_EngineExhst4"]
["WX28","TC128raw","_EngineExhst5"]
["WX29","TC129raw","_EngineExhst6"]
["WX30","TC130raw","_EngineExhst7"]
["WX31","TC131raw","_EngineExhst8"]
["WX32","TC132raw",null,"right exhaust"]
["WX33","TC133raw",null,"left exhaust"]
["WX34","TC134raw","EngH2OOutRtRaw","right exhaust manifold exit water"]
["WX35","TC135raw","EngH2OOutLfRaw","rightleft"]
["WX36","TC136raw",null,"Combined manifold and block h2o out"]
["WX37","TC137raw",null,"H2O right head"]
["WX39","TC141raw",null,"ExhaustRight"]
["WX40","TC140raw",null,"FuelGasTemp"]
["WX41","TC143raw",null,"Catalyst out temp"]
["WX42","TC144raw",null,"OilTank"]
["WX43","TC145raw",null,"OilFilter"]
["WX44","TC146raw",null,"OilHXH2Oin"]
["WX45","TC147raw",null,"OilHXH2O_out"]
["WX46","TC148raw",null,"Generator Air Output"]
["WX47","TC149raw",null,"Air in"]
["WX48","TC150raw"]
["WX49","TC151raw"]
["WX50","TC152raw"]
["WX51","TC153raw"]
["WX60","O2_raw","0-4095","Raw input from CEMS O2 sensor"]
["WX61","NOlow_raw","0-4095","Low range NO sensor input CH2"]
["WX62","NOhi_raw","0-4095","High range NO sensor input CH3"]
["WX63","CO_raw","0-4095","CO sensor input CH4"]
["WX64","NO2_raw","0-4095","NO2 Sensor input CH5"]
["WX65","CO2_raw","0-4095","Raw input from CO2 sensor"]
["WX66","Temp_cabinet","0-4095","Temperature of CEMS cabinet CH7"]
["WX67","Temp_CEMH2O","0-4095","Temperature of CEMS chiller water CH8"]
["WX68","NOLowUncorrected",null,"NOx moved to be corrected in the scalling routing"]
["WX69","COUncorrected",null,"CO moved to be corrected in the scalling routing"]
["WX70",null,null,"MVFD0MRaw"]
["WX71",null,null,"MVFD1MRaw"]
["WX72",null,null,"MVFD2MRaw"]
["WX73",null,null,"MVFD3MRaw"]
["WX74",null,null,"MVFD4MRaw"]
["WX75",null,null,"MVFD5MRaw"]
["WX76",null,null,"MVFD6MRaw"]
["WX77",null,null,"MVFD7MRaw"]
["WX78",null,null,"MVFD8MRaw"]
["WX79",null,null,"MVFD9MRaw"]
["WX80",null,null,"MVFD10MRaw"]
["WX81",null,null,"MVFD11MRaw"]
["WX82",null,null,"MVFD12MRaw"]
["WX83",null,null,"MVFD13MRaw"]
["WX84",null,null,"MVFD14MRaw"]
["WX85",null,null,"MVFD15MRaw"]
["WX86",null,null,"MVFD16MRaw"]
["WX87",null,null,"MVFD17MRaw"]
["WX88",null,null,"MVFD18MRaw"]
["WX89",null,null,"MVFD19MRaw"]
["WX90",null,null,"MVFD20MRaw"]
["WX91",null,null,"MVFD21MRaw"]
["WX92",null,null,"MVFD22MRaw"]
["WX93",null,null,"MVFD23MRaw"]
["WX94",null,null,"MVFD24MRaw"]
["WX95",null,null,"MVFD25MRaw"]
["WX96",null,null,"MVFD26MRaw"]
["WX97",null,null,"MVFD27MRaw"]
["WX98",null,null,"MVFD28MRaw"]
["WX99",null,null,"MVFD29MRaw"]
["WX100",null,null,"MVFD30MRaw"]
["WX101",null,null,"MVFD31MRaw"]
["WX102",null,null,"MVFD62MRaw"]
["WX103",null,null,"MVFD64MRaw"]
["WX104",null,null,"MVFD65MRaw"]
["WX105",null,null,"MVFD67MRaw"]
["WX106","RGenDCvolt",null,"Regen Drive DC bus voltage"]
["WX107","RGenAmps",null,"Regen Inverter Current"]
["WX108","RGenPower",null,"Regen Active Power Delivered"]
["WX109","RGenACvolt",null,"Regen drive AC voltage output"]
["WX110","OutputWY0",null,"819 to 4095 = 0 to 100%"]
["WX111","OutputWY1",null,"820 to 4095 = 0 to 100%"]
["WX112","OutputWY2"]
["WX113","OutputWY3"]
["WX114","OutputWY4"]
["WX115","OutputWY5"]
["WX116","OutputWY6"]
["WX117","OutputWY7"]
["WX118","OutputWY8"]
["WX119","OutputWY9"]
["WX120","OutputWY10"]
["WX121","OutputWY11"]
["WX122","OutputWY12"]
["WX123","OutputWY13"]
["WX124","OutputWY14"]
["WX125","OutputWY15"]
["WX126","OutputWY16"]
["WX127","OutputWY17"]
["WX128","OilVFDHxSPRaw"]
["WX129","OilVFDHZRaw"]
["WX130","OilVFDAmpRaw"]
["WX131","OilVFDDCvRaw"]
["WX132","OilVFDVoltOutRaw"]
["WX133","OilVFDRPMRaw"]
["WX134","OilVFDPFRaw"]
["WX135","OilVFDPctLoadRaw"]
["WX136","LambdaSPRax",null,"Lambda Setpoint from MHR34 for dumping into data log RX136"]
["WY0","FV100","Base1Module42508","Jacket Feedwater Flow Control Valve"]
["WY1",null,"Base1Mod4-2510","Manifold Feedwater Flow Control Valve"]
["WY4","IP100","Slot1Mod3-4000","IP Lambda Control"]
["WY14","FV102",null,"CEMS Cabinet Flow Control Valve Out"]
["C0","st"]
["C1","RunCMD"]
["C2","FuelON",null,"Fuel On control relay"]
["C3","IgnitionOn",null,"Ignition On Control Relay"]
["C4","SpareC4"]
["C5","PreStartTrip",null,"Prevents the starting of the CHPsequence from standby if conditions are not met."]
["C6","NomrShutdnLatch",null,"Normal Trip Latches with conventional Shutdown proceedure"]
["C7","EmergShtdnLatch",null,"Emergency shutdown latch bit, everything full stop NOW"]
["C8","CHP4_10NotShtDwn",null,"Latches On if CHP sequence is stage 4 to 10 and there is no emergency shutdown condition"]
["C9","CHP1_10EmgShtDwn",null,"Latches on if CHP sequence is stage 1 to 10 (no Diagnostic task) and there is a emergency shutdown condition (c7)"]
["C10","sparec10"]
["C11","OilLevelSwtchOK",null,"All the oil level switches are OK"]
["C12","OilPressOK",null,"Equals both the oil pressure switch NO and the Low Low trip from oil pressure NC"]
["C13","OilPressAtSP",null,"The pressure is within 5 psi of setpoint (could be reduced)"]
["C14","OilPIDAM",null,"Oil Pressure controller is in automatic"]
["C15","OilVFDIncrease",null,"Bit that the oil pressure is lower than 1psi from setpoint then adds 0.1hz to the output of the oil VFD"]
["C16","OilVFDDecrease",null,"Bit indicates that the oil pressure is higher than 1psi from setpoint then adds 0.1hz to the output of the oil VFD"]
["C17","OilInOutless5",null,"The difference in oil temperature in and out of engine less than 5"]
["C18","OilPressDropTrip",null,"Oil pressure drops 10psi in 2 secs indicating a leak- full stop of engine and oil"]
["C19","OilPressIncrTrip",null,"Oil pressure Increases 10psi in 2 secs indicating a blockage somewhere -"]
["C20","FeedH2OAM"]
["C21","FeedWtrOK",null,"Feedwater flow is within limts No alarm"]
["C22","ManFeedH2OAM",null,"Feed H2O for marine manifold loop"]
["C23","ManifoldFdWtrOK",null,"Manifold flow is within limits"]
["C24","JackMan_FloTpOK",null,"Jacket and Manifold water flow is OK and water temperature coming out of engine is higher than minimum"]
["C25","sparec25"]
["C26","sparec26"]
["C27","sparec27"]
["C28","sparec28"]
["C29","sparec29"]
["C30","CHPStage0"]
["C31","CHPStage1",null,"Wait for start command from HMI "]
["C32","CHPStage2",null,"Start the Feedwater Stage Program"]
["C33","CHPStage3",null,"Start the oil pump sequence and then wait till oil is in auto ready to run"]
["C34","CHPStage4",null,"Set Torque at 40% Slow roll the engine from 0 to engine start RPM Once it gets there go to next stage"]
["C35","CHPStage5",null,"Set the VFD full torque and start Ignition Stage"]
["C36","CHPStage6",null,"Hold the engine speed at 800 RPM until oil and water are nominal. Check engine output and get lambda checked and ready"]
["C37","CHPStage7",null,"Release the Engine to modulated to operating speed"]
["C38","CHPStage8",null,"Set the engine back to 800rpm and wait for 5 minutes then shutoff ignition fuel"]
["C39","CHPStage9",null,"Normal Shutdown Ramp to zero then wait till the oil and water routines finish then back to Initial"]
["C40","CHPStage10",null,"Emergency Stop Stage that jams the engine to min speed then turns off everything and goes to Stage 0"]
["C41","CHPStage1_3",null,"Starting up stages.  Feedwater and Oil starting"]
["C42","CHPStage1_7",null,"Used to update the Modbus HiHi Hi Lo and LoLo for the first outs.  Will indicate what tripped the bastard"]
["C43","CHPStage4_10",null,"Used for Regen VFD control"]
["C44","sparec44"]
["C45","sparec45"]
["C46","sparec46"]
["C47","sparec47"]
["C48","sparec48"]
["C49","sparec49"]
["C50","GenOnCHPControl",null,"Gen ON signal from the CHPControl Sequence"]
["C51","GenOnDiagnostic",null,"The Generator on signal in Diagnostic only. "]
["C52","VFDatSpeed",null,"Withing 2rpm"]
["C53","DisableCWrite",null,"Disable the wirting to the C parameters in the drive"]
["C54","sparec54"]
["C55","HiGastoMIxPres",null,"High alarm is triggered on initial opening of the gas maxons"]
["C56","sparec56"]
["C57","sparec57"]
["C58","sparec58"]
["C59","sparec59"]
["C60","sparec60"]
["C61","sparec61"]
["C62","sparec62"]
["C63","sparec63"]
["C66","MissfireTrip"]
["C67","LambdaShutdown"]
["C68","KWRangeBIT",null,"From math expression, KW was 12% from expected value"]
["C71","LowGastoMIxPres",null,"High alarm is triggered on initial opening of the gas maxons"]
["C93","FeedValveOK",null,"FeedValve is OK"]
["C99","NewDay",null,"Turns on for one second to reset the engine run timer etc.  "]
["C100","SantPGood"]
["C102","SantCGood"]
["C104","SantMGood"]
["C110","IVFDWrtOK",null,"The Speed Torque References were written"]
["C111","IVFDWrtNotOK",null,"The Speed Torque References were not written"]
["C112","TimerDoneStart",null,"The timer from the start button is done"]
["C115","IncrementEvent"]
["C116","IncrementDelay",null,"Was C110"]
["C121","LoadFollowing",null,"Load Following command"]
["C200","ReadVFDParm",null,"Read VFD Parameters"]
["C300","GenAtSpeed",null,"The encoder is reading  -+15RPM of setpoint"]
["C301","AtIdleSpeed",null,"Speed is within 50RPM of idle setpoint"]
["C302","EncoderZeroFail"]
["C303","EncVfdMatchFail"]
["C403","FullStopCalled"]
["C407","StopCalled"]
["C600","SafteyEnabled",null,"This will allow us to disable less critical safteys if we need to"]
["C1000","OilDrvInitialize","1=OK","Check to see if drive is OK"]
["C1001","OilDrvNotinit","1=NotOK","Halt the process cause there's no oil control"]
["C1003","OilRampStart"]
["C1004","OilRampJog"]
["C1005","OilRampPause"]
["C1006","OilPumpHigh",null,"The oil pump output is higher than normal"]
["C1008","OilStartFail"]
["C1011","FeedH2OLOW"]
["C1013","FlowRateDiffLo"]
["C1014","FlowRateDiffHi"]
["C1015","FeedDiffLoTrip",null,"Close valve, broken line, bad transmitter or loss of feed pressure."]
["C1016","FeedDiffHiTrip",null,"Possible broken line or bad transmitter."]
["C1017","HighOilPresTrans"]
["C1018","HighOilPressTrip"]
["C1030","EngVFDTmrRly2",null,"Same as C1031"]
["C1031","EngVFDTmrRly1",null,"Restart the timer that restarts the EngineVFD Read write program in case when the drive is shut off and restarted"]
["C1032","OilVFDReadOK"]
["C1033","OilVFDReadNOK"]
["C1111","WarmupBypass"]
["C1201","OilWtrOK"]
["C1202","VFDCMD"]
["C1203","IgnFuelCMD"]
["C1204","VFDCMDRUN"]
["C1207","IdleSpeedOK"]
["C1208","EngineRunning",null,"Bit that says the generator is running"]
["C1209","InRunningMode"]
["C1210","StopCMD",null,"Command to stop the geneartor that runs the Shutdown Task"]
["C1211","FULLSTOPCMD",null,"Bit to run FULLSTOP task"]
["C1212","ESTOPHIT"]
["C1217","IdleTimerStart"]
["C1220","VFDMotor"]
["C1299","AlarmReset"]
["C1300","WarningBIT"]
["C1301","AlarmBIT"]
["C1303","FullStopBIT"]
["C1304","OilWtrTOAlarm"]
["C1305","WtrStartTOAlarm"]
["C1306","OilStartTOAlarm"]
["C1307","IdleSpeedFail"]
["C1308","VFDRunFail"]
["C1309","EngineRunFail"]
["C1310","LossOfOilPress",null,"Oil Pressure Switch indicates failulre or loss of oil pressure"]
["C1311","KWRangeFail",null,"KW generated was > 12% from expected"]
["C1320","VlvTempShutDown",null,"more than the set number of valve seat thermocouples are above the RHH setpoint"]
["C1321","VlvTempAlarm",null,"more than the set number of valve seat thermocouples are above the Alarm setpoint R301"]
["C1322","VlvTempWarm",null,"more than the set number of valve seat thermocouples are above the 10% warning differential R302"]
["C1323","VlvTempLow",null,"more than the set number of valve seat thermocouples are below the 10% differential of R303"]
["C1324","VlvTempLowLow",null,"more than the set number of valve seat thermocouples are below the 25% differential of R304"]
["C1325","ExhTempShutDown",null,"more than the set number of exhaust thermocouples are above the RHH setpoint"]
["C1326","ExhTempHiAlarm",null,"more than the set number of exhaust thermocouples are above the Alarm setpoint R311"]
["C1327","ExhTempHiWarn",null,"more than the set number of exhuast thermocouples are above the 10% warning differential  R312"]
["C1328","ExhTempLow",null,"more than the set number of Exhaust thermocouples are below the 10% differential of R313"]
["C1329","ExhTempLoLo",null,"more than the set number of Exhuast thermocouples are below the 25% differential of R314"]
["C1334","HighHighPressAlm"]
["C1335","LowLowPressAlm"]
["C1336","TripOnPresure"]
["C1337","BackfireTrip",null,"Self Latching relay on pressure switch to indicate backfire"]
["C2000","ScaleNonHHPlace",null,"NonCritical Place holder for the HiHi Alarm bit"]
["C2001","ScaleNonHiPlace",null,"Non Critical Place holder for the Hi Alarm bit"]
["C2002","ScaleNonLoPlace",null,"Non Critical Place holder for the Low Alarm bit"]
["C2003","ScaleNonLLPlace",null,"Non Critical Place holder for the Low Lowi Alarm bit"]
["C2004","SkipScanNonCrit",null,"It skips the scanning of that input for critical read items to be done in the ScalingCritcal routine"]
["C2005","NonCritFilterInp"]
["C2010","ScaleCritHHPlace",null,"Critical Place holder for the HiHi Alarm bit"]
["C2011","ScaleCritHiPlace",null,"Critical Place holder for the Hi Alarm bit"]
["C2012","ScaleCritLoPlace",null,"Critical Place holder for the Low Alarm bit"]
["C2013","ScaleCritLLPlace",null,"Critical Place holder for the Low Lowi Alarm bit"]
["C2014","CritFilterInp",null,"This to read the inputs and do every scan located in the ScalingCritical program"]
["C2015","FilterInpCrit",null,"Filter Input for Critical scan items"]
["V11","pointerscale"]
["N10","VFDIdleSpeed",null,"Startup and Shutdown Minimum speed of running engine (was N401)"]
["N20","VFDSetPoint",null,"VFD RPM Setpoint (was N400)"]
["N40","GasPressurCntOut",null,"CV output of PID for PV of Regulator Head Pressure"]
["N41","GasToMixCntOut",null,"CV output of PID for PV of GasToMixPressure"]
["D0","do",null,"   "]
["D100","RunTimeHr0","Seconds","Run time of engine chp in seconds hour 0"]
["R4","StartRegPresSet",null,"Starting head pressure control.  It willl be adjustable in order to make sure the damn thing starts without backfire"]
["R40","GasPressureCntSt",null,"Setpoint from the regulator PID head pressure control "]
["R50","KwSec","Kw-sec","Kilowatt per second for totalizing the kilowatt hours"]
["R51","Ft3Sec","CubicFootpSec","Cubic Feet Gas per second for totalizing the cubic feet per hour"]
["R100","KWHHr0","Kwhr","KwHr Hour 0"]
["R101","KWHHr1","Kwhr","KwHr Hour 1"]
["R102","KWHHr2","Kwhr","KwHr Hour 2"]
["R103","KWHHr3","Kwhr","KwHr Hour 3"]
["R104","KWHHr4","Kwhr","KwHr Hour 4"]
["R105","KWHHr5","Kwhr","KwHr Hour 5"]
["R106","KWHHr6","Kwhr","KwHr Hour 6"]
["R107","KWHHr7","Kwhr","KwHr Hour 7"]
["R108","KWHHr8","Kwhr","KwHr Hour 8"]
["R109","KWHHr9","Kwhr","KwHr Hour 9"]
["R110","KWHHr10","Kwhr","KwHr Hour 10"]
["R111","KWHHr11","Kwhr","KwHr Hour 11"]
["R112","KWHHr12","Kwhr","KwHr Hour 12"]
["R113","KWHHr13","Kwhr","KwHr Hour 13"]
["R114","KWHHr14","Kwhr","KwHr Hour 14"]
["R115","KWHH15","Kwhr","KwHr Hour 15"]
["R116","KWHHr16","Kwhr","KwHr Hour 16"]
["R117","KWHHr17","Kwhr","KwHr Hour 17"]
["R118","KWHHr18","Kwhr","KwHr Hour 18"]
["R119","KWHHr19","Kwhr","KwHr Hour 19"]
["R120","KWHHr20","Kwhr","KwHr Hour 20"]
["R121","KWHHr21","Kwhr","KwHr Hour 21"]
["R122","KWHHr22","Kwhr","KwHr Hour 22"]
["R123","KWHHr23",null,"KwHr Hour 23"]
["R200","CuFtGasHr0","CubicFeet","Cubic Feet Gas Hour 0"]
["R201","CuFtGasHr1","CubicFeet","Cubic Feet Gas Hour 1"]
["R202","CuFtGasHr2","CubicFeet","Cubic Feet Gas Hour 2"]
["R203","CuFtGasHr3","CubicFeet","Cubic Feet Gas Hour 3"]
["R204","CuFtGasHr4","CubicFeet","Cubic Feet Gas Hour 4"]
["R205","CuFtGasHr5","CubicFeet","Cubic Feet Gas Hour 5"]
["R206","CuFtGasHr6","CubicFeet","Cubic Feet Gas Hour 6"]
["R207","CuFtGasHr7","CubicFeet","Cubic Feet Gas Hour 7"]
["R208","CuFtGasHr8","CubicFeet","Cubic Feet Gas Hour 8"]
["R209","CuFtGasHr9","CubicFeet","Cubic Feet Gas Hour 9"]
["R210","CuFtGasHr10","CubicFeet","Cubic Feet Gas Hour 10"]
["R211","CuFtGasHr11","CubicFeet","Cubic Feet Gas Hour 11"]
["R212","CuFtGasHr12","CubicFeet","Cubic Feet Gas Hour 12"]
["R213","CuFtGasHr13","CubicFeet","Cubic Feet Gas Hour 13"]
["R214","CuFtGasHr14","CubicFeet","Cubic Feet Gas Hour 14"]
["R215","CuFtGasHr15","CubicFeet","Cubic Feet Gas Hour 15"]
["R216","CuFtGasHr16","CubicFeet","Cubic Feet Gas Hour 16"]
["R217","CuFtGasHr17","CubicFeet","Cubic Feet Gas Hour 17"]
["R218","CuFtGasHr18","CubicFeet","Cubic Feet Gas Hour 18"]
["R219","CuFtGasHr19","CubicFeet","Cubic Feet Gas Hour 19"]
["R220","CuFtGasHr20","CubicFeet","Cubic Feet Gas Hour 20"]
["R221","CuFtGasHr21","CubicFeet","Cubic Feet Gas Hour 21"]
["R222","CuFtGasHr22","CubicFeet","Cubic Feet Gas Hour 22"]
["R223","CuFtGasHr23","CubicFeet","Cubic Feet Gas Hour 23"]
["R300","SteamPreSetPt","psi",200]
["R800","PurgeSpeed","HZ","From MHR800"]
["R3000","FDX0"]
["T0","EngineOffRunCool",null,"Engine is being motored at 850rpm with the fuel ignition off"]
["T1","OilCoolDn",null,"Oil cooldown timer after engine trip"]
["T4.Done","EngineSiezed",null,"Engine didn't roll during startup "]
["T5.Done","ShutOffFuelSg9",null,"Timer running the engine on slow role on shutdown Stage9"]
["T7","EmergStopH2OStop",null,"Timer for keeping the water going when the unit is in an emergency stop situation"]
["T8","EngStartupTmr",null,"Engine fuel ignition on timer used to sequence the fuel firts then ignition"]
["T9.DN","TimerSpark",null,"After 5 seconds after the fuel, the timer counts down another 5 to see if gas pressure is near 6psig"]
["T11","LambdaCntSetTime",null,"Timer used to either increase or decrease lambda controller setpoint based on high and low CO limits (mhr35 and 36)"]
["T12","Time4LambdaCnt",null,"Timer for turning on the lambda control"]
["T14","RunTimeTimer",null,"Timer used to run time.  "]
["MI0",null,"st"]
["MI1",null,"RunCMD"]
["MI2",null,"FuelON"]
["MI3",null,"IgnitionOn"]
["MI4",null,"SpareC4"]
["MI5",null,"PreStartTrip"]
["MI6",null,"NomrShutdnLatch","Shutdown"]
["MI7",null,"EmergShtdnLatch","Emergency shutdown"]
["MI8",null,"CHP4_10NotShtDwn"]
["MI9",null,"CHP1_10NotShtDwn","Shutdown"]
["MI10",null,"sparec10"]
["MI11",null,"OilLevelSwtchOK","Oil level OK"]
["MI12",null,"OilPressOK","Oil Pressure OK"]
["MI13",null,"OilPressAtSP","Oil Pressure at SP"]
["MI14",null,"OilPIDAM","Oil Pressure Auto Control"]
["MI15",null,"OilVFDIncrease","Increase Oil VFD"]
["MI16",null,"OilVFDDecrease","Decress Oil VFD"]
["MI17",null,"OilInOutless5"]
["MI18",null,"OilPressDropTrip"]
["MI19",null,"OilPressIncrTrip"]
["MI20",null,"FeedH2OAM","Feed H2O OK"]
["MI21",null,"FeedWtrOK"]
["MI22",null,"ManFeedH2OAM"]
["MI23",null,"ManifoldFdWtrOK"]
["MI24",null,"JackMan_FloTpOK"]
["MI25",null,"sparec25"]
["MI26",null,"sparec26"]
["MI27",null,"sparec27"]
["MI28",null,"sparec28"]
["MI29",null,"sparec29"]
["MI30",null,"CHPStage0","Waiting to Start"]
["MI31",null,"CHPStage1","StandBy"]
["MI32",null,"CHPStage2","Start Water & Oil"]
["MI33",null,"CHPStage3"]
["MI34",null,"CHPStage4","Engine Start Roll"]
["MI35",null,"CHPStage5","Gas and Ignition On"]
["MI36",null,"CHPStage6","Warmup"]
["MI37",null,"CHPStage7","On-Line"]
["MI38",null,"CHPStage8","Pre-Shutdown"]
["MI39",null,"CHPStage9","Engine off Cooling"]
["MI40",null,"CHPStage10","Emergency Off"]
["MI41",null,"CHPStage1_3","Starting Up Engine"]
["MI42",null,"CHPStage1_7","Used to update the Modbus HiHi Hi Lo and LoLo for the first outs.  Will indicate what tripped the bastard"]
["MI43",null,"CHPStage4_10","Used for Regen VFD control"]
["MI44",null,"sparec44"]
["MI45",null,"sparec45"]
["MI46",null,"sparec46"]
["MI47",null,"sparec47"]
["MI48",null,"sparec48"]
["MI49",null,"sparec49"]
["MI50",null,"GenOnCHPControl"]
["MI51",null,"GenOnDiagnostic"]
["MI52",null,"GeneratorOn"]
["MI53",null,"sparec53"]
["MI54",null,"sparec54"]
["MI55",null,"sparec55"]
["MI56",null,"sparec56"]
["MI57",null,"sparec57"]
["MI58",null,"sparec58"]
["MI59",null,"sparec59"]
["MI60",null,"sparec60"]
["MI61",null,"sparec61"]
["MI62",null,"sparec62"]
["MI63",null,"sparec63"]
["MI64",null,"VFDatSpeed"]
["MI65",null,"DisableCWrite"]
["MI66",null,"MissfireTrip"]
["MI67",null,"LambdaShutdown"]
["MI68",null,"KWRangeBIT"]
["MI70","spareMI70"]
["MI71","spareMI71"]
["MI72","spareMI72"]
["MI73","spareMI73"]
["MI74","spareMI74"]
["MI75","spareMI75"]
["MI76","spareMI76"]
["MI77","spareMI77"]
["MI78","spareMI78"]
["MI79","spareMI79"]
["MI80","spareMI80"]
["MI81","spareMI81"]
["MI82","spareMI82"]
["MI83","spareMI83"]
["MI84","spareMI84"]
["MI85","spareMI85"]
["MI86","spareMI86"]
["MI87","spareMI87"]
["MI88","spareMI88"]
["MI89","spareMI89"]
["MI90","spareMI90"]
["MI91","spareMI91"]
["MI92","spareMI92"]
["MI93","spareMI93"]
["MI94","spareMI94"]
["MI95","spareMI95"]
["MI96","spareMI96"]
["MI97","spareMI97"]
["MI98","spareMI98"]
["MI99","spareMI99"]
["MI100","mbX0"]
["MI101","mbX1"]
["MI102","mbX2"]
["MI103","mbX3"]
["MI104","mbX4"]
["MI105","mbX5"]
["MI106","mbX6"]
["MI107","mbX7"]
["MI108","mbX8",null,"HiOilLev"]
["MI109","mbX9",null,"LowGasPres"]
["MI110","mbX10",null,"HiGasPres"]
["MI111","mbX11",null,"GenHiTemp"]
["MI112","mbX12",null,"OilFiltPlugSw"]
["MI113","mbX13",null,"AirFiltSw"]
["MI114","mbX14",null,"DriveOK"]
["MI115","mbX15",null,"POC"]
["MI120","HighHighAlarm",null,"Global High High Trip.  It indicates any of the inputs output RX numbers are in trip conditions and intitates a trip ofthe engine"]
["MI121","HighAlarm",null,"Global High Alarm.  It indicates any of the inputs output RX numbers are in trip conditions and intitates a trip ofthe engine"]
["MI122","LowAlarm",null,"Global Low Alarm.  It indicates any of the inputs output RX numbers are in trip conditions and intitates a trip ofthe engine"]
["MI123","LowLowAlarm",null,"Global Low Low Trip.  It indicates any of the inputs output RX numbers are in trip conditions and intitates a trip ofthe engine"]
["MI900","MotFanOK"]
["MI901","MotFanFail"]
["MI902","CrkCaseOK"]
["MI903","CrkCaseFail"]
["MI904","OilVFDOK"]
["MI905","OilVFDFail"]
["MI906","SantPBad","EngineVFDRdWtS0","Initializing P numbers failed"]
["MI907","SantCBad","EngineVFDRdWtS1","Initiallizing CVFD numbers failed"]
["MI908","SantInumBad","EngineVFDRdWtS2","Initializing IVFD numbers failed"]
["MI909","ReadVFDMnumFail","EngineVFDRdWtS3"]
["MI910","WriteVFDPFail","EngineVFDRdWtS4"]
["MI911","WriteVFDCnmFail","EngineVFDRdWtS5"]
["MI912","WriteVFDInumFail","EngineVFDRdWtS6"]
["MI913","ReadReGenFail","EngineVFDRdWtS7"]
["MI914","EngVFDWriteFail",null,"The command to the drive failed."]
["MI915","SantFailIIntlz"]
["MI1000",null,null,"OilPressALHH"]
["MI1001",null,null,"HdH2OPresALHH"]
["MI1002",null,null,"EngOutH2OALHH"]
["MI1003",null,null,"H2ONzlePresALHH"]
["MI1004",null,null,"FuelDPALHH"]
["MI1005",null,null,"FuelPresALHH"]
["MI1006",null,null,"H2OJacketDPALHH"]
["MI1007",null,null,"H2OManDPALHH"]
["MI1008",null,null,"DPAirFiltALHH"]
["MI1009",null,null,"DPGasMixerALHH"]
["MI1010",null,null,"ManifoldPresALHH"]
["MI1011",null,null,"ExhCatUpstrALHH"]
["MI1012",null,null,"CrnkcsPresALHH"]
["MI1013",null,null,"ExhManH2OinALHH"]
["MI1014",null,null,"FeedH2oPressALHH"]
["MI1015",null,null,"EncoderALHH"]
["MI1016",null,null,"LBD100AlHH"]
["MI1017",null,null,"LBD101AlHH"]
["MI1018",null,null,"SPR118AlHH"]
["MI1019",null,null,"SPR119AlHH"]
["MI1020",null,null,"SPR120AlHH"]
["MI1021",null,null,"SPR121AlHH"]
["MI1022",null,null,"SPR122AlHH"]
["MI1023",null,null,"SPR123AlHH"]
["MI1024",null,null,"TC124AlHH"]
["MI1025",null,null,"TC125AlHH"]
["MI1026",null,null,"TC126AlHH"]
["MI1027",null,null,"TC127AlHH"]
["MI1028",null,null,"TC128AlHH"]
["MI1029",null,null,"TC129AlHH"]
["MI1030",null,null,"TC130AlHH"]
["MI1031",null,null,"TC131AlHH"]
["MI1032",null,null,"TC132AlHH"]
["MI1033",null,null,"TC133AlHH"]
["MI1034",null,null,"TC134AlHH"]
["MI1035",null,null,"TC135AlHH"]
["MI1036",null,null,"TC136AlHH"]
["MI1037",null,null,"TC137AlHH"]
["MI1038",null,null,"TC140AlHH"]
["MI1039",null,null,"TC141AlHH"]
["MI1040",null,null,"TC142AlHH"]
["MI1041",null,null,"TC143AlHH"]
["MI1042",null,null,"TC144AlHH"]
["MI1043",null,null,"TC145AlHH"]
["MI1044",null,null,"TC146AlHH"]
["MI1045",null,null,"TC147AlHH"]
["MI1046",null,null,"TC148AlHH"]
["MI1047",null,null,"TC149AlHH"]
["MI1048",null,null,"TC150AlHH"]
["MI1049",null,null,"TC151AlHH"]
["MI1050",null,null,"TC152AlHH"]
["MI1051",null,null,"TC153AlHH"]
["MI1067",null,null,"CEMS TEMP HH"]
["MI1500",null,null,"OilPressALH"]
["MI1501",null,null,"HdH2OPresALH"]
["MI1502",null,null,"EngOutH2OALH"]
["MI1503",null,null,"H2ONzlePresALH"]
["MI1504",null,null,"FuelDPALH"]
["MI1505",null,null,"FuelPresALH"]
["MI1506",null,null,"H2OJacketDPALH"]
["MI1507",null,null,"H2OManDPALH"]
["MI1508",null,null,"DPAirFiltALH"]
["MI1509",null,null,"DPGasMixerALH"]
["MI1510",null,null,"ManifoldPresALH"]
["MI1511",null,null,"ExhCatUpstrALH"]
["MI1512",null,null,"CrnkcsPresALH"]
["MI1513",null,null,"ExhManH2OinALH"]
["MI1514",null,null,"FeedH2oPressALH"]
["MI1515",null,null,"EncoderALH"]
["MI1516",null,null,"LambdaALH"]
["MI1517",null,null,"LambdaAftH"]
["MI1518",null,null,"LBD101AlH"]
["MI1519",null,null,"SPR118AlH"]
["MI1520",null,null,"SPR119AlH"]
["MI1521",null,null,"SPR120AlH"]
["MI1522",null,null,"SPR121AlH"]
["MI1523",null,null,"SPR122AlH"]
["MI1524",null,null,"SPR123AlH"]
["MI1525",null,null,"TC125AlHI"]
["MI1526",null,null,"TC126AlHI"]
["MI1527",null,null,"TC127AlHI"]
["MI1528",null,null,"TC128AlHI"]
["MI1529",null,null,"TC129AlHI"]
["MI1530",null,null,"TC130AlHI"]
["MI1531",null,null,"TC131AlHI"]
["MI1532",null,null,"TC132AlHI"]
["MI1533",null,null,"TC133AlHI"]
["MI1534",null,null,"TC134AlHI"]
["MI1535",null,null,"TC135AlHI"]
["MI1536",null,null,"TC136AlHI"]
["MI1537",null,null,"TC137AlHI"]
["MI1538",null,null,"TC140AlHi"]
["MI1539",null,null,"TC141AlHi"]
["MI1540",null,null,"TC142AlHi"]
["MI1541",null,null,"TC143AlHi"]
["MI1542",null,null,"TC144AlHi"]
["MI1543",null,null,"TC145AlHi"]
["MI1544",null,null,"TC146AlHi"]
["MI1545",null,null,"TC147AlHi"]
["MI1546",null,null,"TC148AlHi"]
["MI1547",null,null,"TC149AlHi"]
["MI1548",null,null,"TC150AlHi"]
["MI1549",null,null,"TC151AlHi"]
["MI1550",null,null,"TC152AlHi"]
["MI1551",null,null,"TC153AlHi"]
["MI1567",null,null,"CEMH2OHi"]
["MI2000",null,null,"OilPressAlL0"]
["MI2001",null,null,"HdH2OPresAlL0"]
["MI2002",null,null,"EngOutH2OAlL0"]
["MI2003",null,null,"H2ONzlePresAlL0"]
["MI2004",null,null,"FuelDPAlL0"]
["MI2005",null,null,"FuelPresAlL0"]
["MI2006",null,null,"H2OJacketDPAlL0"]
["MI2007",null,null,"H2OManDPAlL0"]
["MI2008",null,null,"DPAirFiltAlL0"]
["MI2009",null,null,"DPGasMixerAlL0"]
["MI2010",null,null,"ManifoldPresAlL0"]
["MI2011",null,null,"ExhCatUpstrAlL0"]
["MI2012",null,null,"CrnkcsPresAlL0"]
["MI2013",null,null,"ExhManH2OinAlL0"]
["MI2014",null,null,"FeedH2oPressAlL0"]
["MI2015",null,null,"EncoderAlL0"]
["MI2016",null,null,"LBD100AlLo"]
["MI2017",null,null,"LBD101AlLo"]
["MI2018",null,null,"SPR118AlLo"]
["MI2019",null,null,"SPR119AlLo"]
["MI2020",null,null,"SPR120AlLo"]
["MI2021",null,null,"SPR121AlLo"]
["MI2022",null,null,"SPR122AlLo"]
["MI2023",null,null,"SPR123AlLo"]
["MI2024",null,null,"TC124AlLo"]
["MI2025",null,null,"TC125AlLo"]
["MI2026",null,null,"TC126AlLo"]
["MI2027",null,null,"TC127AlLo"]
["MI2028",null,null,"TC128AlLo"]
["MI2029",null,null,"TC129AlLo"]
["MI2030",null,null,"TC130AlLo"]
["MI2031",null,null,"TC131AlLo"]
["MI2032",null,null,"TC132AlLo"]
["MI2033",null,null,"TC133AlLo"]
["MI2034",null,null,"TC134AlLo"]
["MI2035",null,null,"TC135AlLo"]
["MI2036",null,null,"TC136AlLo"]
["MI2037",null,null,"TC137AlLo"]
["MI2038",null,null,"TC140AlLo"]
["MI2039",null,null,"TC141AlLo"]
["MI2040",null,null,"TC142AlLo"]
["MI2041",null,null,"TC143AlLo"]
["MI2042",null,null,"TC144AlLo"]
["MI2043",null,null,"TC145AlLo"]
["MI2044",null,null,"TC146AlLo"]
["MI2045",null,null,"TC147AlLo"]
["MI2046",null,null,"TC148AlLo"]
["MI2047",null,null,"TC149AlLo"]
["MI2048",null,null,"TC150AlLo"]
["MI2049",null,null,"TC151AlLo"]
["MI2050",null,null,"TC152AlLo"]
["MI2051",null,null,"TC153AlLo"]
["MI2067",null,null,"CEMH2OTempLo"]
["MI2500",null,null,"OilPressAlLL"]
["MI2501",null,null,"HdH2OPresAlLL"]
["MI2502",null,null,"EngOutH2OAlLL"]
["MI2503",null,null,"H2ONzlePresAlLL"]
["MI2504",null,null,"FuelDPAlLL"]
["MI2505",null,null,"FuelPresAlLL"]
["MI2506",null,null,"H2OJacketDPAlLL"]
["MI2507",null,null,"H2OManDPAlLL"]
["MI2508",null,null,"DPAirFiltAlLL"]
["MI2509",null,null,"DPGasMixerAlLL"]
["MI2510",null,null,"ManifoldPresAlLL"]
["MI2511",null,null,"ExhCatUpstrAlLL"]
["MI2512",null,null,"CrnkcsPresAlLL"]
["MI2513",null,null,"ExhManH2OinAlLL"]
["MI2514",null,null,"FeedH2oPressAlLL"]
["MI2515",null,null,"EncoderAlLL"]
["MI2516",null,null,"LBD100AlLL"]
["MI2517",null,null,"LBD101AlLL"]
["MI2518",null,null,"SPR118AlLL"]
["MI2519",null,null,"SPR119AlLL"]
["MI2520",null,null,"SPR120AlLL"]
["MI2521",null,null,"SPR121AlLL"]
["MI2522",null,null,"SPR122AlLL"]
["MI2523",null,null,"SPR123AlLL"]
["MI2524",null,null,"TC124AlLL"]
["MI2525",null,null,"TC125AlLL"]
["MI2526",null,null,"TC126AlLL"]
["MI2527",null,null,"TC127AlLL"]
["MI2528",null,null,"TC128AlLL"]
["MI2529",null,null,"TC129AlLL"]
["MI2530",null,null,"TC130AlLL"]
["MI2531",null,null,"TC131AlLL"]
["MI2532",null,null,"TC132AlLL"]
["MI2533",null,null,"TC133AlLL"]
["MI2534",null,null,"TC134AlLL"]
["MI2535",null,null,"TC135AlLL"]
["MI2536",null,null,"TC136AlLL"]
["MI2537",null,null,"TC137AlLL"]
["MI2538",null,null,"TC140AlLL"]
["MI2539",null,null,"TC141AlLL"]
["MI2540",null,null,"TC142AlLL"]
["MI2541",null,null,"TC143AlLL"]
["MI2542",null,null,"TC144AlLL"]
["MI2543",null,null,"TC145AlLL"]
["MI2544",null,null,"TC146AlLL"]
["MI2545",null,null,"TC147AlLL"]
["MI2546",null,null,"TC148AlLL"]
["MI2547",null,null,"TC149AlLL"]
["MI2548",null,null,"TC150AlLL"]
["MI2549",null,null,"TC151AlLL"]
["MI2550",null,null,"TC152AlLL"]
["MI2551",null,null,"TC153AlLL"]
["MI2567",null,null,"CEMS TEMP LOLO"]
["MC1","PCCHPOnOff",null,"CHP on off button"]
["MC2","StartEngineCMD",null,"Starts the engine by setting c2 and c3"]
["MC3","spareMC3"]
["MC4","spareMC4"]
["MC5","spareMC5"]
["MC6","Reset",null,"Resets all the trip alarm etc to zero then allows transition to standby stage"]
["MC7","spareMC7"]
["MC8","spareMC8"]
["MC9","spareMC9"]
["MC10","spareMC10"]
["MC11","spareMC11"]
["MC12","spareMC12"]
["MC13","spareMC13"]
["MC14","spareMC14"]
["MC15","spareMC15"]
["MC16","DiagonsticOn",null,"Diagnostic on only when MC10 is not on"]
["MC17","DiagGenRun",null,"Turn on off generator (y8) when in diagnostic mode"]
["MC18","DiagFuelOn"]
["MC19","DiagIgn",null,"Ignition on in diagnostic"]
["MC20","DiagOilPumpOn"]
["MC21","DiagOilPressAuto"]
["MC22","spareMC22"]
["MC23","DiagH2OEngOn"]
["MC24","DiagH2OEngVavMA"]
["MC25","DiagH2OManOn"]
["MC26","DiagH2OManMA"]
["MC27","DiagEngVacOn"]
["MC28","DiagEngVacMA"]
["MC29","DiagEngTempOn"]
["MC30","DiagMotFanMA"]
["MC31","DiagRegOn"]
["MC32","DiagRegIPMA"]
["MC33","RampCmd",null,"Ramping the gas pressure from setpoint to 5"]
["MC34","COLambdaCntOn",null,"Turns on the automatic lambda control using CO control.  "]
["MC40","GastoMixRegSet",null,"Gas pressure control sets the regulator head pressure"]
["MC41","GastoMixSet",null,"GastoMix controller sets the gas pressure to the mixer using GastoMix PV pressure"]
["MC71","RECAL_REQUEST",null,"Request from the calibration procedure to redo the calibration"]
["MC72","THREE_BAD_CALS",null,"Three bad calibration attempts"]
["MC73","NO_COUNT",null,"Bit is set to not log data during calibration"]
["MC74","CEMS_OFFLINE",null,"CEMS logging is offline"]
["MC75","CEMS_ONLINE",null,"CEMS logging is online"]
["MC80","ZeroSensors",null,"Write wx61 - 65 to rmin61- 65 and write wx60 to rmax60"]
["MC81","SpanSensors",null,"Write wx61 - 65 to rmax61 -65 and write wx60 to rmin60"]
["MC82","CALIBRATE_BIT",null,"Used to indicate the CEMS systems is in calibration mode"]
["MC83","SpanCemsGas1"]
["MC84","SpanCemsNO2"]
["MC95","PCScalingWrit",null,4]
["MC96","WritePNum",null,"Write Pnumbers to the drive"]
["MC97","WriteCNumCmd",null,"Change the C numbers in the santerno"]
["MC100","JumpOutStage0",null,"Manual jump trigger out of stage 0 to stage 1"]
["MC101","JumpOutStage1",null,"Manual jump trigger out of stage 1 to stage 2 Feedstart stage"]
["MC102","JumpOutStage2",null,"Manual jump trigger out of stage 2 to stage 3 OilStarting stage"]
["MC103","JumpOutStage3",null,"Manual jump trigger out of stage 3 to stage 4 SlowRollEngine Stage"]
["MC104","JumpOutStage4",null,"Manual jump trigger out of stage 4 to stage 5 SetVFDIgnition Stage"]
["MC105","JumpOutStage5",null,"Manual jump trigger out of stage 5 to stage 6 WarmUPandCheck Stage"]
["MC3000","mbAlarmbit0",null,"Alarm bit enginunit0"]
["MC3001","mbAlarmbit1",null,"Alarm bit enginunit1"]
["MC3002","mbAlarmbit2",null,"Alarm bit enginunit2"]
["MC3003","mbAlarmbit3",null,"Alarm bit enginunit3"]
["MC3004","mbAlarmbit4",null,"Alarm bit enginunit4"]
["MC3005","mbAlarmbit5",null,"Alarm bit enginunit5"]
["MC3006","mbAlarmbit6",null,"Alarm bit enginunit6"]
["MC3007","mbAlarmbit7",null,"Alarm bit enginunit7"]
["MC3008","mbAlarmbit8",null,"Alarm bit enginunit8"]
["MC3009","mbAlarmbit9",null,"Alarm bit enginunit9"]
["MC3010","mbAlarmbit10",null,"Alarm bit enginunit10"]
["MC3011","mbAlarmbit11",null,"Alarm bit enginunit11"]
["MC3012","mbAlarmbit12",null,"Alarm bit enginunit12"]
["MC3013","mbAlarmbit13",null,"Alarm bit enginunit13"]
["MC3014","mbAlarmbit14",null,"Alarm bit enginunit14"]
["MC3015","mbAlarmbit15",null,"Alarm bit enginunit15"]
["MC3016","mbAlarmbit16",null,"Alarm bit enginunit16"]
["MC3017","mbAlarmbit17",null,"Alarm bit enginunit17"]
["MC3018","mbAlarmbit18",null,"Alarm bit enginunit18"]
["MC3019","mbAlarmbit19",null,"Alarm bit enginunit19"]
["MC3020","mbAlarmbit20",null,"Alarm bit enginunit20"]
["MC3021","mbAlarmbit21",null,"Alarm bit enginunit21"]
["MC3022","mbAlarmbit22",null,"Alarm bit enginunit22"]
["MC3023","mbAlarmbit23",null,"Alarm bit enginunit23"]
["MC3024","mbAlarmbit24",null,"Alarm bit enginunit24"]
["MC3025","mbAlarmbit25",null,"Alarm bit enginunit25"]
["MC3026","mbAlarmbit26",null,"Alarm bit enginunit26"]
["MC3027","mbAlarmbit27",null,"Alarm bit enginunit27"]
["MC3028","mbAlarmbit28",null,"Alarm bit enginunit28"]
["MC3029","mbAlarmbit29",null,"Alarm bit enginunit29"]
["MC3030","mbAlarmbit30",null,"Alarm bit enginunit30"]
["MC3031","mbAlarmbit31",null,"Alarm bit enginunit31"]
["MC3032","mbAlarmbit32",null,"Alarm bit enginunit32"]
["MC3033","mbAlarmbit33",null,"Alarm bit enginunit33"]
["MC3034","mbAlarmbit34",null,"Alarm bit enginunit34"]
["MC3035","mbAlarmbit35",null,"Alarm bit enginunit35"]
["MC3036","mbAlarmbit36",null,"Alarm bit enginunit36"]
["MC3037","mbAlarmbit37",null,"Alarm bit enginunit37"]
["MC3038","mbAlarmbit38",null,"Alarm bit enginunit38"]
["MC3039","mbAlarmbit39",null,"Alarm bit enginunit39"]
["MC3040","mbAlarmbit40",null,"Alarm bit enginunit40"]
["MC3041","mbAlarmbit41",null,"Alarm bit enginunit41"]
["MC3042","mbAlarmbit42",null,"Alarm bit enginunit42"]
["MC3043","mbAlarmbit43",null,"Alarm bit enginunit43"]
["MC3044","mbAlarmbit44",null,"Alarm bit enginunit44"]
["MC3045","mbAlarmbit45",null,"Alarm bit enginunit45"]
["MC3046","mbAlarmbit46",null,"Alarm bit enginunit46"]
["MC3047","mbAlarmbit47",null,"Alarm bit enginunit47"]
["MC3048","mbAlarmbit48",null,"Alarm bit enginunit48"]
["MC3049","mbAlarmbit49",null,"Alarm bit enginunit49"]
["MC3050","mbAlarmbit50",null,"Alarm bit enginunit50"]
["MC3051","mbAlarmbit51",null,"Alarm bit enginunit51"]
["MC3052","mbAlarmbit52",null,"Alarm bit enginunit52"]
["MC3053","mbAlarmbit53",null,"Alarm bit enginunit53"]
["MC3054","mbAlarmbit54",null,"Alarm bit enginunit54"]
["MC3055","mbAlarmbit55",null,"Alarm bit enginunit55"]
["MC3056","mbAlarmbit56",null,"Alarm bit enginunit56"]
["MC3057","mbAlarmbit57",null,"Alarm bit enginunit57"]
["MC3058","mbAlarmbit58",null,"Alarm bit enginunit58"]
["MC3059","mbAlarmbit59",null,"Alarm bit enginunit59"]
["MC3060","mbAlarmbit60",null,"Alarm bit enginunit60"]
["MC3061","mbAlarmbit61",null,"Alarm bit enginunit61"]
["MC3062","mbAlarmbit62",null,"Alarm bit enginunit62"]
["MC3063","mbAlarmbit63",null,"Alarm bit enginunit63"]
["MC3064","mbAlarmbit64",null,"Alarm bit enginunit64"]
["MC3065","mbAlarmbit65",null,"Alarm bit enginunit65"]
["MC3066","mbAlarmbit66",null,"Alarm bit enginunit66"]
["MC3067","mbAlarmbit67",null,"Alarm bit enginunit67"]
["MC3068","mbAlarmbit68",null,"Alarm bit enginunit68"]
["MC3069","mbAlarmbit69",null,"Alarm bit enginunit69"]
["MC3070","mbAlarmbit70",null,"Alarm bit enginunit70"]
["MC3071","mbAlarmbit71",null,"Alarm bit enginunit71"]
["MC3072","mbAlarmbit72",null,"Alarm bit enginunit72"]
["MC3073","mbAlarmbit73",null,"Alarm bit enginunit73"]
["MC4000","mbTipbit0",null,"Trip bit for enginunit0"]
["MC4001","mbTipbit1",null,"Trip bit for enginunit1"]
["MC4002","mbTipbit2",null,"Trip bit for enginunit2"]
["MC4003","mbTipbit3",null,"Trip bit for enginunit3"]
["MC4004","mbTipbit4",null,"Trip bit for enginunit4"]
["MC4005","mbTipbit5",null,"Trip bit for enginunit5"]
["MC4006","mbTipbit6",null,"Trip bit for enginunit6"]
["MC4007","mbTipbit7",null,"Trip bit for enginunit7"]
["MC4008","mbTipbit8",null,"Trip bit for enginunit8"]
["MC4009","mbTipbit9",null,"Trip bit for enginunit9"]
["MC4010","mbTipbit10",null,"Trip bit for enginunit10"]
["MC4011","mbTipbit11",null,"Trip bit for enginunit11"]
["MC4012","mbTipbit12",null,"Trip bit for enginunit12"]
["MC4013","mbTipbit13",null,"Trip bit for enginunit13"]
["MC4014","mbTipbit14",null,"Trip bit for enginunit14"]
["MC4015","mbTipbit15",null,"Trip bit for enginunit15"]
["MC4016","mbTipbit16",null,"Trip bit for enginunit16"]
["MC4017","mbTipbit17",null,"Trip bit for enginunit17"]
["MC4018","mbTipbit18",null,"Trip bit for enginunit18"]
["MC4019","mbTipbit19",null,"Trip bit for enginunit19"]
["MC4020","mbTipbit20",null,"Trip bit for enginunit20"]
["MC4021","mbTipbit21",null,"Trip bit for enginunit21"]
["MC4022","mbTipbit22",null,"Trip bit for enginunit22"]
["MC4023","mbTipbit23",null,"Trip bit for enginunit23"]
["MC4024","mbTipbit24",null,"Trip bit for enginunit24"]
["MC4025","mbTipbit25",null,"Trip bit for enginunit25"]
["MC4026","mbTipbit26",null,"Trip bit for enginunit26"]
["MC4027","mbTipbit27",null,"Trip bit for enginunit27"]
["MC4028","mbTipbit28",null,"Trip bit for enginunit28"]
["MC4029","mbTipbit29",null,"Trip bit for enginunit29"]
["MC4030","mbTipbit30",null,"Trip bit for enginunit30"]
["MC4031","mbTipbit31",null,"Trip bit for enginunit31"]
["MC4032","mbTipbit32",null,"Trip bit for enginunit32"]
["MC4033","mbTipbit33",null,"Trip bit for enginunit33"]
["MC4034","mbTipbit34",null,"Trip bit for enginunit34"]
["MC4035","mbTipbit35",null,"Trip bit for enginunit35"]
["MC4036","mbTipbit36",null,"Trip bit for enginunit36"]
["MC4037","mbTipbit37",null,"Trip bit for enginunit37"]
["MC4038","mbTipbit38",null,"Trip bit for enginunit38"]
["MC4039","mbTipbit39",null,"Trip bit for enginunit39"]
["MC4040","mbTipbit40",null,"Trip bit for enginunit40"]
["MC4041","mbTipbit41",null,"Trip bit for enginunit41"]
["MC4042","mbTipbit42",null,"Trip bit for enginunit42"]
["MC4043","mbTipbit43",null,"Trip bit for enginunit43"]
["MC4044","mbTipbit44",null,"Trip bit for enginunit44"]
["MC4045","mbTipbit45",null,"Trip bit for enginunit45"]
["MC4046","mbTipbit46",null,"Trip bit for enginunit46"]
["MC4047","mbTipbit47",null,"Trip bit for enginunit47"]
["MC4048","mbTipbit48",null,"Trip bit for enginunit48"]
["MC4049","mbTipbit49",null,"Trip bit for enginunit49"]
["MC4050","mbTipbit50",null,"Trip bit for enginunit50"]
["MC4051","mbTipbit51",null,"Trip bit for enginunit51"]
["MC4052","mbTipbit52",null,"Trip bit for enginunit52"]
["MC4053","mbTipbit53",null,"Trip bit for enginunit53"]
["MC4054","mbTipbit54",null,"Trip bit for enginunit54"]
["MC4055","mbTipbit55",null,"Trip bit for enginunit55"]
["MC4056","mbTipbit56",null,"Trip bit for enginunit56"]
["MC4057","mbTipbit57",null,"Trip bit for enginunit57"]
["MC4058","mbTipbit58",null,"Trip bit for enginunit58"]
["MC4059","mbTipbit59",null,"Trip bit for enginunit59"]
["MC4060","mbTipbit60",null,"Trip bit for enginunit60"]
["MC4061","mbTipbit61",null,"Trip bit for enginunit61"]
["MC4062","mbTipbit62",null,"Trip bit for enginunit62"]
["MC4063","mbTipbit63",null,"Trip bit for enginunit63"]
["MC4064","mbTipbit64",null,"Trip bit for enginunit64"]
["MC4065","mbTipbit65",null,"Trip bit for enginunit65"]
["MC4066","mbTipbit66",null,"Trip bit for enginunit66"]
["MC4067","mbTipbit67",null,"Trip bit for enginunit67"]
["MC4068","mbTipbit68",null,"Trip bit for enginunit68"]
["MC4069","mbTipbit69",null,"Trip bit for enginunit69"]
["MC4070","mbTipbit70",null,"Trip bit for enginunit70"]
["MC4071","mbTipbit71",null,"Trip bit for enginunit71"]
["MC4072","mbTipbit72",null,"Trip bit for enginunit72"]
["MC4073","mbTipbit73",null,"Trip bit for enginunit73"]
["MC4074","mbTipbit74",null,"Trip bit for enginunit74"]
["MC4075","mbTipbit75",null,"Trip bit for enginunit75"]
["MC4200","WXcritRd0",null,"Critical Read Channel WX0"]
["MC4201","WXcritRd1",null,"Critical Read Channel WX1"]
["MC4202","WXcritRd2",null,"Critical Read Channel WX2"]
["MC4203","WXcritRd3",null,"Critical Read Channel WX3"]
["MC4204","WXcritRd4",null,"Critical Read Channel WX4"]
["MC4205","WXcritRd5",null,"Critical Read Channel WX5"]
["MC4206","WXcritRd6",null,"Critical Read Channel WX6"]
["MC4207","WXcritRd7",null,"Critical Read Channel WX7"]
["MC4208","WXcritRd8",null,"Critical Read Channel WX8"]
["MC4209","WXcritRd9",null,"Critical Read Channel WX9"]
["MC4210","WXcritRd10",null,"Critical Read Channel WX10"]
["MC4211","WXcritRd11",null,"Critical Read Channel WX11"]
["MC4212","WXcritRd12",null,"Critical Read Channel WX12"]
["MC4213","WXcritRd13",null,"Critical Read Channel WX13"]
["MC4214","WXcritRd14",null,"Critical Read Channel WX14"]
["MC4215","WXcritRd15",null,"Critical Read Channel WX15"]
["MC4216","WXcritRd16",null,"Critical Read Channel WX16"]
["MC4217","WXcritRd17",null,"Critical Read Channel WX17"]
["MC4218","WXcritRd18",null,"Critical Read Channel WX18"]
["MC4219","WXcritRd19",null,"Critical Read Channel WX19"]
["MC4220","WXcritRd20",null,"Critical Read Channel WX20"]
["MC4221","WXcritRd21",null,"Critical Read Channel WX21"]
["MC4222","WXcritRd22",null,"Critical Read Channel WX22"]
["MC4223","WXcritRd23",null,"Critical Read Channel WX23"]
["MC4224","WXcritRd24",null,"Critical Read Channel WX24"]
["MC4225","WXcritRd25",null,"Critical Read Channel WX25"]
["MC4226","WXcritRd26",null,"Critical Read Channel WX26"]
["MC4227","WXcritRd27",null,"Critical Read Channel WX27"]
["MC4228","WXcritRd28",null,"Critical Read Channel WX28"]
["MC4229","WXcritRd29",null,"Critical Read Channel WX29"]
["MC4230","WXcritRd30",null,"Critical Read Channel WX30"]
["MC4231","WXcritRd31",null,"Critical Read Channel WX31"]
["MC4232","WXcritRd32",null,"Critical Read Channel WX32"]
["MC4233","WXcritRd33",null,"Critical Read Channel WX33"]
["MC4234","WXcritRd34",null,"Critical Read Channel WX34"]
["MC4235","WXcritRd35",null,"Critical Read Channel WX35"]
["MC4236","WXcritRd36",null,"Critical Read Channel WX36"]
["MC4237","WXcritRd37",null,"Critical Read Channel WX37"]
["MC4238","WXcritRd38",null,"Critical Read Channel WX38"]
["MC4239","WXcritRd39",null,"Critical Read Channel WX39"]
["MC4240","WXcritRd40",null,"Critical Read Channel WX40"]
["MC4241","WXcritRd41",null,"Critical Read Channel WX41"]
["MC4242","WXcritRd42",null,"Critical Read Channel WX42"]
["MC4243","WXcritRd43",null,"Critical Read Channel WX43"]
["MC4244","WXcritRd44",null,"Critical Read Channel WX44"]
["MC4245","WXcritRd45",null,"Critical Read Channel WX45"]
["MC4246","WXcritRd46",null,"Critical Read Channel WX46"]
["MC4247","WXcritRd47",null,"Critical Read Channel WX47"]
["MC4248","WXcritRd48",null,"Critical Read Channel WX48"]
["MC4249","WXcritRd49",null,"Critical Read Channel WX49"]
["MC4250","WXcritRd50",null,"Critical Read Channel WX50"]
["MC4251","WXcritRd51",null,"Critical Read Channel WX51"]
["MC4252","WXcritRd52",null,"Critical Read Channel WX52"]
["MC4253","WXcritRd53",null,"Critical Read Channel WX53"]
["MC4254","WXcritRd54",null,"Critical Read Channel WX54"]
["MC4255","WXcritRd55",null,"Critical Read Channel WX55"]
["MC4256","WXcritRd56",null,"Critical Read Channel WX56"]
["MC4257","WXcritRd57",null,"Critical Read Channel WX57"]
["MC4258","WXcritRd58",null,"Critical Read Channel WX58"]
["MC4259","WXcritRd59",null,"Critical Read Channel WX59"]
["MC4260","WXcritRd60",null,"Critical Read Channel WX60"]
["MC4261","WXcritRd61",null,"Critical Read Channel WX61"]
["MC4262","WXcritRd62",null,"Critical Read Channel WX62"]
["MC4263","WXcritRd63",null,"Critical Read Channel WX63"]
["MC4264","WXcritRd64",null,"Critical Read Channel WX64"]
["MC4265","WXcritRd65",null,"Critical Read Channel WX65"]
["MC4266","WXcritRd66",null,"Critical Read Channel WX66"]
["MC4267","WXcritRd67",null,"Critical Read Channel WX67"]
["MC4268","WXcritRd68",null,"Critical Read Channel WX68"]
["MC4269","WXcritRd69",null,"Critical Read Channel WX69"]
["MC4270","WXcritRd70",null,"Critical Read Channel WX70"]
["MC4271","WXcritRd71",null,"Critical Read Channel WX71"]
["MC4272","WXcritRd72",null,"Critical Read Channel WX72"]
["MC4273","WXcritRd73",null,"Critical Read Channel WX73"]
["MC4274","WXcritRd74",null,"Critical Read Channel WX74"]
["MC4275","WXcritRd75",null,"Critical Read Channel WX75"]
["MC4276","WXcritRd76",null,"Critical Read Channel WX76"]
["MC4277","WXcritRd77",null,"Critical Read Channel WX77"]
["MC4278","WXcritRd78",null,"Critical Read Channel WX78"]
["MC4279","WXcritRd79",null,"Critical Read Channel WX79"]
["MC4280","WXcritRd80",null,"Critical Read Channel WX80"]
["MC4281","WXcritRd81",null,"Critical Read Channel WX81"]
["MC4282","WXcritRd82",null,"Critical Read Channel WX82"]
["MC4283","WXcritRd83",null,"Critical Read Channel WX83"]
["MC4284","WXcritRd84",null,"Critical Read Channel WX84"]
["MC4285","WXcritRd85",null,"Critical Read Channel WX85"]
["MC4286","WXcritRd86",null,"Critical Read Channel WX86"]
["MC4287","WXcritRd87",null,"Critical Read Channel WX87"]
["MC4288","WXcritRd88",null,"Critical Read Channel WX88"]
["MC4289","WXcritRd89",null,"Critical Read Channel WX89"]
["MC4290","WXcritRd90",null,"Critical Read Channel WX90"]
["MC4291","WXcritRd91",null,"Critical Read Channel WX91"]
["MC4292","WXcritRd92",null,"Critical Read Channel WX92"]
["MC4293","WXcritRd93",null,"Critical Read Channel WX93"]
["MC4294","WXcritRd94",null,"Critical Read Channel WX94"]
["MC4295","WXcritRd95",null,"Critical Read Channel WX95"]
["MC4296","WXcritRd96",null,"Critical Read Channel WX96"]
["MC4297","WXcritRd97",null,"Critical Read Channel WX97"]
["MC4298","WXcritRd98",null,"Critical Read Channel WX98"]
["MC4299","WXcritRd99",null,"Critical Read Channel WX99"]
["MC4300","WXcritRd100",null,"Critical Read Channel WX100"]
["MC4301","WXcritRd101",null,"Critical Read Channel WX101"]
["MC4302","WXcritRd102",null,"Critical Read Channel WX102"]
["MC4303","WXcritRd103",null,"Critical Read Channel WX103"]
["MC4304","WXcritRd104",null,"Critical Read Channel WX104"]
["MC4305","WXcritRd105",null,"Critical Read Channel WX105"]
["MC4306","WXcritRd106",null,"Critical Read Channel WX106"]
["MC4307","WXcritRd107",null,"Critical Read Channel WX107"]
["MC4308","WXcritRd108",null,"Critical Read Channel WX108"]
["MC4309","WXcritRd109",null,"Critical Read Channel WX109"]
["MC4310","WXcritRd110",null,"Critical Read Channel WX110"]
["MC4311","WXcritRd111",null,"Critical Read Channel WX111"]
["MC4312","WXcritRd112",null,"Critical Read Channel WX112"]
["MC4313","WXcritRd113",null,"Critical Read Channel WX113"]
["MC4314","WXcritRd114",null,"Critical Read Channel WX114"]
["MC4315","WXcritRd115",null,"Critical Read Channel WX115"]
["MC4316","WXcritRd116",null,"Critical Read Channel WX116"]
["MC4317","WXcritRd117",null,"Critical Read Channel WX117"]
["MC4318","WXcritRd118",null,"Critical Read Channel WX118"]
["MC4319","WXcritRd119",null,"Critical Read Channel WX119"]
["MC4320","WXcritRd120",null,"Critical Read Channel WX120"]
["MC4321","WXcritRd121",null,"Critical Read Channel WX121"]
["MC4322","WXcritRd122",null,"Critical Read Channel WX122"]
["MC4323","WXcritRd123",null,"Critical Read Channel WX123"]
["MC4324","WXcritRd124",null,"Critical Read Channel WX124"]
["MC4325","WXcritRd125",null,"Critical Read Channel WX125"]
["MC4326","WXcritRd126",null,"Critical Read Channel WX126"]
["MC4327","WXcritRd127",null,"Critical Read Channel WX127"]
["MC4328","WXcritRd128",null,"Critical Read Channel WX128"]
["MC4329","WXcritRd129",null,"Critical Read Channel WX129"]
["MC4330","WXcritRd130",null,"Critical Read Channel WX130"]
["MC4331","WXcritRd131",null,"Critical Read Channel WX131"]
["MC4332","WXcritRd132",null,"Critical Read Channel WX132"]
["MC4333","WXcritRd133",null,"Critical Read Channel WX133"]
["MC4334","WXcritRd134",null,"Critical Read Channel WX134"]
["MC4335","WXcritRd135",null,"Critical Read Channel WX135"]
["MIR1000","ModbusWX0","OilPressMR","Modbus Raw input"]
["MIR1001","ModbusWX1","HdH2OPresMR","Modbus Raw input"]
["MIR1002","ModbusWX2","EngOutH2OMR","Modbus Raw input"]
["MIR1003","ModbusWX3","H2ONzlePresMR","Modbus Raw input"]
["MIR1004","ModbusWX4","FuelDPMR","Modbus Raw input"]
["MIR1005","ModbusWX5","FuelPresMR","Modbus Raw input"]
["MIR1006","ModbusWX6","H2OJacketDPMR","Modbus Raw input"]
["MIR1007","ModbusWX7","H2OManDPMR","Modbus Raw input"]
["MIR1008","ModbusWX8","DPAirFiltMR","Modbus Raw input"]
["MIR1009","ModbusWX9","DPGasMixerMR","Modbus Raw input"]
["MIR1010","ModbusWX10","ManifoldPresMR","Modbus Raw input"]
["MIR1011","ModbusWX11","ExhCatUpstrMR","Modbus Raw input"]
["MIR1012","ModbusWX12","CrankcasePresMR","Modbus Raw input"]
["MIR1013","ModbusWX13","ExhManH2OinMR","Modbus Raw input"]
["MIR1014","ModbusWX14","FeedH2oPressMR","Modbus Raw input"]
["MIR1015","ModbusWX15","EncoderMR","Modbus Raw input"]
["MIR1016","ModbusWX16","LambdaB4MRa","Modbus Raw input"]
["MIR1017","ModbusWX17","SpareMRa","Modbus Raw input"]
["MIR1018","ModbusWX18","SpareMRa","Modbus Raw input"]
["MIR1019","ModbusWX19","SpareMRa","Modbus Raw input"]
["MIR1020","ModbusWX20","SpareMRa","Modbus Raw input"]
["MIR1021","ModbusWX21","SpareMRa","Modbus Raw input"]
["MIR1022","ModbusWX22","SpareMRa","Modbus Raw input"]
["MIR1023","ModbusWX23","SpareMRa","Modbus Raw input"]
["MIR1024","ModbusWX24","EngExhst1MRa","Modbus Raw input"]
["MIR1025","ModbusWX25","EngExhst2MRa","Modbus Raw input"]
["MIR1026","ModbusWX26","EngExhst3MRa","Modbus Raw input"]
["MIR1027","ModbusWX27","EngExhst4MRa","Modbus Raw input"]
["MIR1028","ModbusWX28","EngExhst5MRa","Modbus Raw input"]
["MIR1029","ModbusWX29","EngExhst6MRa","Modbus Raw input"]
["MIR1030","ModbusWX30","EngExhst7MRa","Modbus Raw input"]
["MIR1031","ModbusWX31","EngExhst8MRa","Modbus Raw input"]
["MIR1032","ModbusWX32","H2OHeadRtMRa","Modbus Raw input"]
["MIR1033","ModbusWX33","H2OHeadLfMRa","Modbus Raw input"]
["MIR1034","ModbusWX34","H2OExhstMnRtMRa","Modbus Raw input"]
["MIR1035","ModbusWX35","H2OExhstMnLfMRa","Modbus Raw input"]
["MIR1036","ModbusWX36","AirInTempMRa","Modbus Raw input"]
["MIR1037","ModbusWX37","ManIfldTempMRa","Modbus Raw input"]
["MIR1040","ModbusWX40","FuelTempMRa","Modbus Raw input"]
["MIR1041","ModbusWX41","ExhstRtMRa","Modbus Raw input"]
["MIR1042","ModbusWX42","ExhstLtMRa","Modbus Raw input"]
["MIR1043","ModbusWX43","CatouttempMRa","Modbus Raw input"]
["MIR1044","ModbusWX44","OilTankMRa","Modbus Raw input"]
["MIR1045","ModbusWX45","OilFilterMRa","Modbus Raw input"]
["MIR1046","ModbusWX46","OilHXH2OinMRa","Modbus Raw input"]
["MIR1047","ModbusWX47","OilHXH2OoutMRa","Modbus Raw input"]
["MIR1048","ModbusWX48","GenAirOutMRa","Modbus Raw input"]
["MIR1049","ModbusWX49","GenWindMRa","Modbus Raw input"]
["MIR1050","ModbusWX50",null,"Modbus Raw input"]
["MIR1051","ModbusWX51",null,"Modbus Raw input"]
["MIR1052","ModbusWX52",null,"Modbus Raw input"]
["MIR1053","ModbusWX53",null,"Modbus Raw input"]
["MIR2000","PT100MReal","RX0"]
["MIR2002","PT101MReal","RX1"]
["MIR2004","PT102MReal","RX2"]
["MIR2006","PT103MReal","RX3"]
["MIR2008","FT100MReal","RX4"]
["MIR2010","PT104MReal","RX5"]
["MIR2012","FT101MReal","RX6"]
["MIR2014","FT102MReal","RX7"]
["MIR2016","FT103MReal","RX8"]
["MIR2018","FT104MReal","RX9"]
["MIR2020","PT105MReal","RX10"]
["MIR2022","PT106MReal","RX11"]
["MIR2024","PT107MReal","RX12"]
["MIR2026","PT108MReal","RX13"]
["MIR2028","PT109MReal","RX14"]
["MIR2030","INC100MReal","RX15"]
["MIR2032","LBD100MReal","RX16"]
["MIR2034","LBD101MReal","RX17"]
["MIR2036","SPR118MReal","RX18"]
["MIR2038","SPR119MReal","RX19"]
["MIR2040","SPR120MReal","RX20"]
["MIR2042","SPR121MReal","RX21"]
["MIR2044","SPR122MReal","RX22"]
["MIR2046","SPR123MReal","RX23"]
["MIR2048","TC124MReal","RX24"]
["MIR2050","TC125MReal","RX25"]
["MIR2052","TC126MReal","RX26"]
["MIR2054","TC127MReal","RX27"]
["MIR2056","TC128MReal","RX28"]
["MIR2058","TC129MReal","RX29"]
["MIR2060","TC130MReal","RX30"]
["MIR2062","TC131MReal","RX31"]
["MIR2064","TC132MReal","RX32"]
["MIR2066","TC133MReal","RX33"]
["MIR2068","TC134MReal","RX34"]
["MIR2070","TC135MReal","RX35"]
["MIR2072","TC136MReal","RX36"]
["MIR2074","TC137MReal","RX37"]
["MIR2080","TC140MReal","RX40"]
["MIR2082","TC141MReal","RX41"]
["MIR2084","TC142MReal","RX42"]
["MIR2086","TC143MReal","RX43"]
["MIR2088","TC144MReal","RX44"]
["MIR2090","TC145MReal","RX45"]
["MIR2092","TC146MReal","RX46"]
["MIR2094","TC147MReal","RX47"]
["MIR2096","TC148MReal","RX48"]
["MIR2098","TC149MReal","RX49"]
["MIR2100","TC151MReal","RX50"]
["MIR2102","TC152MReal","RX51"]
["MIR2104","TC153MReal","RX52"]
["MIR2106",null,"RX53"]
["MIR2108",null,"RX54"]
["MIR2110",null,"RX55"]
["MIR2112",null,"RX56"]
["MIR2114",null,"RX57"]
["MIR2116",null,"RX58"]
["MIR2118",null,"RX59"]
["MIR2120","O2MReal","RX60"]
["MIR2122","NOLowPPMMReal"]
["MIR2124","NOHiPPMMReal"]
["MIR2126","COppmMReal"]
["MIR2128","NO2PPMMReal"]
["MIR2130","CO2PercentMReal"]
["MIR2132","CEMcabTempMReal"]
["MIR2134","CEMH20TempMReal"]
["MIR2140","MVFD0MReal",null,"SpeedRefInt"]
["MIR2142","MVFD1MReal",null,"SpeedRefDec"]
["MIR2144","MVFD2MReal",null,"SPEEDRAMPInt"]
["MIR2146","MVFD3MReal",null,"SPEEDRAMPDec"]
["MIR2148","MVFD4MReal",null,"MOTORSPEEDInt"]
["MIR2150","MVFD5MReal",null,"MOTORSPEEDDec"]
["MIR2152","MVFD6MReal",null,"FreqOut"]
["MIR2154","MVFD7MReal",null,"TorqRef"]
["MIR2156","MVFD8MReal",null,"TorqDemd"]
["MIR2158","MVFD9MReal",null,"MotorTorq"]
["MIR2160","MVFD10MReal",null,"TorqRefPct"]
["MIR2162","MVFD11MReal",null,"TorqDemdPct"]
["MIR2164","MVFD12MReal",null,"MotorTorqPct"]
["MIR2166","MVFD13MReal",null,"MotorTorqLimt"]
["MIR2168","MVFD14MReal",null,"MotTorqUsed"]
["MIR2170","MVFD15MReal",null,"MotTorqPctUsed"]
["MIR2172","MVFD16MReal",null,"TorqueLimPctUse"]
["MIR2174","MVFD17MReal",null,"FluxRef"]
["MIR2176","MVFD18MReal",null,"PIDRef"]
["MIR2178","MVFD19MReal",null,"RefPID"]
["MIR2180","MVFD20MReal",null,"PidFeedbkPCT"]
["MIR2182","MVFD21MReal",null,"PIDError"]
["MIR2184","MVFD22MReal",null,"PIDOutPCT"]
["MIR2186","MVFD23MReal",null,"PIDRefUsed"]
["MIR2188","MVFD24MReal",null,"PidFeedbk"]
["MIR2190","MVFD25MReal",null,"PIDOutput"]
["MIR2192","MVFD26MReal",null,"AmpOut"]
["MIR2194","MVFD27MReal",null,"VoltOut"]
["MIR2196","MVFD28MReal",null,"KwOut"]
["MIR2198","MVFD29MReal",null,"DCBusVolt"]
["MIR2200","MVFD30MReal",null,"SupplyVolt"]
["MIR2202","MVFD31MReal",null,"DigInputsDel"]
["MIR2204","MVFD62MReal","AmbientTemp"]
["MIR2206","MVFD64MReal","IGBTTemp"]
["MIR2208","MVFD65MReal","OperateTimeC"]
["MIR2210","MVFD89MReal","InvrtState"]
["MHR10","mEngineVFDSP",null,"Goes to IVFD25 It is used for both the CHP operation and diagnositics"]
["MHR11","mEngineVFDTorq",null,"Goes to IVFD29"]
["MHR12","mStartSpeedSP",null,"Outputs the start speed to IVFD25 which goes to the drive"]
["MHR13","mIdleBandWidthHi"]
["MHR14","mIdleBandWidthLo"]
["MHR15","mRPMLimit"]
["MHR16","mKWsp"]
["MHR17","m17"]
["MHR18","m18"]
["MHR19","m19"]
["MHR20","OilPreSP",null,"diagnostic OnOff is mc20"]
["MHR21","mOilPumpSpeed",null,"diagnostic ManAuto is mc20"]
["MHR22","OilSpeed"]
["MHR23","mH2OEngSP",null,"Engine Block water flow rate setpoint times 10"]
["MHR24","MH2OEngValve",null,"diagnostic ManAuto is mc24"]
["MHR25","mH2OManSP",null,"Manifold water flow rate setting * 10"]
["MHR26","MH2OManValve",null,"diagnostic ManAuto is mc25"]
["MHR27","mEngVacSP",null,"diagnostic OnOff is mc25"]
["MHR28","mEngVacSpeed",null,"diagnostic ManAuto is mc26"]
["MHR29","mEngTempSP",null,"diagnostic OnOff is mc24"]
["MHR30","mMotFanSpeed",null,"diagnostic ManAuto is mc25"]
["MHR31","mRegSP",null,"diagnostic OnOff is mc25"]
["MHR32","mRegIPOut",null,"diagnostic OnOff is mc24"]
["MHR33","GasPresCtlSelect",null,"0-Gas pressure control sets the regulator head pressure.1- PV is GastoMix pressure 2- PV is the average of 2 lambdas R10"]
["MHR34","LambdaSP10000",null,"Lambda setpoint times 10000"]
["MHR35","COlowLimit",null,"Lower limit of CO below which 1/10000 is added tot the lambdacnt setpoint  "]
["MHR36","COhighLimit",null,"Lower limit of CO below which 1/10000 is added tot the lambdacnt setpoint  "]
["MHR100","PC_FDFanSetpt",null,"Goes to R100"]
["MHR300","PC_SteamPreSet",null,"Goes to R300"]
["MHR800","PC_PurgeSpeed",null,"goes to R800"]
["MHR1200","Mod_rmin0","Rmin0"]
["MHR1201","HdH2OPresM0","Rmin1"]
["MHR1202","EngOutH2OM0","Rmin2"]
["MHR1203","H2ONzlePresM0","Rmin3"]
["MHR1204","FuelDPM0","Rmin4"]
["MHR1205","FuelPresM0","Rmin5"]
["MHR1206","H2OJacketDPM0","Rmin6"]
["MHR1207","H2OManDPM0","Rmin7"]
["MHR1208","DPAirFiltM0","Rmin8"]
["MHR1209","DPGasMixerM0","Rmin9"]
["MHR1210","ManifoldPresM0","Rmin10"]
["MHR1211","ExhCatUpstrM0","Rmin11"]
["MHR1212","CrnkCsPresM0","Rmin12"]
["MHR1213","ExhManH2OinM0","Rmin13"]
["MHR1214","FeedH2oPressM0","Rmin14"]
["MHR1215","EncoderM0","Rmin15"]
["MHR1400","Mod_rmax","Rmax0"]
["MHR1401","HdH2OPresMspn","Rmax1"]
["MHR1402","EngOutH2OMspn","Rmax2"]
["MHR1403","H2ONzlePresMspn","Rmax3"]
["MHR1404","FuelDPMspn","Rmax4"]
["MHR1405","FuelPresMspn","Rmax5"]
["MHR1406","H2OJacketDPMspn","Rmax6"]
["MHR1407","H2OManDPMspn","Rmax7"]
["MHR1408","DPAirFiltMspn","Rmax8"]
["MHR1409","DPGasMixerMspn","Rmax9"]
["MHR1410","ManifoldPresMspn","Rmax10"]
["MHR1411","ExhCatUpstrMspn","Rmax11"]
["MHR1412","CrnkCsPresMspn","Rmax12"]
["MHR1413","ExhManH2OinMspn","Rmax13"]
["MHR1414","FeedH2oPressMspn","Rmax14"]
["MHR1415","EncoderMspn","Rmax15"]
["MHR1600","Mod_engmin","EngMin0"]
["MHR1602","HdH2OPresMEn0","EngMin1"]
["MHR1604","EngOutH2OMEn0","EngMin2"]
["MHR1606","H2ONzlePresMEn0","EngMin3"]
["MHR1608","FuelDPMEn0","EngMin4"]
["MHR1610","FuelPresMEn0","EngMin5"]
["MHR1612","H2OJacketDPMEn0","EngMin6"]
["MHR1614","H2OManDPMEn0","EngMin7"]
["MHR1616","DPAirFiltMEn0","EngMin8"]
["MHR1618","DPGasMixerMEn0","EngMin9"]
["MHR1620","ManifoldPresMEn0","EngMin10"]
["MHR1622","ExhCatUpstrMEn0","EngMin11"]
["MHR1624","CrnkCsPresMEn0","EngMin12"]
["MHR1626","ExhManH2OinMEn0","EngMin13"]
["MHR1628","FeedH2oPressMEn0","EngMin14"]
["MHR1630","EncoderMEn0","EngMin15"]
["MHR1800","Mod_engmax"]
["MHR2000","OilPressMEnS","EngMax0"]
["MHR2002","HdH2OPresMEnS","EngMax1"]
["MHR2004","EngOutH2OMEnS","EngMax2"]
["MHR2006","H2ONzlePresMEnS","EngMax3"]
["MHR2008","FuelDPMEnS","EngMax4"]
["MHR2010","FuelPresMEnS","EngMax5"]
["MHR2012","H2OJacketDPMEnS","EngMax6"]
["MHR2014","H2OManDPMEnS","EngMax7"]
["MHR2016","DPAirFiltMEnS","EngMax8"]
["MHR2018","DPGasMixerMEnS","EngMax9"]
["MHR2020","ManifoldPresMEnS","EngMax10"]
["MHR2022","ExhCatUpstrMEnS","EngMax11"]
["MHR2024","CrnkCsPresMEnS","EngMax12"]
["MHR2026","ExhManH2OinMEnS","EngMax13"]
["MHR2028","FeedH2oPressMEnS","EngMax14"]
["MHR2030","EncoderMEnS","EngMax15"]
["MHR2400","OilPressMH","RH0"]
["MHR2402","HdH2OPresMH","RH1"]
["MHR2404","EngOutH2OMH","RH2"]
["MHR2406","H2ONzlePresMH","RH3"]
["MHR2408","FuelDPMH","RH4"]
["MHR2410","FuelPresMH","RH5"]
["MHR2412","H2OJacketDPMH","RH6"]
["MHR2414","H2OManDPMH","RH7"]
["MHR2416","DPAirFiltMH","RH8"]
["MHR2418","DPGasMixerMH","RH9"]
["MHR2420","ManifoldPresMH","RH10"]
["MHR2422","ExhCatUpstrMH","RH11"]
["MHR2424","CrnkCsPresMH","RH12"]
["MHR2426","ExhManH2OinMH","RH13"]
["MHR2428","FeedH2oPressMH","RH14"]
["MHR2430","EncoderMH","RH15"]
["MHR2800","OilPressMHH","Rhh0"]
["MHR2802","HdH2OPresMHH","Rhh1"]
["MHR2804","EngOutH2OMHH","Rhh2"]
["MHR2806","H2ONzlePresMHH","Rhh3"]
["MHR2808","FuelDPMHH","Rhh4"]
["MHR2810","FuelPresMHH","Rhh5"]
["MHR2812","H2OJacketDPMHH","Rhh6"]
["MHR2814","H2OManDPMHH","Rhh7"]
["MHR2816","DPAirFiltMHH","Rhh8"]
["MHR2818","DPGasMixerMHH","Rhh9"]
["MHR2820","ManifoldPresMHH","Rhh10"]
["MHR2822","ExhCatUpstrMHH","Rhh11"]
["MHR2824","CrnkCsPresMHH","Rhh12"]
["MHR2826","ExhManH2OinMHH","Rhh13"]
["MHR2828","FeedH2oPressMHH","Rhh14"]
["MHR2830","EncoderMHH","Rhh15"]
["MHR3200","OilPressML","Rl0"]
["MHR3202","HdH2OPresML","Rl1"]
["MHR3204","EngOutH2OML","Rl2"]
["MHR3206","H2ONzlePresML","Rl3"]
["MHR3208","FuelDPML","Rl4"]
["MHR3210","FuelPresML","Rl5"]
["MHR3212","H2OJacketDPML","Rl6"]
["MHR3214","H2OManDPML","Rl7"]
["MHR3216","DPAirFiltML","Rl8"]
["MHR3218","DPGasMixerML","Rl9"]
["MHR3220","ManifoldPresML","Rl10"]
["MHR3222","ExhCatUpstrML","Rl11"]
["MHR3224","CrnkCsPresML","Rl12"]
["MHR3226","ExhManH2OinML","Rl13"]
["MHR3228","FeedH2oPressML","Rl14"]
["MHR3230","EncoderML","Rl15"]
["MHR3404","EngOutH2OMLL","Rll2"]
["MHR3406","H2ONzlePresMLL","Rll3"]
["MHR3408","FuelDPMLL","Rll4"]
["MHR3410","FuelPresMLL","Rll5"]
["MHR3412","H2OJacketDPMLL","Rll6"]
["MHR3414","H2OManDPMLL","Rll7"]
["MHR3416","DPAirFiltMLL","Rll8"]
["MHR3418","DPGasMixerMLL","Rll9"]
["MHR3420","ManifoldPresMLL","Rll10"]
["MHR3422","ExhCatUpstrMLL","Rll11"]
["MHR3424","CrnkCsPresMLL","Rll12"]
["MHR3426","ExhManH2OinMLL","Rll13"]
["MHR3428","FeedH2oPressMLL","Rll14"]
["MHR3430","EncoderMLL","Rll15"]
["MHR3600","OilPressMLL","Rll0"]
["MHR3602","HdH2OPresMLL","Rll1"]
["RX0","OilPressReal","PSIG","PT100"]
["RX1","HdH2OPresReal","PSIG","PT101"]
["RX2","EngOutH2OReal","PSIG","PT102"]
["RX3","H2ONzlePresReal","PSIG","PT103"]
["RX4","FuelDPReal","SCFH","FT100 55scfm = 3300 scfh 0.554\" orifice in 1.38\" tube ch4 95% c2h6 3% n22%"]
["RX5","FuelPresReal","PSIG","PT104"]
["RX6","H2OJacketDPReal","GPM","GPM .5856\" orifice 21.8gpm 250\""]
["RX7","H2OManDPReal","GPM","GPM 0.2628\" orifice 4gpm FT102"]
["RX8","DPAirFiltReal","\"WC","FT103"]
["RX9","DPGasMixerReal","\"WC","FT104"]
["RX10","ManifoldPresReal","\"WC","PT105"]
["RX11","ExhCatUpstrReal","\"WC","PT106"]
["RX12","CrnkCsPresReal","\"WC","PT107"]
["RX13","GasToMixReal","\"WC","PT108"]
["RX14","FeedH2oPressReal","PSIG","PT109"]
["RX15","LamFlowEle","\"wc","0-8\"wc = 0-1000scfm"]
["RX16","EngH20VlvPct","%","percent opening VLV100"]
["RX17","ManH20VlvPct","%","percent opening VLV101"]
["RX18","LambdaRt","#","Lambda Right Exhaust B4 Catalyst LAM1"]
["RX19","LambdaLeft","#","Lambda Left Exhaust B4 Catalyst LAM2"]
["RX20","GasRegHdPres","\"wc","GasRegHdPres"]
["RX21","Supply12vdc","VDC","Battery + to 1000ohm to input to 495ohm to ground"]
["RX22","Spare22","F","SPR122"]
["RX23","Spare23","F","SPR123"]
["RX24","EngExhst1","F","_EngineExhst1 TC124"]
["RX25","EngExhst2","F","_EngineExhst2 TC125"]
["RX26","EngExhst3","F","_EngineExhst3 TC126"]
["RX27","EngExhst4","F","_EngineExhst4 TC127"]
["RX28","EngExhst5","F","_EngineExhst5 TC128"]
["RX29","EngExhst6","F","_EngineExhst6 TC129"]
["RX30","EngExhst7","F","_EngineExhst7 TC130"]
["RX31","EngExhst8","F","_EngineExhst8 TC131"]
["RX32","EngH2OOutRt","F","right engine block out temp TC132"]
["RX33","EngH2OOutLf","F","left engine block out temp TC133"]
["RX34","H2OExhstMnRt","F","right exhaust manifold exit water TC134"]
["RX35","H2OExhstMnLf","F","rightleft TC135"]
["RX36","CombinedH2OOut","F","combined water temp of manifold and bloack out to TC136"]
["RX37","H2OHead","F","Jacket head temp right side TC137"]
["RX38","FirstTccard18"]
["RX39","FirstTccard19"]
["RX40","FuelTemp","F","FuelGasTemp TC140"]
["RX41","ExhstRt","F","ExhaustRight TC141"]
["RX42","ExhstLt","F","ExhaustLeft TC142"]
["RX43","Catouttemp","F","Catalyst out temp TC143"]
["RX44","OilOutTemp","F","Engine Oil Temp in Crankcase TC144"]
["RX45","OilInTemp","F","Engine oil Temp into Engine TC145"]
["RX46","OilHXH2Oin","F","OilHXH2Oin TC146"]
["RX47","OilHXH2Oout","F","OilHXH2O_out TC147"]
["RX48","GenAirOut","F","Generator Air Output TC148"]
["RX49","AirInTemp","F","Inlet Air Temp TC149"]
["RX50","CabinetTemp","F","TC150"]
["RX51","ManifoldTemp","F","TC151"]
["RX52","NatGasTemp","F","TC152"]
["RX53","TC153","F","TC153"]
["RX54","SecTccard1"]
["RX55","SecTccard2"]
["RX56","spare56"]
["RX57","spare57"]
["RX58","spare58"]
["RX59","spare59"]
["RX60","O2","%","O2 total during CEMS sample time"]
["RX61","NOLowPPM","PPM","NO Low Range PPM"]
["RX62","NOHiPPM","PPM","NO High Range PPM"]
["RX63","COppm","PPM","CO PPM"]
["RX64","COno2PPM","PPM","2nd CO PPM"]
["RX65","CO2Percent","%","CO2 percent"]
["RX66","CEMcabTemp","F","0-100F"]
["RX67","CEMH20Temp","F","0-100F"]
["RX68","NOxCorr_3PctO2","NOxCorr","NO PPM corrected to 3% O2 when its less than 17%"]
["RX69","COCorr_3PctO2","COCorr","CO PPM corrected to 3% O2 when its less than 17%"]
["RX70","EngSpeedset","RPM","MVFD0Real"]
["RX71","EngSpeeddec","RPM","MVFD1Real"]
["RX72","SPDRAMPInt","RPM","MVFD2Real"]
["RX73","SPDRAMPDec","RPM","MVFD3Real"]
["RX74","MOTORSPdInt","RPM","MVFD4Real"]
["RX75","MOTORSDDec","RPM","MVFD5Real"]
["RX76","Frequency","Hz","MVFD6Real"]
["RX77","TorqReference","Nm","MVFD7Real"]
["RX78","TorqDemand","Nm","MVFD8Real"]
["RX79","MotorTorque","Nm","MVFD9Real"]
["RX80","TorqPct","%","MVFD10Real"]
["RX81","TorqDdPct","%","MVFD11Real"]
["RX82","MotorTqPct","%","MVFD12Real"]
["RX83","MotorTqLimt","Nm","MVFD13Real"]
["RX84","MotTqUsed","Nm","MVFD14Real"]
["RX85","MotTqPctUsed","%","MVFD15Real"]
["RX86","TorqLimPctUse","%","MVFD16Real"]
["RX87","Flux","wb","MVFD17Real"]
["RX88","PIDReference","%","MVFD18Real"]
["RX89",null,"%","MVFD19Real"]
["RX90","PidFeedbkPCTRl","%","MVFD20Real"]
["RX91","PIDErrorRl","%","MVFD21Real"]
["RX92","PIDOutPCTRl","%","MVFD22Real"]
["RX93","PIDRefUsedRl","%","MVFD23Real"]
["RX94","PidFeedbkRl",null,"MVFD24Real"]
["RX95","PIDOutputRl",null,"MVFD25Real"]
["RX96","GenAmp","Amp","MVFD26Real"]
["RX97","GenVolt","Vac","MVFD27Real"]
["RX98","MotKw","Kw","MVFD28Real"]
["RX99","DCBusVoltage","Vdc","MVFD29Real"]
["RX100","SupplyVoltage","Vac","MVFD30Real"]
["RX101","DigInputs",null,"MVFD31Real"]
["RX102","AmbTemp","F","MVFD62Real"]
["RX103","IGBTTp","F","MVFD64Real"]
["RX104","OperateTime",null,"MVFD65Real"]
["RX105",null,null,"MVFD89Real"]
["RX106","RGenVDCReal","Vdc","Spare"]
["RX107","RGenAmpsReal","Amp","Spare"]
["RX108","RGenPowerReal","Kw","Spare"]
["RX109","RGenACvoltReal","Vac","Spare"]
["RX110","BlockFdVlv","%","FV100 WY0"]
["RX111","ManFdVlv","%","FV101 wy1"]
["RX112",null,null,"WY2"]
["RX113",null,null,"WY3"]
["RX114","GasRegPressOut","%","IP100 wy4"]
["RX115",null,null,"WY5"]
["RX116",null,null,"WY6"]
["RX117",null,null,"WY7"]
["RX118",null,null,"WY8"]
["RX119",null,null,"WY9"]
["RX120",null,null,"WY10"]
["RX121",null,null,"WY11"]
["RX122",null,null,"WY12"]
["RX123",null,null,"WY13"]
["RX124","CEMH2O","%","FV102"]
["RX125",null,null,"WY15"]
["RX126",null,null,"WY16"]
["RX127",null,null,"WY17"]
["RX128","OilVFDHxSP",null,"HZ setpoint to the drive"]
["RX129","OilVFDHZ",null,"Drive HZ output to the Motor "]
["RX130","OilVFDAmp",null,"Amp out to the motor"]
["RX131","OilVFDDCv",null,"DC Buss Voltage of the VFD"]
["RX132","OilVFDVoltOut",null,"Voltage output to the Motor"]
["RX133","OilGPM",null,"Oil flow 1840 rpm = 15gpm"]
["RX134","OilVFDPF",null,"Power Factor"]
["RX135","OilVFDPctLoad",null,"% Load = Amperage out to the motor / rated amp of the drive"]
["RX136","SpareInput136"]
["RX137","SpareInput137"]
["RX138","SpareInput138"]
["RX139","SpareInput139"]
["RX140","SpareInput140"]
["RX141","SpareInput141"]
["RX142","SpareInput142"]
["RX143","SpareInput143"]
["RX144","SpareInput144"]
["RX145","SpareInput145"]
["RX146","SpareInput146"]
["RX147","SpareInput147"]
["RX148","SpareInput148"]
["RX149","SpareInput149"]
["RX150","SpareInput150"]
["RX151","SpareInput151"]
["RX152","SpareInput152"]
["RX153","SpareInput153"]
["RX154","SpareInput154"]
["RX155","SpareInput155"]
["RX156","SpareInput156"]
["RX157","SpareInput157"]
["RX158","SpareInput158"]
["RX159","SpareInput159"]
["RX160","SpareInput160"]
["RX161","SpareInput161"]
["RX162","SpareInput162"]
["RX163","SpareInput163"]
["RX164","SpareInput164"]
["RX165","SpareInput165"]
["RX166","SpareInput166"]
["RX167","SpareInput167"]
["RX168","SpareInput168"]
["RX169","SpareInput169"]
["RX170","SpareInput170"]
["RX171","SpareInput171"]
["RX172","SpareInput172"]
["RX173","SpareInput173"]
["RX174","SpareInput174"]
["RX175","SpareInput175"]
["RX176","SpareInput176"]
["RX177","SpareInput177"]
["RX178","SpareInput178"]
["RX179","SpareInput179"]
["RX180","SpareInput180"]
["RX181","SpareInput181"]
["MVFD0","SpeedRefInt","RPM","Value of the speed reference Integer part"]
["MVFD1","SpeedRefDec","RPM","Decimal portion of speed referece"]
["MVFD2","SPEEDRAMPInt","RPM","Ramp Integer portion r 32000 rpm"]
["MVFD3","SPEEDRAMPDec","RPM"]
["MVFD4","MOTORSPEEDInt","RPM","32000 rpm"]
["MVFD5","MOTORSPEEDDec","RPM",".99rpm"]
["MVFD6","FreqOut","Hz","10000 = 1000Hz"]
["MVFD7","TorqRef","Nm","32000nm"]
["MVFD8","TorqDemd","Nm","32000nm"]
["MVFD9","MotorTorq","Nm","32000nm"]
["MVFD10","TorqRefPct","%",5]
["MVFD11","TorqDemdPct","%",5]
["MVFD12","MotorTorqPct","%",5]
["MVFD13","MotorTorqLimt","Nm","This is the limit value for the torque at constant speed. 32000nm"]
["MVFD14","MotTorqUsed","Nm","This is the torque limit value being used, expressed in Nm. 32000nm"]
["MVFD15","MotTorqPctUsed","%","limit value for the torque at constant speed expressed as a %bof the rated torque of the selected motor. 500%"]
["MVFD16","TorqueLimPctUse","%","Torque limit value being used Pct of the motor rated torque"]
["MVFD17","FluxRef","wb","Flux reference required and expressed in Wb."]
["MVFD18","PIDRef","%","This is the measure of the PID reference expressed as a value percent. 10000 = 100.00%"]
["MVFD19","RefPID","%","This is the measure of the PID reference expressed as a value percent. 10000 = 100.00%"]
["MVFD20","PidFeedbkPCT","%","This is the measure of the PID feedback expressed as a value percent. 10000 = 100.00%"]
["MVFD21","PIDError","%","This is the measure of the PID input error expressed as a value percent. 10000 = 100.00%"]
["MVFD22","PIDOutPCT","%","This is the measure of the output produced by the PID regulator and expressed as a value percent."]
["MVFD23","PIDRefUsed","%","This is the measure of the reference being used for the PID regulator, as M019 but multiplied by the gain level set in P257"]
["MVFD24","PidFeedbk",null,"measure of the feedback being used for the PID regulator, as M020 but multiplied by the gain level set in P257 (+-32000"]
["MVFD25","PIDOutput",null,"This is the measure of the PID regulator output, as M022 but multiplied by the gain level set in P257 (+- 32000"]
["MVFD26","AmpOut","Amp","65535 = 6553.5 A"]
["MVFD27","VoltOut","Vac","65535 = 6553.5 V"]
["MVFD28","KwOut","Kw","65535 = 6553.5 Kw"]
["MVFD29","DCBusVolt","Vdc","0-1000vdc"]
["MVFD30","SupplyVolt","Vac","0-1000vac"]
["MVFD31","DigInputsDel",null,"binary"]
["MVFD62","AmbientTemp","C","3000 = 30C"]
["MVFD64","IGBTTemp","C","3000=30.0C"]
["MVFD65","OperateTimeC"]
["MVFD89","InvrtState",null,"0 Alarm !!! An alarm tripped (inverter in emergency condition) 1 Starting Up The inverter is starting up."]
["PVFD9","AccRamp1",null,"Accelleration Ramp Modbus offset 609 to Pvfd8"]
["PVFD10","DecelRamp1",null,"Accelleration Ramp  0- 32700"]
["PVFD11","TimeUnit1",null,"0: 10  ms 1: 100  ms 2: 1000  ms 3: 10000 ms"]
["PVFD12","AccRamp2",null,"Decelleration Ramp  0- 32701"]
["PVFD13","DecelRamp2",null,"Accelleration Ramp  0- 32701"]
["PVFD14","TimeUnit2",null,"0: 10  ms 1: 100  ms 2: 1000  ms 3: 10000 ms"]
["PVFD15","AccRamp3",null,"Decelleration Ramp  0- 32702"]
["PVFD16","DecelRamp3",null,"Accelleration Ramp  0- 32702"]
["PVFD17","TimeUnit3",null,"0: 10  ms 1: 100  ms 2: 1000  ms 3: 10000 ms"]
["PVFD18","AccRamp4",null,"Decelleration Ramp  0- 32703"]
["PVFD19","DecelRamp4",null,"Accelleration Ramp  0- 32703"]
["PVFD20","TimeUnit4",null,"0: 10  ms 1: 100  ms 2: 1000  ms 3: 10000 ms"]
["PVFD21","AccRndRmp",null,"0000b - 1111b binary"]
["PVFD22","AccRndStart",null,"0-100%"]
["PVFD23","AccRndEnd",null,"0-100%"]
["PVFD24","DecRndStart",null,"0-100%"]
["PVFD25","DecRndEnd",null,"0-100%"]
["PVFD26","TrqRampUp",null,"0-32700 = 0 - 3270secs P028*32700"]
["PVFD27","TrqRampDwn",null,"0-32700 = 0 - 3270secs"]
["PVFD28","TorqUnit",null,"0: 10  ms 1: 100  ms 2: 1000  ms 3: 10000 ms"]
["PVFD80","OperatingMode",null,"Preset speed"]
["PVFD81","SpeedPset1",null,"Preset Speed 1"]
["PVFD83","PresetSpeed2"]
["PVFD85","PresetSpeed3"]
["PVFD87","PresetSpeed4"]
["PVFD88","PresetSpeed5"]
["PVFD89","PresetSpeed6"]
["PVFD90","PresetSpeed7"]
["PVFD91","PresetSpeed8"]
["PVFD92","PresetSpeed9"]
["PVFD93","PresetSpeed10"]
["PVFD94","PresetSpeed11"]
["PVFD105","Prohibitsp1",null,"0 - 32000 rpm"]
["PVFD106","Prohibitsp2",null,"0- 32000 rpm"]
["PVFD107","Prohibitsp3",null,"0- 32000 rpm"]
["PVFD108","SemiAmp",null,"0- 5000 rpm"]
["PVFD115","VaryRef1",null,"1000  100%"]
["PVFD116","VaryRef2",null,"1000  100%"]
["PVFD117","VaryRef3",null,"1000  100%"]
["PVFD118","VaryRef4",null,"1000  100%"]
["PVFD119","VaryRef5",null,"1000  100%"]
["PVFD120","VaryRef6",null,"1000  100%"]
["PVFD121","VaryRef7",null,"1000  100%"]
["CVFD1","MinCFreq",null,"minus 1600 - 1600Hz"]
["CVFD2","MaxCFreq",null,"minus 1600 - 1600Hz"]
["CVFD3","PulseNo",null,"0 12 1 24  2 48 3 96"]
["CVFD4","SilentMode",null,"0: [No] ; 1: [Yes"]
["CVFD9","NumOfMots",null,"Number of configured Motors"]
["CVFD10","TypeCont",null,"0 IFD V/F control 1VTC and 2 FOC"]
["CVFD11","Ref",null,"0 speed"]
["CVFD12","SpeedFbEnc",null,"0 no - 1 yes"]
["CVFD15","MotorFreq",null,"Motor Rated Frequency"]
["CVFD16","MotorRPM",null,"Motor Rated RPM"]
["CVFD17","MotorPower",null,"Motor Rated Power kilwatt"]
["CVFD18","MotorAMP",null,"Motor rated current"]
["CVFD19","MotorVolt",null,"Motor rated Voltage"]
["CVFD20","MotorNoloadPower",null,"Motor no-load power"]
["CVFD21","MotorNoloadAMP",null,"Motor No load current %of CVFD18 so 143/546 = 26%"]
["CVFD22","MotorStatorRest",null,"Motor Stator Resistance"]
["CVFD23","MotorStatResist",null,"Motor Stator Resistiance 32000 = 32ohms"]
["CVFD28","MotorMinSpeed",null,"Motor minimum speed"]
["CVFD29","MotorMaxSpeed",null,"Motor Maximum Speed"]
["CVFD30","FluxWeakSpeed",null,"Flux Weaking Speed"]
["CVFD31","MaxSpeedAlarm",null,"MaxSpeedAlarm 0- disabled"]
["CVFD34","VoltagePreboost",null,"Voltage Preboost 50 = 5% only in IFD"]
["CVFD35","VoltageBoost5pct",null,"Voltage Boost at 5%"]
["CVFD36","VoltageBoostHz",null,"Voltage Boost at Prog Hzs c037 -100 to +400%"]
["CVFD37","FreqVoltBoost",null,"Frequency for Voltage Boost at programmed frequencyd"]
["CVFD38","AutoBoost",null,"IFD only Variable torque compenstation 0-10%"]
["CVFD39","SlipComp",null,"Slipcompensation 0- 200% 0 = disabled"]
["CVFD41","FluxRampTime",null,"40 to 4000 msec VTC and FOC only. This parameter indicates the time spent for motor fluxing."]
["CVFD43","CurLimtwACC",null,"IFD only 0 to 400: Disabled 1,0% ?? Min [Imax inverter/Inom mot, 400,0%] of rated current of selected motor"]
["CVFD44","CurLimtwConst",null,"IFD only 0 to 400: Disabled 1,0% ?? Min [Imax inverter/Inom mot, 400,0%] of rated current of selected motor"]
["CVFD45","CurLimtwDACC",null,"IFD only 0 to 400: Disabled 1,0% ?? Min [Imax inverter/Inom mot, 400,0%] of rated current of selected motor"]
["CVFD46","CurLimFlux",null,"0 disenable and 1"]
["CVFD47","MinTorque",null,"VTC / FOC only 5000 to 5000 –Tmax to +Tmax Tmax = Min[Imax inverter/Inom mot, 500,0%] set cvfd147"]
["CVFD48","MaxTorque",null,"VTC / FOC only 5000 to 5000 –Tmax to +Tmax Tmax = Min[Imax inverter/Inom mot, 500,0%] set cvfd148"]
["CVFD49","MaxTorqDerv",null,"VTC / FOC only 0- 10000 = 0-1000%. Max limit of torg dervative or % of rated torq of motor / sec."]
["CVFD140","ComdDigInpt1",null,"0: Disabled,1: Terminal board,2: Serial link,3: Field bus,4: RESERVED(*),5: Keypad(**)."]
["CVFD141","ComdDigInpt2",null,"0: Disabled,1: Terminal board,2: Serial link,3: Field bus,4: RESERVED(*),5: Keypad(**)."]
["CVFD142","ComdDigInpt3",null,"0: Disabled,1: Terminal board,2: Serial link,3: Field bus,4: RESERVED(*),5: Keypad(**)."]
["CVFD143","ComdRefInpt1",null,"0: Disabled,1. REF,2. AIN1,3. AIN2,4. Frequency input,5: Serial link,6: Field bus,7: Keypad,8. Encoder,"]
["CVFD144","ComdRefInpt2",null,"0: Disabled,1. REF,2. AIN1,3. AIN2,4. Frequency input,5: Serial link,6: Field bus,7: Keypad,8. Encoder,"]
["CVFD145","ComdRefInpt3",null,"0: Disabled,1. REF,2. AIN1,3. AIN2,4. Frequency input,5: Serial link,6: Field bus,7: Keypad,8. Encoder,"]
["CVFD146","ComdRefInpt4",null,"0: Disabled,1. REF,2. AIN1,3. AIN2,4. Frequency input,5: Serial link,6: Field bus,7: Keypad,8. Encoder,"]
["CVFD147","ComdTorqInp",null,"0: Disabled,1. REF,2. AIN1,3. AIN2,4. Frequency input,5: Serial link,6: Field bus,7: Keypad,8. Encoder,"]
["Filt0","FilterChn0","Miiseconds","Filter Channel 0 in Msec From M4000"]
["Filt1","FilterChn1","Miiseconds","Filter Channel 0 in Msec From M4001"]
["Filt2","FilterChn2","Miiseconds","Filter Channel 0 in Msec From M4002"]
["Filt3","FilterChn3","Miiseconds","Filter Channel 0 in Msec From M4003"]
["Filt4","FilterChn4","Miiseconds","Filter Channel 0 in Msec From M4004"]
["Filt5","FilterChn5","Miiseconds","Filter Channel 0 in Msec From M4005"]
["Filt6","FilterChn6","Miiseconds","Filter Channel 0 in Msec From M4006"]
["Filt7","FilterChn7","Miiseconds","Filter Channel 0 in Msec From M4007"]
["Filt8","FilterChn8","Miiseconds","Filter Channel 0 in Msec From M4008"]
["Filt9","FilterChn9","Miiseconds","Filter Channel 0 in Msec From M4009"]
["Filt10","FilterChn10","Miiseconds","Filter Channel 0 in Msec From M4010"]
["Filt11","FilterChn11","Miiseconds","Filter Channel 0 in Msec From M4011"]
["Filt12","FilterChn12","Miiseconds","Filter Channel 0 in Msec From M4012"]
["Filt13","FilterChn13","Miiseconds","Filter Channel 0 in Msec From M4013"]
["Filt14","FilterChn14","Miiseconds","Filter Channel 0 in Msec From M4014"]
["Filt15","FilterChn15","Miiseconds","Filter Channel 0 in Msec From M4015"]
["Filt16","FilterChn16","Miiseconds","Filter Channel 0 in Msec From M4016"]
["Filt17","FilterChn17","Miiseconds","Filter Channel 0 in Msec From M4017"]
["Filt18","FilterChn18","Miiseconds","Filter Channel 0 in Msec From M4018"]
["IVFD25","SpeedRefRPM",null,"Speed reference in RPM sent to the drive"]
["IVFD29","TorqueRefPCT",null,"Torque Reference or Limit - tenths of a % so 100 = 10%"]
["KWHDay0","KWHProdDay0",null,"Kilowatt Hour the Engine produced Day 0"]
["KWHDay10","KWHProdDay10",null,"Kilowatt Hour the Engine produced Day 10"]
["KWHDay20","KWHProdDay20",null,"Kilowatt Hour the Engine produced Day 20"]
["KWHDay30","KWHProdDay30",null,"Kilowatt Hour the Engine produced Day 30"]
["KWHDay40","KWHProdDay40",null,"Kilowatt Hour the Engine produced Day 40"]
["KWHDay50","KWHProdDay50",null,"Kilowatt Hour the Engine produced Day 50"]
["KWHDay60","KWHProdDay60",null,"Kilowatt Hour the Engine produced Day 60"]
["KWHDay70","KWHProdDay70",null,"Kilowatt Hour the Engine produced Day 70"]
["KWHDay80","KWHProdDay80",null,"Kilowatt Hour the Engine produced Day 80"]
["KWHDay90","KWHProdDay90",null,"Kilowatt Hour the Engine produced Day 90"]
["KWHDay100","KWHProdDay100",null,"Kilowatt Hour the Engine produced Day 100"]
["KWHDay110","KWHProdDay110",null,"Kilowatt Hour the Engine produced Day 110"]
["KWHDay120","KWHProdDay120",null,"Kilowatt Hour the Engine produced Day 120"]
["KWHDay130","KWHProdDay130",null,"Kilowatt Hour the Engine produced Day 130"]
["KWHDay140","KWHProdDay140",null,"Kilowatt Hour the Engine produced Day 140"]
["KWHDay150","KWHProdDay150",null,"Kilowatt Hour the Engine produced Day 150"]
["KWHDay160","KWHProdDay160",null,"Kilowatt Hour the Engine produced Day 160"]
["KWHDay170","KWHProdDay170",null,"Kilowatt Hour the Engine produced Day 170"]
["KWHDay180","KWHProdDay180",null,"Kilowatt Hour the Engine produced Day 180"]
["KWHDay190","KWHProdDay190",null,"Kilowatt Hour the Engine produced Day 190"]
["KWHDay200","KWHProdDay200",null,"Kilowatt Hour the Engine produced Day 200"]
["KWHDay210","KWHProdDay210",null,"Kilowatt Hour the Engine produced Day 210"]
["KWHDay220","KWHProdDay220",null,"Kilowatt Hour the Engine produced Day 220"]
["KWHDay230","KWHProdDay230",null,"Kilowatt Hour the Engine produced Day 230"]
["KWHDay240","KWHProdDay240",null,"Kilowatt Hour the Engine produced Day 240"]
["KWHDay250","KWHProdDay250",null,"Kilowatt Hour the Engine produced Day 250"]
["GasDay0","GasCuFtDay0","CubicFeet","Cubic Feet the engine CHP consumed Day 0"]
["GasDay10","GasCuFtDay10","CubicFeet","Cubic Feet the engine CHP consumed Day 10"]
["GasDay20","GasCuFtDay20","CubicFeet","Cubic Feet the engine CHP consumed Day 20"]
["GasDay30","GasCuFtDay30","CubicFeet","Cubic Feet the engine CHP consumed Day 30"]
["GasDay40","GasCuFtDay40","CubicFeet","Cubic Feet the engine CHP consumed Day 40"]
["GasDay50","GasCuFtDay50","CubicFeet","Cubic Feet the engine CHP consumed Day 50"]
["GasDay60","GasCuFtDay60","CubicFeet","Cubic Feet the engine CHP consumed Day 60"]
["GasDay70","GasCuFtDay70","CubicFeet","Cubic Feet the engine CHP consumed Day 70"]
["GasDay80","GasCuFtDay80","CubicFeet","Cubic Feet the engine CHP consumed Day 80"]
["GasDay90","GasCuFtDay90","CubicFeet","Cubic Feet the engine CHP consumed Day 90"]
["GasDay100","GasCuFtDay100","CubicFeet","Cubic Feet the engine CHP consumed Day 100"]
["GasDay110","GasCuFtDay110","CubicFeet","Cubic Feet the engine CHP consumed Day 110"]
["GasDay120","GasCuFtDay120","CubicFeet","Cubic Feet the engine CHP consumed Day 120"]
["GasDay130","GasCuFtDay130","CubicFeet","Cubic Feet the engine CHP consumed Day 130"]
["GasDay140","GasCuFtDay140","CubicFeet","Cubic Feet the engine CHP consumed Day 140"]
["GasDay150","GasCuFtDay150","CubicFeet","Cubic Feet the engine CHP consumed Day 150"]
["GasDay160","GasCuFtDay160","CubicFeet","Cubic Feet the engine CHP consumed Day 160"]
["GasDay170","GasCuFtDay170","CubicFeet","Cubic Feet the engine CHP consumed Day 170"]
["GasDay180","GasCuFtDay180","CubicFeet","Cubic Feet the engine CHP consumed Day 180"]
["GasDay190","GasCuFtDay190","CubicFeet","Cubic Feet the engine CHP consumed Day 190"]
["GasDay200","GasCuFtDay200","CubicFeet","Cubic Feet the engine CHP consumed Day 200"]
["GasDay210","GasCuFtDay210","CubicFeet","Cubic Feet the engine CHP consumed Day 210"]
["GasDay220","GasCuFtDay220","CubicFeet","Cubic Feet the engine CHP consumed Day 220"]
["GasDay230","GasCuFtDay230","CubicFeet","Cubic Feet the engine CHP consumed Day 230"]
["GasDay240","GasCuFtDay240","CubicFeet","Cubic Feet the engine CHP consumed Day 240"]
["GasDay250","GasCuFtDay250","CubicFeet","Cubic Feet the engine CHP consumed Day 250"]
["GasDay260","GasCuFtDay260","CubicFeet","Cubic Feet the engine CHP consumed Day 260"]
["GasDay270","GasCuFtDay270","CubicFeet","Cubic Feet the engine CHP consumed Day 270"]
["GasDay280","GasCuFtDay280","CubicFeet","Cubic Feet the engine CHP consumed Day 280"]
["GasDay290","GasCuFtDay290","CubicFeet","Cubic Feet the engine CHP consumed Day 290"]
["GasDay300","GasCuFtDay300","CubicFeet","Cubic Feet the engine CHP consumed Day 300"]
["GasDay310","GasCuFtDay310","CubicFeet","Cubic Feet the engine CHP consumed Day 310"]
["GasDay320","GasCuFtDay320","CubicFeet","Cubic Feet the engine CHP consumed Day 320"]
["GasDay330","GasCuFtDay330","CubicFeet","Cubic Feet the engine CHP consumed Day 330"]
["GasDay340","GasCuFtDay340","CubicFeet","Cubic Feet the engine CHP consumed Day 340"]
["GasDay350","GasCuFtDay350","CubicFeet","Cubic Feet the engine CHP consumed Day 350"]
["GasDay360","GasCuFtDay360","CubicFeet","Cubic Feet the engine CHP consumed Day 360"]
["SecRunTime0","SecRTimeDay0",null,"Seconds the CHP ran on Day 0"]
["SecRunTime10","SecRTimeDay10",null,"Seconds the CHP ran on Day 10"]
["SecRunTime20","SecRTimeDay20",null,"Seconds the CHP ran on Day 20"]
["SecRunTime30","SecRTimeDay30",null,"Seconds the CHP ran on Day 30"]
["SecRunTime40","SecRTimeDay40",null,"Seconds the CHP ran on Day 40"]
["SecRunTime50","SecRTimeDay50",null,"Seconds the CHP ran on Day 50"]
["SecRunTime60","SecRTimeDay60",null,"Seconds the CHP ran on Day 60"]
["SecRunTime70","SecRTimeDay70",null,"Seconds the CHP ran on Day 70"]
["SecRunTime80","SecRTimeDay80",null,"Seconds the CHP ran on Day 80"]
["SecRunTime90","SecRTimeDay90",null,"Seconds the CHP ran on Day 90"]
["SecRunTime100","SecRTimeDay100",null,"Seconds the CHP ran on Day 100"]
["SecRunTime110","SecRTimeDay110",null,"Seconds the CHP ran on Day 110"]
["SecRunTime120","SecRTimeDay120",null,"Seconds the CHP ran on Day 120"]
["SecRunTime130","SecRTimeDay130",null,"Seconds the CHP ran on Day 130"]
["SecRunTime140","SecRTimeDay140",null,"Seconds the CHP ran on Day 140"]
["SecRunTime150","SecRTimeDay150",null,"Seconds the CHP ran on Day 150"]
["SecRunTime160","SecRTimeDay160",null,"Seconds the CHP ran on Day 160"]
["SecRunTime170","SecRTimeDay170",null,"Seconds the CHP ran on Day 170"]
["SecRunTime180","SecRTimeDay180",null,"Seconds the CHP ran on Day 180"]
["SecRunTime190","SecRTimeDay190",null,"Seconds the CHP ran on Day 190"]
["SecRunTime200","SecRTimeDay200",null,"Seconds the CHP ran on Day 200"]
["SecRunTime210","SecRTimeDay210",null,"Seconds the CHP ran on Day 210"]
["SecRunTime220","SecRTimeDay220",null,"Seconds the CHP ran on Day 220"]
["SecRunTime230","SecRTimeDay230",null,"Seconds the CHP ran on Day 230"]
["SecRunTime240","SecRTimeDay240",null,"Seconds the CHP ran on Day 240"]
["SecRunTime250","SecRTimeDay250",null,"Seconds the CHP ran on Day 250"]
["SecRunTime260","SecRTimeDay260",null,"Seconds the CHP ran on Day 260"]
["SecRunTime270","SecRTimeDay270",null,"Seconds the CHP ran on Day 270"]
["SecRunTime280","SecRTimeDay280",null,"Seconds the CHP ran on Day 280"]
["SecRunTime290","SecRTimeDay290",null,"Seconds the CHP ran on Day 290"]
["SecRunTime300","SecRTimeDay300",null,"Seconds the CHP ran on Day 300"]
["SecRunTime310","SecRTimeDay310",null,"Seconds the CHP ran on Day 310"]
["SecRunTime320","SecRTimeDay320",null,"Seconds the CHP ran on Day 320"]
["SecRunTime330","SecRTimeDay330",null,"Seconds the CHP ran on Day 330"]
["SecRunTime340","SecRTimeDay340",null,"Seconds the CHP ran on Day 340"]
["SecRunTime350","SecRTimeDay350",null,"Seconds the CHP ran on Day 350"]
["SecRunTime360","SecRTimeDay360",null,"Seconds the CHP ran on Day 360"]
["KwHr0","Day1Hr0",null,"12midnight to 1"]
["KwHr1","KWHrDay1Hr1",null,"Kwhr to 2"]
["KwHr2","KWHrDay1Hr2",null,"Kwhr to 3"]
["KwHr3","KWHrDay1Hr3",null,"Kwhr to 4"]
["KwHr4","KWHrDay1Hr4",null,"Kwhr to 5"]
["KwHr5","KWHrDay1Hr5",null,"Kwhr to 6"]
["KwHr6","KWHrDay1Hr6",null,"Kwhr to 7"]
["KwHr7","KWHrDay1Hr7",null,"Kwhr to 8"]
["KwHr8","KWHrDay1Hr8",null,"Kwhr to 9"]
["KwHr9","KWHrDay1Hr9",null,"Kwhr to 10"]
["KwHr10","KWHrDay1Hr10",null,"Kwhr to 11"]
["KwHr11","KWHrDay1Hr11",null,"Kwhr to 12"]
["KwHr12","KWHrDay1Hr12",null,"Kwhr to 13"]
["KwHr13","KWHrDay1Hr13",null,"Kwhr to 14"]
["KwHr14","KWHrDay1Hr14",null,"Kwhr to 15"]
["KwHr15","KWHrDay1Hr15",null,"Kwhr to 16"]
["KwHr16","KWHrDay1Hr16",null,"Kwhr to 17"]
["KwHr17","KWHrDay1Hr17",null,"Kwhr to 18"]
["KwHr18","KWHrDay1Hr18",null,"Kwhr to 19"]
["KwHr19","KWHrDay1Hr19",null,"Kwhr to 20"]
["KwHr20","KWHrDay1Hr20",null,"Kwhr to 21"]
["KwHr21","KWHrDay1Hr21",null,"Kwhr to 22"]
["KwHr22","KWHrDay1Hr22",null,"Kwhr to 23"]
["KwHr23","KWHrDay1Hr23",null,"Kwhr to 24"]
["KwHr24","KWHrDay2Hr0",null,"Kwhr to 1"]
["KwHr25","KWHrDay2Hr1",null,"Kwhr to 2"]
["KwHr26","KWHrDay2Hr2",null,"Kwhr to 3"]
["KwHr27","KWHrDay2Hr3",null,"Kwhr to 4"]
["KwHr28","KWHrDay2Hr4",null,"Kwhr to 5"]
["KwHr29","KWHrDay2Hr5",null,"Kwhr to 6"]
["KwHr30","KWHrDay2Hr6",null,"Kwhr to 7"]
["KwHr31","KWHrDay2Hr7",null,"Kwhr to 8"]
["KwHr32","KWHrDay2Hr8",null,"Kwhr to 9"]
["KwHr33","KWHrDay2Hr9",null,"Kwhr to 10"]
["KwHr34","KWHrDay2Hr10",null,"Kwhr to 11"]
["KwHr35","KWHrDay2Hr11",null,"Kwhr to 12"]
["KwHr36","KWHrDay2Hr12",null,"Kwhr to 13"]
["KwHr37","KWHrDay2Hr13",null,"Kwhr to 14"]
["KwHr38","KWHrDay2Hr14",null,"Kwhr to 15"]
["KwHr39","KWHrDay2Hr15",null,"Kwhr to 16"]
["KwHr40","KWHrDay2Hr16",null,"Kwhr to 17"]
["KwHr41","KWHrDay2Hr17",null,"Kwhr to 18"]
["KwHr42","KWHrDay2Hr18",null,"Kwhr to 19"]
["KwHr43","KWHrDay2Hr19",null,"Kwhr to 20"]
["KwHr44","KWHrDay2Hr20",null,"Kwhr to 21"]
["KwHr45","KWHrDay2Hr21",null,"Kwhr to 22"]
["KwHr46","KWHrDay2Hr22",null,"Kwhr to 23"]
["KwHr47","KWHrDay2Hr23",null,"Kwhr to 24"]
["KwHr48","KWHrDay3Hr0",null,"Kwhr to 1"]
["KwHr72","KWHrDay4",null,"Kwhr to 1"]
["KwHr96","KWHrDay5",null,"Kwhr to 1"]
["KwHr120","KWHrDay6",null,"Kwhr to 1"]
["KwHr144","KWHrDay7",null,"Kwhr to 1"]
["KwHr168","KWHrDay8",null,"Kwhr to 1"]
["KwHr192","KWHrDay9",null,"Kwhr to 1"]
["KwHr216","KWHrDay10",null,"Kwhr to 1"]
["KwHr240","KWHrDay11",null,"Kwhr to 1"]
["KwHr264","KWHrDay12",null,"Kwhr to 1"]
["KwHr288","KWHrDay13",null,"Kwhr to 1"]
["KwHr312","KWHrDay14",null,"Kwhr to 1"]
["KwHr336","KWHrDay15",null,"Kwhr to 1"]
["KwHr360","KWHrDay16",null,"Kwhr to 1"]
["KwHr384","KWHrDay17",null,"Kwhr to 1"]
["KwHr408","KWHrDay18",null,"Kwhr to 1"]
["KwHr432","KWHrDay19",null,"Kwhr to 1"]
["KwHr456","KWHrDay20",null,"Kwhr to 1"]
["KwHr480","KWHrDay21",null,"Kwhr to 1"]
["KwHr504","KWHrDay22",null,"Kwhr to 1"]
["KwHr528","KWHrDay23",null,"Kwhr to 1"]
["KwHr552","KWHrDay24",null,"Kwhr to 1"]
["KwHr576","KWHrDay25",null,"Kwhr to 1"]
["KwHr600","KWHrDay26",null,"Kwhr to 1"]
["KwHr624","KWHrDay27",null,"Kwhr to 1"]
["KwHr648","KWHrDay28",null,"Kwhr to 1"]
["KwHr672","KWHrDay29",null,"Kwhr to 1"]
["KwHr696","KWHrDay30",null,"Kwhr to 1"]
["KwHr720","KWHrDay31",null,"Kwhr to 1"]
["GasHr0","GasFT3Day1Hr0",null,"cubic feet to hr1"]
["GasHr1","FT3Day1Hr1",null,"cubic feet to hr2"]
["GasHr2","FT3Day1Hr2",null,"cubic feet to hr3"]
["GasHr3","FT3Day1Hr3",null,"cubic feet to hr4"]
["GasHr4","FT3Day1Hr4",null,"cubic feet to hr5"]
["GasHr5","FT3Day1Hr5",null,"cubic feet to hr6"]
["GasHr6","FT3Day1Hr6",null,"cubic feet to hr7"]
["GasHr7","FT3Day1Hr7",null,"cubic feet to hr8"]
["GasHr8","FT3Day1Hr8",null,"cubic feet to hr9"]
["GasHr9","FT3Day1Hr9",null,"cubic feet to hr10"]
["GasHr10","FT3Day1Hr10",null,"cubic feet to hr11"]
["GasHr11","FT3Day1Hr11",null,"cubic feet to hr12"]
["GasHr12","FT3Day1Hr12",null,"cubic feet to hr13"]
["GasHr13","FT3Day1Hr13",null,"cubic feet to hr14"]
["GasHr14","FT3Day1Hr14",null,"cubic feet to hr15"]
["GasHr15","FT3Day1Hr15",null,"cubic feet to hr16"]
["GasHr16","FT3Day1Hr16",null,"cubic feet to hr17"]
["GasHr17","FT3Day1Hr17",null,"cubic feet to hr18"]
["GasHr18","FT3Day1Hr18",null,"cubic feet to hr19"]
["GasHr19","FT3Day1Hr19",null,"cubic feet to hr20"]
["GasHr20","FT3Day1Hr20",null,"cubic feet to hr21"]
["GasHr21","FT3Day1Hr21",null,"cubic feet to hr22"]
["GasHr22","FT3Day1Hr22",null,"cubic feet to hr23"]
["GasHr23","FT3Day1Hr23",null,"cubic feet to hr24"]
["GasHr24","FT3Day2Hr0",null,"cubic feet to hr1"]
["GasHr25","FT3Day2Hr1",null,"cubic feet to hr2"]
["GasHr26","FT3Day2Hr2",null,"cubic feet to hr3"]
["GasHr27","FT3Day2Hr3",null,"cubic feet to hr4"]
["GasHr28","FT3Day2Hr4",null,"cubic feet to hr5"]
["GasHr29","FT3Day2Hr5",null,"cubic feet to hr6"]
["GasHr30","FT3Day2Hr6",null,"cubic feet to hr7"]
["GasHr31","FT3Day2Hr7",null,"cubic feet to hr8"]
["GasHr32","FT3Day2Hr8",null,"cubic feet to hr9"]
["GasHr33","FT3Day2Hr9",null,"cubic feet to hr10"]
["GasHr34","FT3Day2Hr10",null,"cubic feet to hr11"]
["GasHr35","FT3Day2Hr11",null,"cubic feet to hr12"]
["GasHr36","FT3Day2Hr12",null,"cubic feet to hr13"]
["GasHr37","FT3Day2Hr13",null,"cubic feet to hr14"]
["GasHr38","FT3Day2Hr14",null,"cubic feet to hr15"]
["GasHr39","FT3Day2Hr15",null,"cubic feet to hr16"]
["GasHr40","FT3Day2Hr16",null,"cubic feet to hr17"]
["GasHr41","FT3Day2Hr17",null,"cubic feet to hr18"]
["GasHr42","FT3Day2Hr18",null,"cubic feet to hr19"]
["GasHr43","FT3Day2Hr19",null,"cubic feet to hr20"]
["GasHr44","FT3Day2Hr20",null,"cubic feet to hr21"]
["GasHr45","FT3Day2Hr21",null,"cubic feet to hr22"]
["GasHr46","FT3Day2Hr22",null,"cubic feet to hr23"]
["GasHr47","FT3Day2Hr23",null,"cubic feet to hr24"]
["GasHr48","FT3Day3",null,"cubic feet to hr1"]
["GasHr72","FT3Day4",null,"cubic feet to hr1"]
["GasHr96","FT3Day5",null,"cubic feet to hr1"]
["GasHr120","FT3Day6",null,"cubic feet to hr1"]
["GasHr144","FT3Day7",null,"cubic feet to hr1"]
["GasHr168","FT3Day8",null,"cubic feet to hr1"]
["GasHr192","FT3Day9",null,"cubic feet to hr1"]
["GasHr216","FT3Day10",null,"cubic feet to hr1"]
["GasHr240","FT3Day11",null,"cubic feet to hr1"]
["GasHr264","FT3Day12",null,"cubic feet to hr1"]
["GasHr288","FT3Day13",null,"cubic feet to hr1"]
["GasHr312","FT3Day14",null,"cubic feet to hr1"]
["GasHr336","FT3Day15",null,"cubic feet to hr1"]
["GasHr360","FT3Day16",null,"cubic feet to hr1"]
["GasHr384","FT3Day17",null,"cubic feet to hr1"]
["GasHr408","FT3Day18",null,"cubic feet to hr1"]
["GasHr432","FT3Day19",null,"cubic feet to hr1"]
["GasHr456","FT3Day20",null,"cubic feet to hr1"]
["GasHr480","FT3Day21",null,"cubic feet to hr1"]
["GasHr504","FT3Day22",null,"cubic feet to hr1"]
["GasHr528","FT3Day23",null,"cubic feet to hr1"]
["GasHr552","FT3Day24",null,"cubic feet to hr1"]
["GasHr576","FT3Day25",null,"cubic feet to hr1"]
["GasHr600","FT3Day26",null,"cubic feet to hr1"]
["GasHr624","FT3Day27",null,"cubic feet to hr1"]
["GasHr648","FT3Day28",null,"cubic feet to hr1"]
["GasHr672","FT3Day29",null,"cubic feet to hr1"]
["GasHr696","FT3Day30",null,"cubic feet to hr1"]
["GasHr720","FT3Day31",null,"cubic feet to hr1"]
["EngUnits0","FuelFlow","Pct",100]
["Rll0","OilPressLoLo",null,"Setpoint"]
["Rll1","HdH2OPresLoLo",null,"Setpoint"]
["Rll2","EngOutH2OLoLo",null,"Setpoint"]
["Rll3","H2ONzlePresLoLo",null,"Setpoint"]
["Rll4","FuelDPLoLo",null,"Setpoint"]
["Rll5","FuelPresLoLo",null,"Setpoint"]
["Rll6","H2OJacketDPLoLo",null,"Setpoint"]
["Rll7","H2OManDPLoLo",null,"Setpoint"]
["Rll8","DPAirFiltLoLo",null,"Setpoint"]
["Rll9","DPGasMixerLoLo",null,"Setpoint"]
["Rll10","ManifoldPresLoLo",null,"Setpoint"]
["Rll11","ExhCatUpstrLoLo",null,"Setpoint"]
["Rll12","CrnkCsPresLoLo",null,"Setpoint"]
["Rll13","ExhManH2OinLoLo",null,"Setpoint"]
["Rll14","FeedH2oPressLoLo",null,"Setpoint"]
["Rll15","EncoderLoLo",null,"Setpoint"]
["Rl0","OilPressLow",null,"Setpoint"]
["Rl1","HdH2OPresLow",null,"Setpoint"]
["Rl2","EngOutH2OLow",null,"Setpoint"]
["Rl3","H2ONzlePresLow",null,"Setpoint"]
["Rl4","FuelDPLow",null,"Setpoint"]
["Rl5","FuelPresLow",null,"Setpoint"]
["Rl6","H2OJacketDPLow",null,"Setpoint"]
["Rl7","H2OManDPLow",null,"Setpoint"]
["Rl8","DPAirFiltLow",null,"Setpoint"]
["Rl9","DPGasMixerLow",null,"Setpoint"]
["Rl10","ManifoldPresLow",null,"Setpoint"]
["Rl11","ExhCatUpstrLow",null,"Setpoint"]
["Rl12","CrnkCsPresLow",null,"Setpoint"]
["Rl13","ExhManH2OinLow",null,"Setpoint"]
["Rl14","FeedH2oPressLow",null,"Setpoint"]
["Rl15","EncoderLow",null,"Setpoint"]
["Rh0","OilPressHigh",null,"Setpoint"]
["Rh1","HdH2OPresHigh",null,"Setpoint"]
["Rh2","EngOutH2OHigh",null,"Setpoint"]
["Rh3","H2ONzlePresHigh",null,"Setpoint"]
["Rh4","FuelDPHigh",null,"Setpoint"]
["Rh5","FuelPresHigh",null,"Setpoint"]
["Rh6","H2OJacketDPHigh",null,"Setpoint"]
["Rh7","H2OManDPHigh",null,"Setpoint"]
["Rh8","DPAirFiltHigh",null,"Setpoint"]
["Rh9","DPGasMixerHigh",null,"Setpoint"]
["Rh10","ManifoldPresHigh",null,"Setpoint"]
["Rh11","ExhCatUpstrHigh",null,"Setpoint"]
["Rh12","CrnkCsPresHigh",null,"Setpoint"]
["Rh13","ExhManH2OinHigh",null,"Setpoint"]
["Rh14","FeedH2oPressHigh",null,"Setpoint"]
["Rh15","EncoderHigh",null,"Setpoint"]
["Rhh0","OilPressHiHi",null,"Setpoint"]
["Rhh1","HdH2OPresHiHi",null,"Setpoint"]
["Rhh2","EngOutH2OHiHi",null,"Setpoint"]
["Rhh3","H2ONzlePresHiHi",null,"Setpoint"]
["Rhh4","FuelDPHiHi",null,"Setpoint"]
["Rhh5","FuelPresHiHi",null,"Setpoint"]
["Rhh6","H2OJacketDPHiHi",null,"Setpoint"]
["Rhh7","H2OManDPHiHi",null,"Setpoint"]
["Rhh8","DPAirFiltHiHi",null,"Setpoint"]
["Rhh9","DPGasMixerHiHi",null,"Setpoint"]
["Rhh10","ManifoldPresHiHi",null,"Setpoint"]
["Rhh11","ExhCatUpstrHiHi",null,"Setpoint"]
["Rhh12","CrnkCsPresHiHi",null,"Setpoint"]
["Rhh13","ExhManH2OinHiHi",null,"Setpoint"]
["Rhh14","FeedH2oPressHiHi",null,"Setpoint"]
["Rhh15","EncoderHiHi",null,"Setpoint"]
["all0","OilPressAlLL"]
["all1","HdH2OPresAlLL"]
["all2","EngOutH2OAlLL"]
["all3","H2ONzlePresAlLL"]
["all4","FuelDPAlLL"]
["all5","FuelPresAlLL"]
["all6","H2OJacketDPAlLL"]
["all7","H2OManDPAlLL"]
["all8","DPAirFiltAlLL"]
["all9","DPGasMixerAlLL"]
["all10","ManifoldPresAlLL"]
["all11","ExhCatUpstrAlLL"]
["all12","CrnkcsPresAlLL"]
["all13","ExhManH2OinAlLL"]
["all14","FeedH2oPressAlLL"]
["all15","EncoderAlLL"]
["all16","LBD100AlLL"]
["all17","LBD101AlLL"]
["all18","SPR118AlLL"]
["all19","SPR119AlLL"]
["all20","SPR120AlLL"]
["all21","VDC12LowTrip",null,"12vdc supply is really low.  (set at 11vdc)."]
["all22","SPR122AlLL"]
["all23","SPR123AlLL"]
["all24","TC124AlLL"]
["all25","TC125AlLL"]
["all26","TC126AlLL"]
["all27","TC127AlLL"]
["all28","TC128AlLL"]
["all29","TC129AlLL"]
["all30","TC130AlLL"]
["all31","TC131AlLL"]
["all32","TC132AlLL"]
["all33","TC133AlLL"]
["all34","TC134AlLL"]
["all35","TC135AlLL"]
["all36","TC136AlLL"]
["all37","TC137AlLL"]
["all40","TC140AlLL"]
["all41","TC141AlLL"]
["all42","TC142AlLL"]
["all43","TC143AlLL"]
["all44","TC144AlLL"]
["all45","TC145AlLL"]
["all46","TC146AlLL"]
["all47","TC147AlLL"]
["all48","TC148AlLL"]
["all49","TC149AlLL"]
["all50","TC150AlLL"]
["all51","TC151AlLL"]
["all52","TC152AlLL"]
["all53","TC153AlLL"]
["al0","OilPressAlL0"]
["al1","HdH2OPresAlL0"]
["al2","EngOutH2OAlL0"]
["al3","H2ONzlePresAlL0"]
["al4","FuelDPAlL0"]
["al5","FuelPresAlL0"]
["al6","H2OJacketDPAlL0",null,"Low Jacket water flow alarm.  Flow is lower than minimum allowable flow"]
["al7","H2OManDPAlL0",null,"Low Manifold water flow alarm.  Flow is lower than minimum allowable flow"]
["al8","DPAirFiltAlL0"]
["al9","DPGasMixerAlL0"]
["al10","ManifoldPresAlL0"]
["al11","ExhCatUpstrAlL0"]
["al12","CrnkcsPresAlL0"]
["al13","ExhManH2OinAlL0"]
["al14","FeedH2oPressAlL0"]
["al15","EncoderAlL0"]
["al16","LBD100AlLo"]
["al17","LBD101AlLo"]
["al18","SPR118AlLo"]
["al19","SPR119AlLo"]
["al20","SPR120AlLo"]
["al21","VDC12LowAlarm",null,"12 vdc supply Low Alarm."]
["al22","SPR122AlLo"]
["al23","SPR123AlLo"]
["al24","TC124AlLo"]
["al25","TC125AlLo"]
["al26","TC126AlLo"]
["al27","TC127AlLo"]
["al28","TC128AlLo"]
["al29","TC129AlLo"]
["al30","TC130AlLo"]
["al31","TC131AlLo"]
["al32","TC132AlLo",null,"Water out of engine rigth side low alarm"]
["al33","TC133AlLo",null,"Water out of engine Left side low alarm"]
["al34","TC134AlLo"]
["al35","TC135AlLo"]
["al36","TC136AlLo"]
["al37","TC137AlLo"]
["al38","FirstTccardALow"]
["al39","notused39ALow"]
["al40","TC140AlLo"]
["al41","TC141AlLo"]
["al42","TC142AlLo"]
["al43","TC143AlLo"]
["al44","TC144AlLo"]
["al45","TC145AlLo"]
["al46","TC146AlLo"]
["al47","TC147AlLo"]
["al48","TC148AlLo"]
["al49","TC149AlLo"]
["al50","TC150AlLo"]
["al51","TC151AlLo"]
["al52","TC152AlLo"]
["al53","TC153AlLo"]
["al54","SecTccard1ALow"]
["al55","SecTccard2ALow"]
["al56","spare56ALow"]
["al57","spare57ALow"]
["al58","spare58ALow"]
["al59","spare59ALow"]
["al60","O2ALow"]
["al61","NOLowPPMALow"]
["al62","NOHiPPMALow"]
["al63","COppmALow"]
["al64","NO2PPMALow"]
["al65","CO2PercentALow"]
["al66","CEMcabTempALow"]
["al67","CEMH2OTempLo"]
["al68","NOxCorr_3PcALow"]
["al69","COCorr_3PctALow"]
["al70","EngSpeedsetALow"]
["al71","EngSpeeddecALow"]
["al72","SPDRAMPIntALow"]
["al73","SPDRAMPDecALow"]
["al74","MOTORSPdIntALow"]
["al75","MOTORSDDecALow"]
["al76","FrequencyALow"]
["al77","TorqReferenALow"]
["al78","TorqDemandALow"]
["al79","MotorTorqueALow"]
["al80","TorqPctALow"]
["al81","TorqDdPctALow"]
["al82","MotorTqPctALow"]
["al83","MotorTqLimtALow"]
["al84","MotTqUsedALow"]
["al85","MotTqPctUseALow"]
["al86","TorqLimPctUALow"]
["al87","FluxALow"]
["al88","PIDReferencALow"]
["al90","PidFeedbkPCALow"]
["al91","PIDErrorRlALow"]
["al92","PIDOutPCTRlALow"]
["al93","PIDRefUsedRALow"]
["al94","PidFeedbkRlALow"]
["al95","PIDOutputRlALow"]
["al96","GenAmpALow"]
["al97","GenVoltALow"]
["al98","MotKwALow"]
["al99","DCBusVoltagALow"]
["al100","SupplyVoltaALow"]
["ahh0","OilPressALHH","`"]
["ahh1","HdH2OPresALHH"]
["ahh2","EngOutH2OALHH"]
["ahh3","H2ONzlePresALHH"]
["ahh4","FuelDPALHH"]
["ahh5","FuelPresALHH","``"]
["ahh6","H2OJacketDPALHH"]
["ahh7","H2OManDPALHH"]
["ahh8","DPAirFiltALHH"]
["ahh9","DPGasMixerALHH"]
["ahh10","ManifoldPresALHH"]
["ahh11","ExhCatUpstrALHH"]
["ahh12","CrnkcsPresALHH"]
["ahh13","ExhManH2OinALHH"]
["ahh14","FeedH2oPressALHH"]
["ahh15","EncoderALHH"]
["ahh16","LBD100AlHH"]
["ahh17","LBD101AlHH"]
["ahh18","SPR118AlHH"]
["ahh19","SPR119AlHH"]
["ahh20","SPR120AlHH"]
["ahh21","SPR121AlHH"]
["ahh22","SPR122AlHH"]
["ahh23","SPR123AlHH"]
["ahh24","TC124AlHH"]
["ahh25","TC125AlHH"]
["ahh26","TC126AlHH"]
["ahh27","TC127AlHH"]
["ahh28","TC128AlHH"]
["ahh29","TC129AlHH"]
["ahh30","TC130AlHH"]
["ahh31","TC131AlHH"]
["ahh32","TC132AlHH"]
["ahh33","TC133AlHH"]
["ahh34","TC134AlHH"]
["ahh35","TC135AlHH"]
["ahh36","TC136AlHH"]
["ahh37","TC137AlHH"]
["ahh40","TC140AlHH"]
["ahh41","TC141AlHH"]
["ahh42","TC142AlHH"]
["ahh43","TC143AlHH"]
["ahh44","TC144AlHH"]
["ahh45","TC145AlHH"]
["ahh46","TC146AlHH"]
["ahh47","TC147AlHH"]
["ahh48","TC148AlHH"]
["ahh49","TC149AlHH"]
["ahh50","TC150AlHH"]
["ahh51","TC151AlHH"]
["ahh52","TC152AlHH"]
["ahh53","TC153AlHH"]
["ah0","OilPressALH",null,"Setpoint"]
["ah1","HdH2OPresALH",null,"Setpoint"]
["ah2","EngOutH2OALH",null,"Setpoint"]
["ah3","H2ONzlePresALH",null,"Setpoint"]
["ah4","FuelDPALH",null,"Setpoint"]
["ah5","FuelPresALH",null,"Setpoint"]
["ah6","H2OJacketDPALH",null,"High Jacket water flow alarm.  Flow is higher than highest  allowable flow"]
["ah7","H2OManDPALH",null,"High manifold water flow alarm.  Flow is higher than highest  allowable flow"]
["ah8","DPAirFiltALH",null,"Setpoint"]
["ah9","DPGasMixerALH",null,"Setpoint"]
["ah10","ManifoldPresALH",null,"Setpoint"]
["ah11","ExhCatUpstrALH",null,"Setpoint"]
["ah12","CrnkcsPresALH",null,"Setpoint"]
["ah13","ExhManH2OinALH",null,"Setpoint"]
["ah14","FeedH2oPressALH",null,"Setpoint"]
["ah15","EncoderALH",null,"Setpoint"]
["ah16","LambdaALH","LambdaB4AlHH","Setpoint"]
["ah17","LambdaAftH","LambdaAftAlH","Setpoint"]
["ah18","LBD101AlH","SpareAlHH","Setpoint"]
["ah19","SPR118AlH","SpareAlHH","Setpoint"]
["ah20","SPR119AlH","SpareAlHH","Setpoint"]
["ah21","SPR120AlH","SpareAlHH","Setpoint"]
["ah22","SPR121AlH","SpareAlHH","Setpoint"]
["ah23","SPR122AlH","SpareAlHH","Setpoint"]
["ah24","SPR123AlH","EngExhst1AlHH","Setpoint"]
["ah25","TC125AlHI","EngExhst2AlHH","Setpoint"]
["ah26","TC126AlHI","EngExhst3AlHH","Setpoint"]
["ah27","TC127AlHI","EngExhst4AlHH","Setpoint"]
["ah28","TC128AlHI","EngExhst5AlHH","Setpoint"]
["ah29","TC129AlHI","EngExhst6AlHH","Setpoint"]
["ah30","TC130AlHI","EngExhst7AlHH","Setpoint"]
["ah31","TC131AlHI","EngExhst8AlHH","Setpoint"]
["ah32","TC132AlHI","H2OHeadRtAlHH","Setpoint"]
["ah33","TC133AlHI","H2OHeadLfAlHH","Setpoint"]
["ah34","TC134AlHI","H2OExhstMnRtAlHH","Setpoint"]
["ah35","TC135AlHI","H2OExhstMnLfAlHH","Setpoint"]
["ah36","TC136AlHI","AirInTempAlHH","Setpoint"]
["ah37","TC137AlHI","ManIfldTempAlHH","Setpoint"]
["ah38","FirstTccardALHi","FuelTempAlHH","Setpoint"]
["ah39",null,"ExhstRtAlHH","Setpoint"]
["ah40","TC140AlHi","FuelTempAlHH","Setpoint"]
["ah41","TC141AlHi","ExhstRtAlHH","Setpoint"]
["ah42","TC142AlHi","ExhstLtAlHH","Setpoint"]
["ah43","TC143AlHi","CatouttempAlHH","Setpoint"]
["ah44","TC144AlHi","OilTankAlHH","Setpoint"]
["ah45","TC145AlHi","OilFilterAlHH","Setpoint"]
["ah46","TC146AlHi","OilHXH2OinAlHH","Setpoint  GenAirOutAlHH"]
["ah47","TC147AlHi","OilHXH2OoutAlHH","Setpoint  GenWindAlHH"]
["ah48","TC148AlHi","GenAirOutAlHH"]
["ah49","TC149AlHi","GenWindAlHH"]
["ah50","TC150AlHi"]
["ah51","TC151AlHi"]
["ah52","TC152AlHi"]
["ah53","TC153AlHi"]
["ah54","SecTccard1ALHi"]
["ah55","SecTccard2ALHi"]
["ah56","spare56ALHi"]
["ah57","spare57ALHi"]
["ah58","spare58ALHi"]
["ah59","spare59ALHi"]
["ah60","O2ALHi"]
["ah61","NOLowPPMALHi"]
["ah62","NOHiPPMALHi"]
["ah63","COppmALHi"]
["ah64","NO2PPMALHi"]
["ah65","CO2PercentALHi"]
["ah66","CEMcabTempALHi"]
["ah67","CEMH2OHi"]
["ah68","NOxCorr_3PcALHi"]
["ah69","COCorr_3PctALHi"]
["ah70","EngSpeedsetALHi"]
["ah71","EngSpeeddecALHi"]
["ah72","SPDRAMPIntALHi"]
["ah73","SPDRAMPDecALHi"]
["ah74","MOTORSPdIntALHi"]
["ah75","MOTORSDDecALHi"]
["ah76","FrequencyALHi"]
["ah77","TorqReferenALHi"]
["ah78","TorqDemandALHi"]
["ah79","MotorTorqueALHi"]
["ah80","TorqPctALHi"]
["ah81","TorqDdPctALHi"]
["ah82","MotorTqPctALHi"]
["ah83","MotorTqLimtALHi"]
["ah84","MotTqUsedALHi"]
["ah85","MotTqPctUseALHi"]
["ah86","TorqLimPctUALHi"]
["ah87","FluxALHi"]
["ah88","PIDReferencALHi"]
["ah90","PidFeedbkPCALHi"]
["ah91","PIDErrorRlALHi"]
["ah92","PIDOutPCTRlALHi"]
["ah93","PIDRefUsedRALHi"]
["ah94","PidFeedbkRlALHi"]
["ah95","PIDOutputRlALHi"]
["ah96","GenAmpALHi"]
["ah97","GenVoltALHi"]
["ah98","MotKwALHi"]
["ah99","DCBusVoltagALHi"]
["ah100","SupplyVoltaALHi"]
["ah101","DigInputsALHi"]
["ah102","AmbTempALHi"]
["ah103","IGBTTpALHi"]
["ah104","OperateTimeALHi"]
["ah106","RGenVDCRealALHi"]
["ah107","RGenAmpsReaALHi"]
["ah108","RGenPowerReALHi"]
["ah109","RGenACvoltRALHi"]
["ah110","BlockFdVlvALHi"]
["ah111","ManFdVlvALHi"]
["EngMax0","TempMax0"]
["EngMax1","HdH2OPresEMax"]
["EngMax2","EngOutH2OEMax"]
["EngMax3","H2ONzlePresEMax"]
["EngMax4","FuelDPEMax"]
["EngMax5","FuelPresEMax"]
["EngMax6","H2OJacketDPEMax"]
["EngMax7","H2OManDPEMax"]
["EngMax8","DPAirFiltEMax"]
["EngMax9","DPGasMixerEMax"]
["EngMax10","ManifoldPresEMax"]
["EngMax11","ExhCatUpstrEMax"]
["EngMax12","CrnkCsPresEMax"]
["EngMax13","ExhManH2OinEMax"]
["EngMax14","FeedH2oPressEMax"]
["EngMax15","EncoderEMax"]
["EngMax68","ScaleCorrectNO",null,"If O2<17% NOx corrected for 3% O2, else its not corrected"]
["EngMax69","ScaleCorrectCO",null,"If O2<17% CO corrected for 3% O2, else its not corrected"]
["EngMin0","OilPressEMin"]
["EngMin1","HdH2OPresEMin"]
["EngMin2","EngOutH2OEMin"]
["EngMin3","H2ONzlePresEMin"]
["EngMin4","FuelDPEMin"]
["EngMin5","FuelPresEMin"]
["EngMin6","H2OJacketDPEMin"]
["EngMin7","H2OManDPEMin"]
["EngMin8","DPAirFiltEMin"]
["EngMin9","DPGasMixerEMin"]
["EngMin10","ManifoldPresEMin"]
["EngMin11","ExhCatUpstrEMin"]
["EngMin12","CrnkCsPresEMin"]
["EngMin13","ExhManH2OinEMin"]
["EngMin14","FeedH2oPressEMin"]
["EngMin15","EncoderEMin"]
["Rmax0","OilPressRmax"]
["Rmax1","HdH2OPresRmax"]
["Rmax2","EngOutH2ORmax"]
["Rmax3","H2ONzlePresRmax"]
["Rmax4","FuelDPRmax"]
["Rmax5","FuelPresRmax"]
["Rmax6","H2OJacketDPRmax"]
["Rmax7","H2OManDPRmax"]
["Rmax8","DPAirFiltRmax"]
["Rmax9","DPGasMixerRmax"]
["Rmax10","ManifoldPresRmax"]
["Rmax11","ExhCatUpstrRmax"]
["Rmax12","CrnkCsPresRmax"]
["Rmax13","ExhManH2OinRmax"]
["Rmax14","FeedH2oPressRmax"]
["Rmax15","EncoderRmax"]
["Rmin0","OilPressmin"]
["Rmin1","HdH2OPres"]
["Rmin2","EngOutH2O"]
["Rmin3","H2ONzlePres"]
["Rmin4","FuelDP"]
["Rmin5","FuelPres"]
["Rmin6","H2OJacketDP"]
["Rmin7","H2OManDP"]
["Rmin8","DPAirFilt"]
["Rmin9","DPGasMixer"]
["Rmin10","ManifoldPres"]
["Rmin11","ExhCatUpstr"]
["Rmin12","CrnkCsPres"]
["Rmin13","ExhManH2Oin"]
["Rmin14","FeedH2oPress"]
["Rmin15","Encoder"]
["OilStartRoutine.S0","InitOilVFD",null,"Initialize the oil pump vfd"]
["OilStartRoutine.S1","RampSoakOil",null,"Ramp up the oil pump over long time"]
["OilStartRoutine.S2","OilInAutoP",null,"Oil pressure control is in automatic control"]
["OilStartRoutine.S3","OilCoolDownStage",null,"Run the oil pump for another  few minutes after the engine quits turning"]
["CHPContSequence.S0","Initial",null,"The diagnostic function is here.  Wait till clear and estop to go to next stage."]
["CHPContSequence.S1","Standby",null,"Wait for start command from HMI Then jump to S10 and S20"]
["CHPContSequence.S2","StartH2O",null,"Start the Feedwater Stage Program"]
["CHPContSequence.S3","OilStartingStage",null,"Start the oil pump sequence and then wait till oil is in auto ready to run"]
["CHPContSequence.S4","SlowRollEngine",null,"Set Torque at 40% Slow roll the engine from 0 to engine start RPM Once it gets there go to next stage"]
["CHPContSequence.S5","SetVFDIgnition",null,"Set the VFD full torque and start Ignition Stage"]
["CHPContSequence.S6","WarmUPandCheck",null,"Hold the engine speed at 800 RPM until oil and water are nominal. Check engine output and get lambda checked and ready"]
["CHPContSequence.S7","ReleaseToModulat",null,"Release the Engine to modulated to operating speed"]
["CHPContSequence.S8","PreshutdownRun",null,"Set the engine back to 800rpm and wait for 5 minutes then shutoff ignition fuel"]
["CHPContSequence.S9","NormalShutdown",null,"Ramp to zero then wait till the oil and water routines finish then back to Initial"]
["CHPContSequence.S10","FullStopStage",null,"Emergency Stop Stage that jams the engine to min speed then turns off everything and goes to Stage 0"]
["EngineVFDRdWt.S0","PopPnumbers",null,"Populate the prameters from the drive on first scan"]
["EngineVFDRdWt.S1","PopCNumbers",null,"Populate Cvfd8 through 132"]
["EngineVFDRdWt.S2","PopINumbers",null,"Populate Ivfd25 numbers first scan"]
["EngineVFDRdWt.S3","ReadMNumbers",null,"Read the Measurement Numbers"]
["EngineVFDRdWt.S4","WriteParmVFD",null,"Write the parameters to the VFD"]
["EngineVFDRdWt.S5","WriteCNumbers",null,"Write the Cnumbers to the VFD.  Skips when the drive is running"]
["EngineVFDRdWt.S6","WriteINumbers",null,"Write the I numbers Ivfd25 and 29 are speed and torque"]
["EngineVFDRdWt.S7","ReadRegenDrive",null,"Read the Regen Vdc Amp, Kw and VAC"]
["FeedStartRoutine.S0","StartFeedPID",null,"Starting Feedwater PID"]
["FeedStartRoutine.S1","FeedWarmUp",null,"Warm up the block with oil off until its up to temp"]
["FeedStartRoutine.S2","BlockUpToTemp"]
["FeedStartRoutine.S3","FeedWaterRunOK",null,"Feedwater is in Automatic and ready to roll"]
["FeedStartRoutine.S4","FeedCoolDown",null,"Feedwater running for a while"]
["FeedwaterControl.S0","FeedStart",null,"Starting Feedwater PID"]
["$OilVFD.StatusMonitor1","OilVFDFaults",null,"00 no fault"]
["$OilVFD.StatusMonitor2",null,160,"(32) (P4.00 = 5)      (128)  (P3.00 = 3 or 4)"]
["$OilVFD.BlockParm1","OilVFDAccel",null,"Acceleration speed of oil VFD"]
["$OilVFD.BlockParm2","OilVFDDecel",null,"Decel time for Oil VFD"]
["UN","_rll_V10_"]
["UN","_rhh_V10_"]
["UN","_rl_V10_"]

{"sheet":"Todays Data","index":2,"n_rows":21,"n_cols":182,"rows_kept":21,"cut":false,"hidden":false,"merged":[]}
[22,5]
[]
[]
[]
[]
[]
[]
[]
[]
[]
[]
[]
[]
[]
[]
[]
[]
[]
["DateTime","OilPressReal:","HdH2OPresReal:","EngOutH2OReal:","H2ONzlePresReal:","FuelDPReal:","FuelPresReal:","H2OJacketDPReal:","H2OManDPReal:","DPAirFiltReal:","DPGasMixerReal:","ManifoldPresReal:","ExhCatUpstrReal:","CrnkCsPresReal:","GasToMixReal:","FeedH2oPressReal:","LamFlowEle:","EngH20VlvPct:","ManH20VlvPct:","LambdaRt:","LambdaLeft:","GasRegHdPres:","Supply12vdc:","Spare22:","Spare23:","EngExhst1:","EngExhst2:","EngExhst3:","EngExhst4:","EngExhst5:","EngExhst6:","EngExhst7:","EngExhst8:","EngH2OOutRt:","EngH2OOutLf:","H2OExhstMnRt:","H2OExhstMnLf:","CombinedH2OOut:","H2OHead:","FirstTccard18:","FirstTccard19:","FuelTemp:","ExhstRt:","ExhstLt:","Catouttemp:","OilOutTemp:","OilInTemp:","OilHXH2Oin:","OilHXH2Oout:","GenAirOut:","AirInTemp:","CabinetTemp:","ManifoldTemp:","NatGasTemp:","TC153:","SecTccard1:","SecTccard2:","spare56:","spare57:","spare58:","spare59:","O2:","NOLowPPM:","NOHiPPM:","COppm:","NO2PPM:","CO2Percent:","CEMcabTemp:","CEMH20Temp:","NOxCorr_3PctO2:","COCorr_3PctO2:","EngSpeedset:","EngSpeeddec:","SPDRAMPInt:","SPDRAMPDec:","MOTORSPdInt:","MOTORSDDec:","Frequency:","TorqReference:","TorqDemand:","MotorTorque:","TorqPct:","TorqDdPct:","MotorTqPct:","MotorTqLimt:","MotTqUsed:","MotTqPctUsed:","TorqLimPctUse:","Flux:","PIDReference:",":","PidFeedbkPCTRl:","PIDErrorRl:","PIDOutPCTRl:","PIDRefUsedRl:","PidFeedbkRl:","PIDOutputRl:","GenAmp:","GenVolt:","MotKw:","DCBusVoltage:","SupplyVoltage:","DigInputs:","AmbTemp:","IGBTTp:","OperateTime:",":2","RGenVDCReal:","RGenAmpsReal:","RGenPowerReal:","RGenACvoltReal:","BlockFdVlv:","ManFdVlv:",":3",":4","GasRegPressOut:",":5",":6",":7",":8",":9",":10",":11",":12",":13","CEMH2O:",":14",":15",":16","OilVFDHxSP:","OilVFDHZ:","OilVFDAmp:","OilVFDDCv:","OilVFDVoltOut:","OilGPM:","OilVFDPF:","OilVFDPctLoad:","SpareInput136:","SpareInput137:","SpareInput138:","SpareInput139:","SpareInput140:","SpareInput141:","SpareInput142:","SpareInput143:","SpareInput144:","SpareInput145:","SpareInput146:","SpareInput147:","SpareInput148:","SpareInput149:","SpareInput150:","SpareInput151:","SpareInput152:","SpareInput153:","SpareInput154:","SpareInput155:","SpareInput156:","SpareInput157:","SpareInput158:","SpareInput159:","SpareInput160:","SpareInput161:","SpareInput162:","SpareInput163:","SpareInput164:","SpareInput165:","SpareInput166:","SpareInput167:","SpareInput168:","SpareInput169:","SpareInput170:","SpareInput171:","SpareInput172:","SpareInput173:","SpareInput174:","SpareInput175:","SpareInput176:","SpareInput177:","SpareInput178:","SpareInput179:","SpareInput180:"]
[43674.367928240739,0.17780000000000001,0.38229999999999997,1.9379999999999999,-0.13730000000000001,0.67390000000000005,0.19839999999999999,0.23480000000000001,0.13070000000000001,1.0699999999999999E-2,2.29E-2,9.7000000000000003E-2,-24.998100000000001,0.1013,7.2599999999999998E-2,-11.5602,-312.60730000000001,97.424899999999994,55.470799999999997,0.71360000000000001,0.65200000000000002,0.45340000000000003,14.1806,27.0868,19.761900000000001,70.399600000000007,75.900000000000006,72.2,76.599999999999994,71.998900000000006,76.5,73.175200000000004,76.2,86.165199999999999,84.8,87.304400000000001,82.985100000000003,0,73.400000000000006,1332.9,31.1,0,84.5,83.351600000000005,76.7,71.633099999999999,71.900000000000006,73.921800000000005,73.900000000000006,78.099999999999994,75.599999999999994,80.3,80.5,81.5,53,667.13400000000001,68.86,56,57,58,27.1662,20.828900000000001,8.6800000000000002E-2,-7.9399999999999998E-2,-0.15709999999999999,-0.1825,-2.0999999999999999E-3,75.431100000000001,59.423200000000001,0,0,2100,0,0,0,0,0,0,0,0,0,0,0,0,7238.4336000000003,7238.4336000000003,100,100,0,0,0,0,100,0,0,0,0,0,0,0,730,4,3104,93.451999999999998,85.585999999999999,0,16,724.2,17.8,-9.1999999999999993,486.7,100,55.982900000000001,0,0,0,0,0,0,0,0,0,0,0,0,23.6874,0,0,0,10.6,0,0,657.8,0,0,0,0,0.98240000000000005,0,0,0,0,0]
[43675.496828703705,-0.3,0.42520000000000002,1.9533,-6.0999999999999999E-2,0.67310000000000003,4.5018000000000002,0.22889999999999999,0.13070000000000001,2.18E-2,4.2000000000000003E-2,0.26390000000000002,-25.001999999999999,13.9506,8.5500000000000007E-2,-11.555199999999999,-312.60730000000001,97.406800000000004,55.470799999999997,0.71540000000000004,0.65659999999999996,0.99129999999999996,13.9328,26.196300000000001,19.014199999999999,76.697500000000005,81.3,78.501000000000005,82.6,78.277600000000007,83.2,79.381200000000007,82.7,81.624399999999994,82.9,82.520899999999997,82.8964,0,79.3,1332.9,35.1,0,84.2,80.801299999999998,93.1,76.900000000000006,77.400000000000006,80.509900000000002,84.2,77.8,81.3,85.7,81.5,82.3,53,667.13400000000001,70.39,56,57,58,27.1662,20.882400000000001,0.26050000000000001,-0.63529999999999998,0.94269999999999998,2.0078999999999998,0,74.027199999999993,45.704300000000003,0,0,2100,0,0,0,0,0,0,0,0,0,0,0,0,7238.4336000000003,7238.4336000000003,100,100,0,0,0,0,100,0,0,0,0,0,0,0,727,4,3104,95.378,84.182000000000002,0,16,724.4,25.2,-11.3,465.7,100,55.982900000000001,0,0,0,0,0,0,0,0,0,0,0,0,18.021999999999998,0,0,0,0.3,0,0,622.1,0,0,0,0,0.98240000000000005,0,0,0,0,0,0,0,0,0,0,0,0,0,0,0,0,0,0,0,0,0,0,0,0,0,0,0,0,0,0,0,0,0,0,0,0,0,0,0,0,0,0,0,0]

{"sheet":"Curve Screen","index":3,"n_rows":17,"n_cols":31,"rows_kept":17,"cut":false,"hidden":false,"merged":[[4,0,4,11],[5,10,5,11],[5,0,5,1],[5,2,5,3],[5,4,5,5],[5,6,5,7],[5,8,5,9],[5,29,5,30],[5,19,5,20],[5,21,5,22],[5,23,5,24],[5,25,5,26],[5,27,5,28]]}
[]
["Success"]
[]
[]
["Natural Gas Curves"]
["FD Fan VFD",null,"FGR Fan VFD",null,"Damper",null,"Air",null,"Damper2",null,"Stack O2",null,null,null,"Air",null,null,null,null,"FD Fan VFD",null,"FGR Fan VFD",null,"Damper",null,"Air",null,"Damper2",null,"Stack O2"]
["x","y","x","y","x","y","x","y","x","y","x","y",null,null,"x","y",null,null,null,"x","y","x","y","x","y","x","y","x","y","x","y"]
[3,6,10,10,0.56499999761581421,5,2,2,2,90,0,0,null,null,150,100,null,null,null,8.5539999008178711,10,10,10,0.56499999761581421,5,10,6.5529999732971191,2,90,2,10]
[10,15,20,52,20,6,10,6,20,85.209999084472656,0,0,null,null,null,null,null,null,null,19,20,20,20,20,6,20,13.220000267028809,20,85.209999084472656,5,4]
[29.445999145507813,30,30,30,30,7,30,16.132999420166016,30,80.419998168945313,0,0,null,null,null,null,null,null,null,29.445999145507813,30,30,30,30,7,30,19.886999130249023,30,80.419998168945313,10,3]
[39.891998291015625,40,43,40,40,8,40,20.923000335693359,40,75.629997253417969,0,0,null,null,null,null,null,null,null,39.891998291015625,40,43,40,40,8,40,26.554000854492188,40,75.629997253417969,20,2.2000000476837158]
[50.338001251220703,50,50,50,50,9,50,25.71299934387207,50,70.839996337890625,0,0,null,null,null,null,null,null,null,50.338001251220703,50,50,50,50,9,50,33.221000671386719,50,70.839996337890625,30,2]
[60.784000396728516,60,60,60,60,10,60,30.503000259399414,60,66.050003051757813,0,0,null,null,null,null,null,null,null,60.784000396728516,60,60,60,60,10,60,39.88800048828125,60,66.050003051757813,40,1.1000000238418579]
[71.230003356933594,70,70,70,70,11,70,35.292999267578125,70,61.259998321533203,0,0,null,null,null,null,null,null,null,71.230003356933594,70,70,70,70,11,70,46.555000305175781,70,61.259998321533203,50,0.91200000047683716]
[81.676002502441406,80,80,80,80,12,80,40.083000183105469,80,56.470001220703125,0,0,null,null,null,null,null,null,null,81.676002502441406,80,80,80,80,12,80,53.222000122070313,80,56.470001220703125,60,0.89200001955032349]
[92.122001647949219,90,90,90,90,13,90,44.873001098632813,90,51.680000305175781,0,0,null,null,null,null,null,null,null,92.122001647949219,90,90,90,90,13,90,59.888999938964844,90,51.680000305175781,70,0.87199997901916504]
[100,100,100,100,100,14,100,49.662998199462891,100,46.889999389648438,0,0,null,null,null,null,null,null,null,100,95,100,100,100,14,100,66.555999755859375,100,46.889999389648438,80,0.85199999809265137]

{"sheet":"SettingsList","index":4,"n_rows":44,"n_cols":12,"rows_kept":44,"cut":false,"hidden":false,"merged":[]}
[]
["Success"]
[]
[]
[null,"Connection success"]
["PurgeSpeed",null,0,"HZ",null,null,null,null,"FuelReaction",null,0]
[]
["FDX0",null,0,null,null,null,null,null,"DraftFilter",null,0]
[]
["FeedWaterCoolDn",null,0,null,null,null,null,null,"VFDAdvanceTime",null,0,"Seconds"]
[]
["OilCoolDn",null,0,null,null,null,null,null,"VFDAdvanceHz",null,0,"Hz"]
[]
["EngineSiezed",null,4.2038953929744512E-45,null,null,null,null,null,"MANVLVDLY",null,0]
[]
["ShutOffFuelSg9",null,0,null,null,null,null,null,"AirFilter",null,0]
[]
["mCHPStage0",null,4.2038953929744512E-45,null,null,null,null,null,"FgrTimer",null,0,"HZ"]
[]
["mbX0",null,0,null,null,null,null,null,"FGRSteamP",null,0,"PSI"]
[]
["mbX1",null,4.2038953929744512E-45,null,null,null,null,null,"Drumoffset",null,0]
[]
["mbX2",null,0,null,null,null,null,null,"FeedwaterFilter",null,0]
[]
["mbX3",null,0,null,null,null,null,null,"oilfiltersize",null,0]
[]
[null,null,0]
[]
[null,null,200]
[]
[null,null,100]
[]
["PLC IP ADDRESS OCTETS"]
[10,2,23,70]
["Maxsteam"]
[200]
[]
["MaxFire %"]
[58.4]
["ErrorTagsBegin"]
[1091]
["StatusTagsBegin"]
[362]

{"sheet":"ModbusScalingRoutine","index":5,"n_rows":247,"n_cols":28,"rows_kept":247,"cut":false,"hidden":false,"merged":[]}
["O2:","Success",2]
["# of Analogs",180,1,null,null,null,null,null,null,null,"10.2.23.168. fe80::e0e6:2b29:e372:eba"]
["Success",0,"$B$1",null,null,null,null,null,null,null,null,null,null,null,null,null,null,null,null,null,"OilPressReal:",null,null,"EngExhst1:"]
["Analog Input",null,"Rmin",null,"Rmax",null,"EngMin",null,"EngMax",null,"EngUnits","ModbusFloats","rh","ModbusHi","rhh",null,"rl",null,"rll",null,"Filter milisecond",null,null,"Square Root","Alarm enable",null,"Trip Enabled"]
["Signed Word","Connection Error","Signed Word","Signed Word","Signed Word","Signed Word","Reals",null,null,null,null,null,"real",{"$error":"#NAME?"},null,{"$error":"#NAME?"}]
["WX0",1629,"Rmin0",1638,"Rmax0",8191,"EngMin0",0,"engMax0",150,"OilPressReal:",-0.20028994977474213,"rh0",80,"rhh0",100,"rl0",62.5,"rll0",30,"Filt0",100,"SqRt0",0,"Alarmbit0",1,"TripBit0",1]
["WX1",1669,"Rmin1",1638,"Rmax1",8191,"EngMin1",0,"engMax1",100,"HdH2OPresReal:",0.47169661521911621,"rh1",30,"rhh1",50,"rl1",0,"rll1",0,"Filt1",1,"SqRt1",0,"Alarmbit1",1,"TripBit1",1]
["WX2",1731,"Rmin2",1638,"Rmax2",8191,"EngMin2",0,"engMax2",100,"EngOutH2OReal:",1.4191973209381104,"rh2",25,"rhh2",40,"rl2",0,"rll2",-2,"Filt2",0,"SqRt2",0,"Alarmbit2",1,"TripBit2",1]
["WX3",1616,"Rmin3",1638,"Rmax3",8191,"EngMin3",0,"engMax3",100,"H2ONzlePresReal:",-0.36624446511268616,"rh3",60,"rhh3",65,"rl3",0,"rll3",0,"Filt3",0,"SqRt3",0,"Alarmbit3",1,"TripBit3",1]
["WX4",1641,"Rmin4",1638,"Rmax4",8191,"EngMin4",0,"engMax4",4125,"FuelDPReal:",1.1144272089004517,"rh4",0,"rhh4",2300,"rl4",0,"rll4",0,"Filt4",1,"SqRt4",0,"Alarmbit4",0,"TripBit4",0]
["WX5",1647,"Rmin5",1638,"Rmax5",8191,"EngMin5",0,"engMax5",100,"FuelPresReal:",0.10682130604982376,"rh5",6,"rhh5",8,"rl5",3,"rll5",2,"Filt5",0,"SqRt5",0,"Alarmbit5",1,"TripBit5",1]
["WX6",2440,"Rmin6",2100,"Rmax6",8191,"EngMin6",0,"engMax6",22,"H2OJacketDPReal:",1.2275114059448242,"rh6",17.700000762939453,"rhh6",21,"rl6",15.700000762939453,"rll6",10,"Filt6",2,"SqRt6",0,"Alarmbit6",1,"TripBit6",1]
["WX7",1647,"Rmin7",1638,"Rmax7",8191,"EngMin7",0,"engMax7",4,"H2OManDPReal:",0.14823819696903229,"rh7",3.5999999046325684,"rhh7",0,"rl7",2.5999999046325684,"rll7",0.5,"Filt7",0,"SqRt7",1,"Alarmbit7",1,"TripBit7",0]
["WX8",1656,"Rmin8",1638,"Rmax8",8191,"EngMin8",0,"engMax8",-25,"DPAirFiltReal:",-6.7804165184497833E-2,"rh8",5,"rhh8",0,"rl8",0,"rll8",0,"Filt8",1,"SqRt8",0,"Alarmbit8",1,"TripBit8",1]
["WX9",1670,"Rmin9",1638,"Rmax9",8191,"EngMin9",0,"engMax9",-25,"DPGasMixerReal:",-0.12589654326438904,"rh9",-1,"rhh9",1,"rl9",-12,"rll9",-16,"Filt9",0,"SqRt9",0,"Alarmbit9",1,"TripBit9",1]
["WX10",3797,"Rmin10",1638,"Rmax10",8191,"EngMin10",-411.60000610351563,"engMax10",840,"ManifoldPresReal:",0.3211669921875,"rh10",0,"rhh10",20,"rl10",0,"rll10",0,"Filt10",100,"SqRt10",0,"Alarmbit10",1,"TripBit10",1]
["WX11",0,"Rmin11",1638,"Rmax11",8191,"EngMin11",0,"engMax11",100,"ExhCatUpstrReal:",-25.001323699951172,"rh11",0,"rhh11",0,"rl11",0,"rll11",0,"Filt11",10,"SqRt11",0,"Alarmbit11",0,"TripBit11",0]
["WX12",1672,"Rmin12",1638,"Rmax12",8191,"EngMin12",0,"engMax12",25,"CrnkCsPresReal:",0.12859855592250824,"rh12",20,"rhh12",24,"rl12",4,"rll12",0,"Filt12",100,"SqRt12",0,"Alarmbit12",1,"TripBit12",1]
["WX13",1653,"Rmin13",1638,"Rmax13",8191,"EngMin13",0,"engMax13",28,"GasToMixReal:",6.8365633487701416E-2,"rh13",0,"rhh13",0,"rl13",0,"rll13",0,"Filt13",0,"SqRt13",0,"Alarmbit13",0,"TripBit13",0]
["WX14",883,"Rmin14",1638,"Rmax14",8191,"EngMin14",0,"engMax14",100,"FeedH2oPressReal:",-11.545877456665039,"rh14",0,"rhh14",0,"rl14",0,"rll14",0,"Filt14",2,"SqRt14",0,"Alarmbit14",0,"TripBit14",0]
["WX15",0,"Rmin15",1638,"Rmax15",6881,"EngMin15",0,"engMax15",1000,"LamFlowEle:",-312.41656494140625,"rh15",0,"rhh15",0,"rl15",0,"rll15",0,"Filt15",0,"SqRt15",0,"Alarmbit15",0,"TripBit15",0]
["WX16",8025,"Rmin16",1638,"Rmax16",8191,"EngMin16",0,"engMax16",100,"EngH20VlvPct:",97.462974548339844,"rh16",0,"rhh16",0,"rl16",0,"rll16",0,"Filt16",1,"SqRt16",0,"Alarmbit16",0,"TripBit16",0]
["WX17",5310,"Rmin17",1638,"Rmax17",8191,"EngMin17",0,"engMax17",100,"ManH20VlvPct:",56.0201416015625,"rh17",0,"rhh17",0,"rl17",0,"rll17",0,"Filt17",0,"SqRt17",0,"Alarmbit17",0,"TripBit17",0]
["WX18",608,"Rmin18",0,"Rmax18",4095,"EngMin18",0.64999997615814209,"engMax18",1.3300000429153442,"LambdaRt:",0.75109124183654785,"rh18",0,"rhh18",0,"rl18",0,"rll18",0,"Filt18",25,"SqRt18",0,"Alarmbit18",0,"TripBit18",0]
["WX19",210,"Rmin19",0,"Rmax19",4095,"EngMin19",0.64999997615814209,"engMax19",1.3300000429153442,"LambdaLeft:",0.68498951196670532,"rh19",0,"rhh19",0,"rl19",0,"rll19",0,"Filt19",25,"SqRt19",0,"Alarmbit19",0,"TripBit19",0]
["WX20",1635,"Rmin20",1637,"Rmax20",2932,"EngMin20",0.10000000149011612,"engMax20",20,"GasRegHdPres:",6.773010641336441E-2,"rh20",0,"rhh20",0,"rl20",0,"rll20",0,"Filt20",5,"SqRt20",0,"Alarmbit20",0,"TripBit20",0]
["WX21",3775,"Rmin21",0,"Rmax21",3814,"EngMin21",0,"engMax21",13.899999618530273,"Supply12vdc:",13.757865905761719,"rh21",0,"rhh21",0,"rl21",11.5,"rll21",11,"Filt21",0,"SqRt21",0,"Alarmbit21",1,"TripBit21",0]
["WX22",3304,"Rmin22",1638,"Rmax22",8191,"EngMin22",0,"engMax22",100,"Spare22:",25.411958694458008,"rh22",0,"rhh22",0,"rl22",0,"rll22",0,"Filt22",2,"SqRt22",0,"Alarmbit22",0,"TripBit22",0]
["WX23",2831,"Rmin23",1638,"Rmax23",8191,"EngMin23",0,"engMax23",100,"Spare23:",18.205402374267578,"rh23",0,"rhh23",0,"rl23",0,"rll23",0,"Filt23",0,"SqRt23",0,"Alarmbit23",0,"TripBit23",0]
["WX24",661,"Rmin24",0,"Rmax24",1000,"EngMin24",0,"engMax24",100,"EngExhst1:",66.067024230957031,"rh24",1300,"rhh24",1400,"rl24",0,"rll24",0,"Filt24",1,"SqRt24",0,"Alarmbit24",1,"TripBit24",1]
["WX25",676,"Rmin25",0,"Rmax25",1000,"EngMin25",0,"engMax25",100,"EngExhst2:",67.599998474121094,"rh25",1300,"rhh25",1400,"rl25",0,"rll25",0,"Filt25",0,"SqRt25",0,"Alarmbit25",1,"TripBit25",1]
["WX26",688,"Rmin26",0,"Rmax26",1000,"EngMin26",0,"engMax26",100,"EngExhst3:",68.798820495605469,"rh26",1300,"rhh26",1400,"rl26",0,"rll26",0,"Filt26",2,"SqRt26",0,"Alarmbit26",1,"TripBit26",1]
["WX27",691,"Rmin27",0,"Rmax27",1000,"EngMin27",0,"engMax27",100,"EngExhst4:",69.099998474121094,"rh27",1300,"rhh27",1400,"rl27",0,"rll27",0,"Filt27",0,"SqRt27",0,"Alarmbit27",1,"TripBit27",1]
["WX28",690,"Rmin28",0,"Rmax28",1000,"EngMin28",0,"engMax28",100,"EngExhst5:",69.000030517578125,"rh28",1300,"rhh28",1400,"rl28",0,"rll28",0,"Filt28",1,"SqRt28",0,"Alarmbit28",1,"TripBit28",1]
["WX29",686,"Rmin29",0,"Rmax29",1000,"EngMin29",0,"engMax29",100,"EngExhst6:",68.599998474121094,"rh29",1300,"rhh29",1400,"rl29",0,"rll29",0,"Filt29",0,"SqRt29",0,"Alarmbit29",1,"TripBit29",1]
["WX30",701,"Rmin30",0,"Rmax30",1000,"EngMin30",0,"engMax30",100,"EngExhst7:",70.081138610839844,"rh30",1300,"rhh30",1400,"rl30",0,"rll30",0,"Filt30",2,"SqRt30",0,"Alarmbit30",1,"TripBit30",1]
["WX31",687,"Rmin31",0,"Rmax31",1000,"EngMin31",0,"engMax31",100,"EngExhst8:",68.599998474121094,"rh31",1300,"rhh31",1400,"rl31",0,"rll31",0,"Filt31",0,"SqRt31",0,"Alarmbit31",1,"TripBit31",1]
["WX32",681,"Rmin32",0,"Rmax32",1000,"EngMin32",0,"engMax32",100,"EngH2OOutRt:",68.178176879882813,"rh32",260,"rhh32",270,"rl32",0,"rll32",100,"Filt32",1,"SqRt32",0,"Alarmbit32",0,"TripBit32",1]
["WX33",692,"Rmin33",0,"Rmax33",1000,"EngMin33",0,"engMax33",100,"EngH2OOutLf:",69.199996948242188,"rh33",260,"rhh33",270,"rl33",0,"rll33",100,"Filt33",0,"SqRt33",0,"Alarmbit33",0,"TripBit33",1]
["WX34",698,"Rmin34",0,"Rmax34",1000,"EngMin34",0,"engMax34",100,"H2OExhstMnRt:",69.800437927246094,"rh34",260,"rhh34",270,"rl34",0,"rll34",100,"Filt34",2,"SqRt34",0,"Alarmbit34",0,"TripBit34",1]
["WX35",697,"Rmin35",0,"Rmax35",1000,"EngMin35",0,"engMax35",100,"H2OExhstMnLf:",69.805091857910156,"rh35",260,"rhh35",270,"rl35",130,"rll35",100,"Filt35",2,"SqRt35",0,"Alarmbit35",0,"TripBit35",1]
["WX36",0,"Rmin36",0,"Rmax36",1000,"EngMin36",0,"engMax36",100,"CombinedH2OOut:",0,"rh36",0,"rhh36",0,"rl36",0,"rll36",0,"Filt36",1,"SqRt36",0,"Alarmbit36",0,"TripBit36",0]
["WX37",680,"Rmin37",0,"Rmax37",1000,"EngMin37",0,"engMax37",100,"H2OHead:",68,"rh37",0,"rhh37",0,"rl37",0,"rll37",0,"Filt37",0,"SqRt37",0,"Alarmbit37",0,"TripBit37",0]
["WX38",13329,"Rmin38",0,"Rmax38",1000,"EngMin38",0,"engMax38",100,"FirstTccard18:",1332.9000244140625,"rh38",0,"rhh38",0,"rl38",0,"rll38",0,"Filt38",2,"SqRt38",0,"Alarmbit38",0,"TripBit38",0]
["WX39",329,"Rmin39",0,"Rmax39",1000,"EngMin39",0,"engMax39",100,"FirstTccard19:",32.900001525878906,"rh39",0,"rhh39",0,"rl39",0,"rll39",0,"Filt39",0,"SqRt39",0,"Alarmbit39",0,"TripBit39",0]
["WX40",0,"Rmin40",0,"Rmax40",1000,"EngMin40",0,"engMax40",100,"FuelTemp:",0,"rh40",0,"rhh40",0,"rl40",0,"rll40",0,"Filt40",1,"SqRt40",0,"Alarmbit40",0,"TripBit40",0]
["WX41",0,"Rmin41",0,"Rmax41",1000,"EngMin41",0,"engMax41",100,"ExhstRt:",0,"rh41",1300,"rhh41",1400,"rl41",0,"rll41",0,"Filt41",0,"SqRt41",0,"Alarmbit41",0,"TripBit41",0]
["WX42",0,"Rmin42",0,"Rmax42",1000,"EngMin42",0,"engMax42",100,"ExhstLt:",0,"rh42",1300,"rhh42",1400,"rl42",0,"rll42",0,"Filt42",2,"SqRt42",0,"Alarmbit42",0,"TripBit42",0]
["WX43",734,"Rmin43",0,"Rmax43",1000,"EngMin43",0,"engMax43",100,"Catouttemp:",73.400001525878906,"rh43",0,"rhh43",0,"rl43",0,"rll43",0,"Filt43",0,"SqRt43",0,"Alarmbit43",0,"TripBit43",0]
["WX44",691,"Rmin44",0,"Rmax44",1000,"EngMin44",0,"engMax44",100,"OilOutTemp:",69.10003662109375,"rh44",260,"rhh44",270,"rl44",140,"rll44",110,"Filt44",1,"SqRt44",0,"Alarmbit44",1,"TripBit44",1]
["WX45",705,"Rmin45",0,"Rmax45",1000,"EngMin45",0,"engMax45",100,"OilInTemp:",70.5,"rh45",230,"rhh45",245,"rl45",130,"rll45",100,"Filt45",0,"SqRt45",0,"Alarmbit45",1,"TripBit45",1]
["WX46",741,"Rmin46",0,"Rmax46",1000,"EngMin46",0,"engMax46",100,"OilHXH2Oin:",74.100273132324219,"rh46",230,"rhh46",235,"rl46",140,"rll46",100,"Filt46",2,"SqRt46",0,"Alarmbit46",0,"TripBit46",1]
["WX47",709,"Rmin47",0,"Rmax47",1000,"EngMin47",0,"engMax47",100,"OilHXH2Oout:",70.900001525878906,"rh47",260,"rhh47",240,"rl47",140,"rll47",100,"Filt47",0,"SqRt47",0,"Alarmbit47",0,"TripBit47",1]
["WX48",689,"Rmin48",0,"Rmax48",1000,"EngMin48",0,"engMax48",100,"GenAirOut:",68.900001525878906,"rh48",120,"rhh48",160,"rl48",0,"rll48",0,"Filt48",0,"SqRt48",0,"Alarmbit48",1,"TripBit48",1]
["WX49",695,"Rmin49",0,"Rmax49",1000,"EngMin49",0,"engMax49",100,"AirInTemp:",69.5,"rh49",0,"rhh49",0,"rl49",0,"rll49",0,"Filt49",0,"SqRt49",0,"Alarmbit49",0,"TripBit49",0]
["WX50",800,"Rmin50",0,"Rmax50",1000,"EngMin50",0,"engMax50",100,"CabinetTemp:",80,"rh50",110,"rhh50",120,"rl50",0,"rll50",0,"Filt50",0,"SqRt50",0,"Alarmbit50",1,"TripBit50",1]
["WX51",688,"Rmin51",0,"Rmax51",1000,"EngMin51",0,"engMax51",100,"ManifoldTemp:",68.800003051757813,"rh51",0,"rhh51",0,"rl51",0,"rll51",0,"Filt51",0,"SqRt51",0,"Alarmbit51",0,"TripBit51",0]
["WX52",690,"Rmin52",0,"Rmax52",1000,"EngMin52",0,"engMax52",100,"NatGasTemp:",69,"rh52",0,"rhh52",0,"rl52",0,"rll52",0,"Filt52",0,"SqRt52",0,"Alarmbit52",0,"TripBit52",0]
["WX53",0,"Rmin53",0,"Rmax53",1000,"EngMin53",53,"engMax53",100,"TC153:",53,"rh53",0,"rhh53",0,"rl53",0,"rll53",0,"Filt53",0,"SqRt53",0,"Alarmbit53",0,"TripBit53",0]
["WX54",13329,"Rmin54",0,"Rmax54",1000,"EngMin54",54,"engMax54",100,"SecTccard1:",667.13397216796875,"rh54",0,"rhh54",0,"rl54",0,"rll54",0,"Filt54",0,"SqRt54",0,"Alarmbit54",0,"TripBit54",0]
["WX55",326,"Rmin55",0,"Rmax55",1000,"EngMin55",55,"engMax55",100,"SecTccard2:",69.669998168945313,"rh55",0,"rhh55",0,"rl55",0,"rll55",0,"Filt55",0,"SqRt55",0,"Alarmbit55",0,"TripBit55",0]
["WX56",0,"Rmin56",0,"Rmax56",1000,"EngMin56",56,"engMax56",100,"spare56:",56,"rh56",0,"rhh56",0,"rl56",0,"rll56",0,"Filt56",0,"SqRt56",0,"Alarmbit56",0,"TripBit56",0]
["WX57",0,"Rmin57",0,"Rmax57",1000,"EngMin57",57,"engMax57",100,"spare57:",57,"rh57",0,"rhh57",0,"rl57",0,"rll57",0,"Filt57",0,"SqRt57",0,"Alarmbit57",0,"TripBit57",0]
["WX58",0,"Rmin58",0,"Rmax58",1000,"EngMin58",58,"engMax58",100,"spare58:",58,"rh58",0,"rhh58",0,"rl58",0,"rll58",0,"Filt58",0,"SqRt58",0,"Alarmbit58",0,"TripBit58",0]
["WX59",0,"Rmin59",2000,"Rmax59",4000,"EngMin59",59,"engMax59",100,"spare59:",27.166154861450195,"rh59",0,"rhh59",0,"rl59",0,"rll59",0,"Filt59",0,"SqRt59",1,"Alarmbit59",0,"TripBit59",0]
["WX60",3761,"Rmin60",1680,"Rmax60",3685,"EngMin60",0,"engMax60",20.899999618530273,"O2:",21.69477653503418,"rh60",0,"rhh60",0,"rl60",0,"rll60",0,"Filt60",2,"SqRt60",0,"Alarmbit60",0,"TripBit60",0]
["WX61",1719,"Rmin61",1738,"Rmax61",2034,"EngMin61",0,"engMax61",29.700000762939453,"NOLowPPM:",-2.2074325084686279,"rh61",0,"rhh61",0,"rl61",0,"rll61",0,"Filt61",0,"SqRt61",0,"Alarmbit61",0,"TripBit61",0]
["WX62",1700,"Rmin62",1769,"Rmax62",2139,"EngMin62",0,"engMax62",29.700000762939453,"NOHiPPM:",-5.6189188957214355,"rh62",0,"rhh62",0,"rl62",0,"rll62",0,"Filt62",0,"SqRt62",0,"Alarmbit62",0,"TripBit62",0]
["WX63",1616,"Rmin63",1432,"Rmax63",2363,"EngMin63",0,"engMax63",99.300003051757813,"COppm:",19.625350952148438,"rh63",0,"rhh63",0,"rl63",0,"rll63",0,"Filt63",0,"SqRt63",0,"Alarmbit63",0,"TripBit63",0]
["WX64",1665,"Rmin64",1686,"Rmax64",2163,"EngMin64",0,"engMax64",99.300003051757813,"COno2PPM:",-4.5798745155334473,"rh64",0,"rhh64",0,"rl64",0,"rll64",0,"Filt64",0,"SqRt64",0,"Alarmbit64",0,"TripBit64",0]
["WX65",1642,"Rmin65",1675,"Rmax65",6574,"EngMin65",0,"engMax65",10.050000190734863,"CO2Percent:",-6.1543170362710953E-2,"rh65",0,"rhh65",0,"rl65",0,"rll65",0,"Filt65",0,"SqRt65",0,"Alarmbit65",0,"TripBit65",0]
["WX66",8111,"Rmin66",1638,"Rmax66",8191,"EngMin66",0,"engMax66",100,"CEMcabTemp:",98.794448852539063,"rh66",0,"rhh66",0,"rl66",0,"rll66",0,"Filt66",0,"SqRt66",0,"Alarmbit66",0,"TripBit66",0]
["WX67",7936,"Rmin67",1638,"Rmax67",8191,"EngMin67",0,"engMax67",100,"CEMH20Temp:",96.108650207519531,"rh67",60,"rhh67",0,"rl67",0,"rll67",0,"Filt67",0,"SqRt67",0,"Alarmbit67",1,"TripBit67",0]
["WX68",-2,"Rmin68",0,"Rmax68",100,"EngMin68",0,"engMax68",275.15390014648438,"NOxCorr_3PctO2:",-2,"rh68",0,"rhh68",0,"rl68",0,"rll68",0,"Filt68",0,"SqRt68",0,"Alarmbit68",0,"TripBit68",0]
["WX69",19,"Rmin69",0,"Rmax69",1000,"EngMin69",0,"engMax69",2751.5390625,"COCorr_3PctO2:",19,"rh69",0,"rhh69",0,"rl69",0,"rll69",0,"Filt69",0,"SqRt69",0,"Alarmbit69",0,"TripBit69",0]
["WX70",0,"Rmin70",0,"Rmax70",1000,"EngMin70",0,"engMax70",1000,"EngSpeedset:",0,"rh70",0,"rhh70",0,"rl70",0,"rll70",0,"Filt70",0,"SqRt70",0,"Alarmbit70",0,"TripBit70",0]
["WX71",0,"Rmin71",0,"Rmax71",1000,"EngMin71",0,"engMax71",1000,"EngSpeeddec:",0,"rh71",0,"rhh71",0,"rl71",0,"rll71",0,"Filt71",0,"SqRt71",0,"Alarmbit71",0,"TripBit71",0]
["WX72",0,"Rmin72",0,"Rmax72",1000,"EngMin72",0,"engMax72",1000,"SPDRAMPInt:",0,"rh72",0,"rhh72",0,"rl72",0,"rll72",0,"Filt72",0,"SqRt72",0,"Alarmbit72",0,"TripBit72",0]
["WX73",0,"Rmin73",0,"Rmax73",1000,"EngMin73",0,"engMax73",1000,"SPDRAMPDec:",0,"rh73",0,"rhh73",0,"rl73",0,"rll73",0,"Filt73",0,"SqRt73",0,"Alarmbit73",0,"TripBit73",0]
["WX74",0,"Rmin74",0,"Rmax74",1000,"EngMin74",0,"engMax74",1000,"MOTORSPdInt:",0,"rh74",0,"rhh74",0,"rl74",0,"rll74",0,"Filt74",0,"SqRt74",0,"Alarmbit74",0,"TripBit74",0]
["WX75",0,"Rmin75",0,"Rmax75",1000,"EngMin75",0,"engMax75",1000,"MOTORSDDec:",0,"rh75",0,"rhh75",0,"rl75",0,"rll75",0,"Filt75",0,"SqRt75",0,"Alarmbit75",0,"TripBit75",0]
["WX76",0,"Rmin76",0,"Rmax76",1000,"EngMin76",0,"engMax76",100,"Frequency:",0,"rh76",0,"rhh76",0,"rl76",0,"rll76",0,"Filt76",0,"SqRt76",0,"Alarmbit76",0,"TripBit76",0]
["WX77",0,"Rmin77",0,"Rmax77",1000,"EngMin77",0,"engMax77",73.756210327148438,"TorqReference:",0,"rh77",0,"rhh77",0,"rl77",0,"rll77",0,"Filt77",0,"SqRt77",0,"Alarmbit77",0,"TripBit77",0]
["WX78",0,"Rmin78",0,"Rmax78",1000,"EngMin78",0,"engMax78",73.756210327148438,"TorqDemand:",2.4275634970066832E-38,"rh78",0,"rhh78",0,"rl78",0,"rll78",0,"Filt78",100,"SqRt78",0,"Alarmbit78",0,"TripBit78",0]
["WX79",0,"Rmin79",0,"Rmax79",1000,"EngMin79",0,"engMax79",73.756210327148438,"MotorTorque:",0,"rh79",0,"rhh79",0,"rl79",0,"rll79",0,"Filt79",0,"SqRt79",0,"Alarmbit79",0,"TripBit79",0]
["WX80",0,"Rmin80",0,"Rmax80",1000,"EngMin80",0,"engMax80",1000,"TorqPct:",0,"rh80",0,"rhh80",0,"rl80",0,"rll80",0,"Filt80",0,"SqRt80",0,"Alarmbit80",0,"TripBit80",0]
["WX81",0,"Rmin81",0,"Rmax81",1000,"EngMin81",0,"engMax81",1000,"TorqDdPct:",0,"rh81",0,"rhh81",0,"rl81",0,"rll81",0,"Filt81",0,"SqRt81",0,"Alarmbit81",0,"TripBit81",0]
["WX82",0,"Rmin82",0,"Rmax82",1000,"EngMin82",0,"engMax82",1000,"MotorTqPct:",0,"rh82",0,"rhh82",0,"rl82",0,"rll82",0,"Filt82",0,"SqRt82",0,"Alarmbit82",0,"TripBit82",0]
["WX83",0,"Rmin83",0,"Rmax83",1000,"EngMin83",0,"engMax83",737.56201171875,"MotorTqLimt:",0,"rh83",0,"rhh83",0,"rl83",0,"rll83",0,"Filt83",0,"SqRt83",0,"Alarmbit83",0,"TripBit83",0]
["WX84",0,"Rmin84",0,"Rmax84",1000,"EngMin84",0,"engMax84",737.56201171875,"MotTqUsed:",0,"rh84",0,"rhh84",0,"rl84",0,"rll84",0,"Filt84",0,"SqRt84",0,"Alarmbit84",0,"TripBit84",0]
["WX85",0,"Rmin85",0,"Rmax85",1000,"EngMin85",0,"engMax85",1000,"MotTqPctUsed:",0,"rh85",0,"rhh85",0,"rl85",0,"rll85",0,"Filt85",0,"SqRt85",0,"Alarmbit85",0,"TripBit85",0]
["WX86",0,"Rmin86",0,"Rmax86",1000,"EngMin86",0,"engMax86",1000,"TorqLimPctUse:",0,"rh86",0,"rhh86",0,"rl86",0,"rll86",0,"Filt86",0,"SqRt86",0,"Alarmbit86",0,"TripBit86",0]
["WX87",0,"Rmin87",0,"Rmax87",500,"EngMin87",0,"engMax87",5,"Flux:",0,"rh87",0,"rhh87",0,"rl87",0,"rll87",0,"Filt87",0,"SqRt87",0,"Alarmbit87",0,"TripBit87",0]
["WX88",0,"Rmin88",0,"Rmax88",1000,"EngMin88",0,"engMax88",1000,"PIDReference:",0,"rh88",0,"rhh88",0,"rl88",0,"rll88",0,"Filt88",0,"SqRt88",0,"Alarmbit88",0,"TripBit88",0]
["WX89",0,"Rmin89",0,"Rmax89",1000,"EngMin89",0,"engMax89",1000,":",0,"rh89",0,"rhh89",0,"rl89",0,"rll89",0,"Filt89",0,"SqRt89",0,"Alarmbit89",0,"TripBit89",0]
["WX90",0,"Rmin90",0,"Rmax90",1000,"EngMin90",0,"engMax90",1000,"PidFeedbkPCTRl:",0,"rh90",0,"rhh90",0,"rl90",0,"rll90",0,"Filt90",0,"SqRt90",0,"Alarmbit90",0,"TripBit90",0]
["WX91",100,"Rmin91",0,"Rmax91",1000,"EngMin91",0,"engMax91",1000,"PIDErrorRl:",100,"rh91",0,"rhh91",0,"rl91",0,"rll91",0,"Filt91",0,"SqRt91",0,"Alarmbit91",0,"TripBit91",0]
["WX92",0,"Rmin92",0,"Rmax92",1000,"EngMin92",0,"engMax92",1000,"PIDOutPCTRl:",0,"rh92",0,"rhh92",0,"rl92",0,"rll92",0,"Filt92",0,"SqRt92",0,"Alarmbit92",0,"TripBit92",0]
["WX93",0,"Rmin93",0,"Rmax93",1000,"EngMin93",0,"engMax93",1000,"PIDRefUsedRl:",0,"rh93",0,"rhh93",0,"rl93",0,"rll93",0,"Filt93",0,"SqRt93",0,"Alarmbit93",0,"TripBit93",0]
["WX94",0,"Rmin94",0,"Rmax94",1000,"EngMin94",0,"engMax94",1000,"PidFeedbkRl:",0,"rh94",0,"rhh94",0,"rl94",0,"rll94",0,"Filt94",0,"SqRt94",0,"Alarmbit94",0,"TripBit94",0]
["WX95",0,"Rmin95",0,"Rmax95",1000,"EngMin95",0,"engMax95",1000,"PIDOutputRl:",0,"rh95",0,"rhh95",0,"rl95",0,"rll95",0,"Filt95",0,"SqRt95",0,"Alarmbit95",0,"TripBit95",0]
["WX96",0,"Rmin96",0,"Rmax96",1000,"EngMin96",0,"engMax96",100,"GenAmp:",0,"rh96",0,"rhh96",0,"rl96",0,"rll96",0,"Filt96",0,"SqRt96",0,"Alarmbit96",0,"TripBit96",0]
["WX97",0,"Rmin97",0,"Rmax97",1000,"EngMin97",0,"engMax97",1000,"GenVolt:",0,"rh97",0,"rhh97",0,"rl97",0,"rll97",0,"Filt97",0,"SqRt97",0,"Alarmbit97",0,"TripBit97",0]
["WX98",0,"Rmin98",0,"Rmax98",1000,"EngMin98",0,"engMax98",100,"MotKw:",0,"rh98",0,"rhh98",0,"rl98",0,"rll98",0,"Filt98",0,"SqRt98",0,"Alarmbit98",0,"TripBit98",0]
["WX99",87,"Rmin99",0,"Rmax99",1000,"EngMin99",0,"engMax99",1000,"DCBusVoltage:",87,"rh99",0,"rhh99",0,"rl99",0,"rll99",0,"Filt99",0,"SqRt99",0,"Alarmbit99",0,"TripBit99",0]
["WX100",5,"Rmin100",0,"Rmax100",1000,"EngMin100",0,"engMax100",1000,"SupplyVoltage:",5,"rh100",0,"rhh100",0,"rl100",0,"rll100",0,"Filt100",0,"SqRt100",0,"Alarmbit100",0,"TripBit100",0]
["WX101",3104,"Rmin101",0,"Rmax101",1000,"EngMin101",0,"engMax101",1000,"DigInputs:",3104,"rh101",0,"rhh101",0,"rl101",0,"rll101",0,"Filt101",0,"SqRt101",0,"Alarmbit101",0,"TripBit101",0]
["WX102",2715,"Rmin102",1000,"Rmax102",3000,"EngMin102",50,"engMax102",86,"AmbTemp:",80.870002746582031,"rh102",0,"rhh102",0,"rl102",0,"rll102",0,"Filt102",0,"SqRt102",0,"Alarmbit102",0,"TripBit102",0]
["WX103",2143,"Rmin103",1000,"Rmax103",3000,"EngMin103",50,"engMax103",86,"IGBTTp:",70.573997497558594,"rh103",0,"rhh103",0,"rl103",0,"rll103",0,"Filt103",0,"SqRt103",0,"Alarmbit103",0,"TripBit103",0]
["WX104",0,"Rmin104",0,"Rmax104",1000,"EngMin104",0,"engMax104",1000,"OperateTime:",0,"rh104",0,"rhh104",0,"rl104",0,"rll104",0,"Filt104",0,"SqRt104",0,"Alarmbit104",0,"TripBit104",0]
["WX105",1,"Rmin105",0,"Rmax105",1000,"EngMin105",0,"engMax105",1000,":",1,"rh105",0,"rhh105",0,"rl105",0,"rll105",0,"Filt105",0,"SqRt105",0,"Alarmbit105",0,"TripBit105",0]
["WX106",882,"Rmin106",0,"Rmax106",1000,"EngMin106",0,"engMax106",100,"RGenVDCReal:",88.199996948242188,"rh106",0,"rhh106",0,"rl106",0,"rll106",0,"Filt106",0,"SqRt106",0,"Alarmbit106",0,"TripBit106",0]
["WX107",20,"Rmin107",0,"Rmax107",1000,"EngMin107",0,"engMax107",100,"RGenAmpsReal:",2,"rh107",0,"rhh107",0,"rl107",0,"rll107",0,"Filt107",0,"SqRt107",0,"Alarmbit107",0,"TripBit107",0]
["WX108",0,"Rmin108",0,"Rmax108",1000,"EngMin108",0,"engMax108",100,"RGenPowerReal:",0,"rh108",0,"rhh108",0,"rl108",0,"rll108",0,"Filt108",0,"SqRt108",0,"Alarmbit108",0,"TripBit108",0]
["WX109",54,"Rmin109",0,"Rmax109",1000,"EngMin109",0,"engMax109",100,"RGenACvoltReal:",5.4000000953674316,"rh109",0,"rhh109",0,"rl109",0,"rll109",0,"Filt109",0,"SqRt109",0,"Alarmbit109",0,"TripBit109",0]
["WX110",4095,"Rmin110",819,"Rmax110",4095,"EngMin110",0,"engMax110",100,"BlockFdVlv:",100,"rh110",0,"rhh110",0,"rl110",0,"rll110",0,"Filt110",0,"SqRt110",0,"Alarmbit110",0,"TripBit110",0]
["WX111",2653,"Rmin111",819,"Rmax111",4095,"EngMin111",0,"engMax111",100,"ManFdVlv:",55.982906341552734,"rh111",0,"rhh111",0,"rl111",0,"rll111",0,"Filt111",0,"SqRt111",0,"Alarmbit111",0,"TripBit111",0]
["WX112",0,"Rmin112",0,"Rmax112",4095,"EngMin112",0,"engMax112",1000,":",0,"rh112",0,"rhh112",0,"rl112",0,"rll112",0,"Filt112",0,"SqRt112",0,"Alarmbit112",0,"TripBit112",0]
["WX113",0,"Rmin113",0,"Rmax113",4095,"EngMin113",0,"engMax113",1000,":",0,"rh113",0,"rhh113",0,"rl113",0,"rll113",0,"Filt113",0,"SqRt113",0,"Alarmbit113",0,"TripBit113",0]
["WX114",1911,"Rmin114",0,"Rmax114",4095,"EngMin114",0,"engMax114",100,"GasRegPressOut:",46.666667938232422,"rh114",0,"rhh114",0,"rl114",0,"rll114",0,"Filt114",0,"SqRt114",0,"Alarmbit114",0,"TripBit114",0]
["WX115",0,"Rmin115",0,"Rmax115",4095,"EngMin115",0,"engMax115",1000,":",0,"rh115",0,"rhh115",0,"rl115",0,"rll115",0,"Filt115",0,"SqRt115",0,"Alarmbit115",0,"TripBit115",0]
["WX116",0,"Rmin116",0,"Rmax116",4095,"EngMin116",0,"engMax116",1000,":",0,"rh116",0,"rhh116",0,"rl116",0,"rll116",0,"Filt116",0,"SqRt116",0,"Alarmbit116",0,"TripBit116",0]
["WX117",0,"Rmin117",0,"Rmax117",4095,"EngMin117",0,"engMax117",1000,":",0,"rh117",0,"rhh117",0,"rl117",0,"rll117",0,"Filt117",0,"SqRt117",0,"Alarmbit117",0,"TripBit117",0]
["WX118",0,"Rmin118",0,"Rmax118",4095,"EngMin118",0,"engMax118",1000,":",0,"rh118",0,"rhh118",0,"rl118",0,"rll118",0,"Filt118",0,"SqRt118",0,"Alarmbit118",0,"TripBit118",0]
["WX119",0,"Rmin119",0,"Rmax119",4095,"EngMin119",0,"engMax119",11111,":",0,"rh119",0,"rhh119",0,"rl119",0,"rll119",0,"Filt119",0,"SqRt119",0,"Alarmbit119",0,"TripBit119",0]
["WX120",0,"Rmin120",0,"Rmax120",8888,"EngMin120",0,"engMax120",6666,":",0,"rh120",0,"rhh120",0,"rl120",0,"rll120",0,"Filt120",1111,"SqRt120",0,"Alarmbit120",0,"TripBit120",0]
["WX121",0,"Rmin121",0,"Rmax121",4095,"EngMin121",0,"engMax121",1000,":",0,"rh121",0,"rhh121",0,"rl121",0,"rll121",0,"Filt121",0,"SqRt121",0,"Alarmbit121",1,"TripBit121",1]
["WX122",0,"Rmin122",0,"Rmax122",4095,"EngMin122",0,"engMax122",1000,":",0,"rh122",0,"rhh122",0,"rl122",0,"rll122",0,"Filt122",0,"SqRt122",0,"Alarmbit122",1,"TripBit122",0]
["WX123",0,"Rmin123",0,"Rmax123",4095,"EngMin123",0,"engMax123",1000,":",0,"rh123",0,"rhh123",0,"rl123",0,"rll123",0,"Filt123",0,"SqRt123",0,"Alarmbit123",1,"TripBit123",0]
["WX124",4095,"Rmin124",0,"Rmax124",4095,"EngMin124",0,"engMax124",100,"CEMH2O:",100,"rh124",0,"rhh124",0,"rl124",0,"rll124",0,"Filt124",0,"SqRt124",0,"Alarmbit124",1,"TripBit124",0]
["WX125",0,"Rmin125",0,"Rmax125",4095,"EngMin125",0,"engMax125",1000,":",0,"rh125",0,"rhh125",0,"rl125",0,"rll125",0,"Filt125",0,"SqRt125",0,"Alarmbit125",1,"TripBit125",0]
["WX126",0,"Rmin126",0,"Rmax126",1000,"EngMin126",0,"engMax126",1000,":",0,"rh126",0,"rhh126",0,"rl126",0,"rll126",0,"Filt126",0,"SqRt126",0,"Alarmbit126",1,"TripBit126",0]
["WX127",0,"Rmin127",0,"Rmax127",1000,"EngMin127",0,"engMax127",1000,":",0,"rh127",0,"rhh127",0,"rl127",0,"rll127",0,"Filt127",0,"SqRt127",0,"Alarmbit127",1,"TripBit127",0]
["WX128",0,"Rmin128",0,"Rmax128",1000,"EngMin128",0,"engMax128",100,"OilVFDHxSP:",0,"rh128",0,"rhh128",0,"rl128",0,"rll128",0,"Filt128",0,"SqRt128",0,"Alarmbit128",1,"TripBit128",0]
["WX129",0,"Rmin129",0,"Rmax129",1000,"EngMin129",0,"engMax129",100,"OilVFDHZ:",0,"rh129",55,"rhh129",60,"rl129",0,"rll129",0,"Filt129",0,"SqRt129",0,"Alarmbit129",1,"TripBit129",1]
["WX130",0,"Rmin130",0,"Rmax130",1000,"EngMin130",0,"engMax130",100,"OilVFDAmp:",0,"rh130",0,"rhh130",0,"rl130",0,"rll130",0,"Filt130",0,"SqRt130",0,"Alarmbit130",1,"TripBit130",0]
["WX131",6422,"Rmin131",0,"Rmax131",1000,"EngMin131",0,"engMax131",100,"OilVFDDCv:",642.20001220703125,"rh131",0,"rhh131",0,"rl131",0,"rll131",0,"Filt131",0,"SqRt131",0,"Alarmbit131",1,"TripBit131",0]
["WX132",0,"Rmin132",0,"Rmax132",1000,"EngMin132",0,"engMax132",1000,"OilVFDVoltOut:",0,"rh132",0,"rhh132",0,"rl132",0,"rll132",0,"Filt132",0,"SqRt132",0,"Alarmbit132",1,"TripBit132",0]
["WX133",0,"Rmin133",0,"Rmax133",1840,"EngMin133",0,"engMax133",15,"OilGPM:",0,"rh133",0,"rhh133",0,"rl133",0,"rll133",0,"Filt133",0,"SqRt133",0,"Alarmbit133",1,"TripBit133",0]
["WX134",0,"Rmin134",0,"Rmax134",1000,"EngMin134",0,"engMax134",100,"OilVFDPF:",0,"rh134",0,"rhh134",0,"rl134",0,"rll134",0,"Filt134",0,"SqRt134",0,"Alarmbit134",1,"TripBit134",0]
["WX135",0,"Rmin135",0,"Rmax135",1000,"EngMin135",0,"engMax135",100,"OilVFDPctLoad:",0,"rh135",95,"rhh135",100,"rl135",0,"rll135",0,"Filt135",0,"SqRt135",0,"Alarmbit135",1,"TripBit135",1]
["WX136",9654,"Rmin136",0,"Rmax136",10000,"EngMin136",0,"engMax136",1,"SpareInput136:",0.96539998054504395,"rh136",0,"rhh136",0,"rl136",130,"rll136",0,"Filt136",0,"SqRt136",0,"Alarmbit136",1,"TripBit136",0]
["WX137",9,"Rmin137",0,"Rmax137",1000,"EngMin137",0,"engMax137",1000,"SpareInput137:",9,"rh137",0,"rhh137",0,"rl137",0,"rll137",0,"Filt137",0,"SqRt137",0,"Alarmbit137",1,"TripBit137",0]
["WX138",9,"Rmin138",0,"Rmax138",1000,"EngMin138",0,"engMax138",1000,"SpareInput138:",9,"rh138",0,"rhh138",0,"rl138",0,"rll138",0,"Filt138",0,"SqRt138",0,"Alarmbit138",1,"TripBit138",0]
["WX139",9,"Rmin139",0,"Rmax139",1000,"EngMin139",0,"engMax139",1000,"SpareInput139:",9,"rh139",0,"rhh139",0,"rl139",0,"rll139",0,"Filt139",0,"SqRt139",0,"Alarmbit139",1,"TripBit139",0]
["WX140",9,"Rmin140",0,"Rmax140",1000,"EngMin140",0,"engMax140",1000,"SpareInput140:",9,"rh140",0,"rhh140",0,"rl140",0,"rll140",0,"Filt140",0,"SqRt140",0,"Alarmbit140",1,"TripBit140",0]
["WX141",9,"Rmin141",0,"Rmax141",1000,"EngMin141",0,"engMax141",1000,"SpareInput141:",9,"rh141",0,"rhh141",0,"rl141",0,"rll141",0,"Filt141",0,"SqRt141",0,"Alarmbit141",1,"TripBit141",0]
["WX142",9,"Rmin142",0,"Rmax142",1000,"EngMin142",0,"engMax142",1000,"SpareInput142:",9,"rh142",0,"rhh142",0,"rl142",0,"rll142",0,"Filt142",0,"SqRt142",0,"Alarmbit142",1,"TripBit142",0]
["WX143",9,"Rmin143",0,"Rmax143",1000,"EngMin143",0,"engMax143",1000,"SpareInput143:",9,"rh143",0,"rhh143",0,"rl143",0,"rll143",0,"Filt143",0,"SqRt143",0,"Alarmbit143",1,"TripBit143",0]
["WX144",9,"Rmin144",0,"Rmax144",1000,"EngMin144",0,"engMax144",1000,"SpareInput144:",9,"rh144",0,"rhh144",0,"rl144",0,"rll144",0,"Filt144",0,"SqRt144",0,"Alarmbit144",1,"TripBit144",0]
["WX145",9,"Rmin145",0,"Rmax145",1000,"EngMin145",0,"engMax145",1000,"SpareInput145:",9,"rh145",0,"rhh145",0,"rl145",0,"rll145",0,"Filt145",0,"SqRt145",0,"Alarmbit145",1,"TripBit145",0]
["WX146",0,"Rmin146",0,"Rmax146",1000,"EngMin146",0,"engMax146",1000,"SpareInput146:",0,"rh146",0,"rhh146",0,"rl146",0,"rll146",0,"Filt146",0,"SqRt146",0,"Alarmbit146",1,"TripBit146",0]
["WX147",0,"Rmin147",0,"Rmax147",1000,"EngMin147",0,"engMax147",1000,"SpareInput147:",0,"rh147",0,"rhh147",0,"rl147",0,"rll147",0,"Filt147",0,"SqRt147",0,"Alarmbit147",1,"TripBit147",0]
["WX148",0,"Rmin148",0,"Rmax148",1000,"EngMin148",0,"engMax148",1000,"SpareInput148:",0,"rh148",0,"rhh148",0,"rl148",0,"rll148",0,"Filt148",0,"SqRt148",0,"Alarmbit148",1,"TripBit148",0]
["WX149",0,"Rmin149",0,"Rmax149",1000,"EngMin149",0,"engMax149",1000,"SpareInput149:",0,"rh149",0,"rhh149",0,"rl149",0,"rll149",0,"Filt149",0,"SqRt149",0,"Alarmbit149",1,"TripBit149",0]
["WX150",0,"Rmin150",0,"Rmax150",1000,"EngMin150",0,"engMax150",1000,"SpareInput150:",0,"rh150",0,"rhh150",0,"rl150",0,"rll150",0,"Filt150",0,"SqRt150",0,"Alarmbit150",1,"TripBit150",0]
["WX151",0,"Rmin151",0,"Rmax151",1000,"EngMin151",0,"engMax151",1000,"SpareInput151:",0,"rh151",0,"rhh151",0,"rl151",0,"rll151",0,"Filt151",0,"SqRt151",0,"Alarmbit151",1,"TripBit151",0]
["WX152",0,"Rmin152",0,"Rmax152",1000,"EngMin152",0,"engMax152",1000,"SpareInput152:",0,"rh152",0,"rhh152",0,"rl152",0,"rll152",0,"Filt152",0,"SqRt152",0,"Alarmbit152",1,"TripBit152",0]
["WX153",0,"Rmin153",0,"Rmax153",1000,"EngMin153",0,"engMax153",1000,"SpareInput153:",0,"rh153",0,"rhh153",0,"rl153",0,"rll153",0,"Filt153",0,"SqRt153",0,"Alarmbit153",1,"TripBit153",0]
["WX154",0,"Rmin154",0,"Rmax154",1000,"EngMin154",0,"engMax154",1000,"SpareInput154:",0,"rh154",0,"rhh154",0,"rl154",0,"rll154",0,"Filt154",0,"SqRt154",0,"Alarmbit154",1,"TripBit154",0]
["WX155",0,"Rmin155",0,"Rmax155",1000,"EngMin155",0,"engMax155",1000,"SpareInput155:",0,"rh155",0,"rhh155",0,"rl155",0,"rll155",0,"Filt155",0,"SqRt155",0,"Alarmbit155",1,"TripBit155",0]
["WX156",0,"Rmin156",0,"Rmax156",1000,"EngMin156",0,"engMax156",1000,"SpareInput156:",0,"rh156",0,"rhh156",0,"rl156",0,"rll156",0,"Filt156",0,"SqRt156",0,"Alarmbit156",1,"TripBit156",0]
["WX157",0,"Rmin157",0,"Rmax157",1000,"EngMin157",0,"engMax157",1000,"SpareInput157:",0,"rh157",0,"rhh157",0,"rl157",0,"rll157",0,"Filt157",0,"SqRt157",0,"Alarmbit157",1,"TripBit157",0]
["WX158",0,"Rmin158",0,"Rmax158",1000,"EngMin158",0,"engMax158",1000,"SpareInput158:",0,"rh158",0,"rhh158",0,"rl158",0,"rll158",0,"Filt158",0,"SqRt158",0,"Alarmbit158",1,"TripBit158",0]
["WX159",0,"Rmin159",0,"Rmax159",1000,"EngMin159",0,"engMax159",1000,"SpareInput159:",0,"rh159",0,"rhh159",0,"rl159",0,"rll159",0,"Filt159",0,"SqRt159",0,"Alarmbit159",1,"TripBit159",0]
["WX160",0,"Rmin160",0,"Rmax160",1000,"EngMin160",0,"engMax160",1000,"SpareInput160:",0,"rh160",0,"rhh160",0,"rl160",0,"rll160",0,"Filt160",0,"SqRt160",0,"Alarmbit160",1,"TripBit160",0]
["WX161",0,"Rmin161",0,"Rmax161",1000,"EngMin161",0,"engMax161",1000,"SpareInput161:",0,"rh161",0,"rhh161",0,"rl161",0,"rll161",0,"Filt161",0,"SqRt161",0,"Alarmbit161",1,"TripBit161",0]
["WX162",0,"Rmin162",0,"Rmax162",1000,"EngMin162",0,"engMax162",1000,"SpareInput162:",0,"rh162",0,"rhh162",0,"rl162",0,"rll162",0,"Filt162",0,"SqRt162",0,"Alarmbit162",1,"TripBit162",0]
["WX163",0,"Rmin163",0,"Rmax163",1000,"EngMin163",0,"engMax163",1000,"SpareInput163:",0,"rh163",0,"rhh163",0,"rl163",0,"rll163",0,"Filt163",0,"SqRt163",0,"Alarmbit163",1,"TripBit163",0]
["WX164",0,"Rmin164",0,"Rmax164",1000,"EngMin164",0,"engMax164",1000,"SpareInput164:",0,"rh164",0,"rhh164",0,"rl164",0,"rll164",0,"Filt164",0,"SqRt164",0,"Alarmbit164",1,"TripBit164",0]
["WX165",0,"Rmin165",0,"Rmax165",1000,"EngMin165",0,"engMax165",1000,"SpareInput165:",0,"rh165",0,"rhh165",0,"rl165",0,"rll165",0,"Filt165",222,"SqRt165",0,"Alarmbit165",1,"TripBit165",0]
["WX166",0,"Rmin166",0,"Rmax166",1000,"EngMin166",0,"engMax166",1000,"SpareInput166:",0,"rh166",0,"rhh166",0,"rl166",0,"rll166",0,"Filt166",0,"SqRt166",0,"Alarmbit166",1,"TripBit166",0]
["WX167",0,"Rmin167",0,"Rmax167",1000,"EngMin167",0,"engMax167",1000,"SpareInput167:",0,"rh167",0,"rhh167",0,"rl167",0,"rll167",0,"Filt167",0,"SqRt167",0,"Alarmbit167",1,"TripBit167",0]
["WX168",0,"Rmin168",0,"Rmax168",1000,"EngMin168",0,"engMax168",1000,"SpareInput168:",0,"rh168",0,"rhh168",0,"rl168",0,"rll168",0,"Filt168",0,"SqRt168",0,"Alarmbit168",1,"TripBit168",0]
["WX169",0,"Rmin169",0,"Rmax169",1000,"EngMin169",0,"engMax169",1000,"SpareInput169:",0,"rh169",0,"rhh169",0,"rl169",0,"rll169",0,"Filt169",0,"SqRt169",0,"Alarmbit169",1,"TripBit169",0]
["WX170",0,"Rmin170",0,"Rmax170",1000,"EngMin170",0,"engMax170",1000,"SpareInput170:",0,"rh170",0,"rhh170",0,"rl170",0,"rll170",0,"Filt170",0,"SqRt170",0,"Alarmbit170",1,"TripBit170",0]
["WX171",0,"Rmin171",0,"Rmax171",1000,"EngMin171",0,"engMax171",1000,"SpareInput171:",0,"rh171",0,"rhh171",0,"rl171",0,"rll171",0,"Filt171",0,"SqRt171",0,"Alarmbit171",1,"TripBit171",0]
["WX172",0,"Rmin172",0,"Rmax172",1000,"EngMin172",0,"engMax172",1000,"SpareInput172:",0,"rh172",0,"rhh172",0,"rl172",0,"rll172",0,"Filt172",0,"SqRt172",0,"Alarmbit172",1,"TripBit172",0]
["WX173",0,"Rmin173",0,"Rmax173",1000,"EngMin173",0,"engMax173",1000,"SpareInput173:",0,"rh173",0,"rhh173",0,"rl173",0,"rll173",0,"Filt173",0,"SqRt173",0,"Alarmbit173",1,"TripBit173",0]
["WX174",0,"Rmin174",0,"Rmax174",1000,"EngMin174",0,"engMax174",1000,"SpareInput174:",0,"rh174",0,"rhh174",0,"rl174",0,"rll174",0,"Filt174",0,"SqRt174",0,"Alarmbit174",1,"TripBit174",0]
["WX175",0,"Rmin175",0,"Rmax175",1000,"EngMin175",0,"engMax175",1000,"SpareInput175:",0,"rh175",0,"rhh175",0,"rl175",0,"rll175",0,"Filt175",0,"SqRt175",0,"Alarmbit175",1,"TripBit175",0]
["WX176",0,"Rmin176",0,"Rmax176",1000,"EngMin176",0,"engMax176",1000,"SpareInput176:",0,"rh176",0,"rhh176",0,"rl176",0,"rll176",0,"Filt176",0,"SqRt176",0,"Alarmbit176",1,"TripBit176",0]
["WX177",0,"Rmin177",0,"Rmax177",1000,"EngMin177",0,"engMax177",1000,"SpareInput177:",0,"rh177",0,"rhh177",0,"rl177",0,"rll177",0,"Filt177",0,"SqRt177",0,"Alarmbit177",1,"TripBit177",0]
["WX178",0,"Rmin178",0,"Rmax178",1000,"EngMin178",0,"engMax178",1000,"SpareInput178:",0,"rh178",0,"rhh178",0,"rl178",0,"rll178",0,"Filt178",0,"SqRt178",0,"Alarmbit178",1,"TripBit178",0]
["WX179",0,"Rmin179",0,"Rmax179",1000,"EngMin179",0,"engMax179",1000,"SpareInput179:",0,"rh179",0,"rhh179",0,"rl179",0,"rll179",0,"Filt179",0,"SqRt179",0,"Alarmbit179",1,"TripBit179",0]
["WX180",0,"Rmin180",0,"Rmax180",1000,"EngMin180",0,"engMax180",1000,"SpareInput180:",0,"rh180",0,"rhh180",0,"rl180",0,"rll180",2000,"Filt180",0,"SqRt180",0,"Alarmbit180",0,"TripBit180",0]
["WX181",0,"Rmin181",181,"Rmax181",1000,"EngMin181",0,"engMax181",1000,"SpareInput181:",0,"rh181",1181,"rhh181",1,"rl181",0,"rll181",281,"Filt181",0,"SqRt181",0,"Alarmbit181",1,"TripBit181",0]
["WX182","MIR1182","Rmin182","MHR1382","Rmax182","MHR1582","EngMin182","MHR1964","engMax182","MHR2364","SpeedRefInt:","MIR2364","rh182","MHR2764","rhh182","MHR3164","rl182","MHR3564","rll182","MHR3964","Filt182","MHR4182","SqRt182","MC2182","Alarmbit182","MC3182","TripBit182","MC4182"]
["WX183","MIR1183","Rmin183","MHR1383","Rmax183","MHR1583","EngMin183","MHR1966","engMax183","MHR2366","SpeedRefDec:","MIR2366","rh183","MHR2766","rhh183","MHR3166","rl183","MHR3566","rll183","MHR3966","Filt183","MHR4183","SqRt183","MC2183","Alarmbit183","MC3183","TripBit183","MC4183"]
["WX184","MIR1184","Rmin184","MHR1384","Rmax184","MHR1584","EngMin184","MHR1968","engMax184","MHR2368","SPEEDRAMPInt:","MIR2368","rh184","MHR2768","rhh184","MHR3168","rl184","MHR3568","rll184","MHR3968","Filt184","MHR4184","SqRt184","MC2184","Alarmbit184","MC3184","TripBit184","MC4184"]
["WX185","MIR1185","Rmin185","MHR1385","Rmax185","MHR1585","EngMin185","MHR1970","engMax185","MHR2370","SPEEDRAMPDec:","MIR2370","rh185","MHR2770","rhh185","MHR3170","rl185","MHR3570","rll185","MHR3970","Filt185","MHR4185","SqRt185","MC2185","Alarmbit185","MC3185","TripBit185","MC4185"]
["WX186","MIR1186","Rmin186","MHR1386","Rmax186","MHR1586","EngMin186","MHR1972","engMax186","MHR2372","MOTORSPEEDInt:","MIR2372","rh186","MHR2772","rhh186","MHR3172","rl186","MHR3572","rll186","MHR3972","Filt186","MHR4186","SqRt186","MC2186","Alarmbit186","MC3186","TripBit186","MC4186"]
["WX187","MIR1187","Rmin187","MHR1387","Rmax187","MHR1587","EngMin187","MHR1974","engMax187","MHR2374","MOTORSPEEDDec:","MIR2374","rh187","MHR2774","rhh187","MHR3174","rl187","MHR3574","rll187","MHR3974","Filt187","MHR4187","SqRt187","MC2187","Alarmbit187","MC3187","TripBit187","MC4187"]
["WX188","MIR1188","Rmin188","MHR1388","Rmax188","MHR1588","EngMin188","MHR1976","engMax188","MHR2376","FreqOut:","MIR2376","rh188","MHR2776","rhh188","MHR3176","rl188","MHR3576","rll188","MHR3976","Filt188","MHR4188","SqRt188","MC2188","Alarmbit188","MC3188","TripBit188","MC4188"]
["WX189","MIR1189","Rmin189","MHR1389","Rmax189","MHR1589","EngMin189","MHR1978","engMax189","MHR2378","TorqRef:","MIR2378","rh189","MHR2778","rhh189","MHR3178","rl189","MHR3578","rll189","MHR3978","Filt189","MHR4189","SqRt189","MC2189","Alarmbit189","MC3189","TripBit189","MC4189"]
["WX190","MIR1190","Rmin190","MHR1390","Rmax190","MHR1590","EngMin190","MHR1980","engMax190","MHR2380","TorqDemd:","MIR2380","rh190","MHR2780","rhh190","MHR3180","rl190","MHR3580","rll190","MHR3980","Filt190","MHR4190","SqRt190","MC2190","Alarmbit190","MC3190","TripBit190","MC4190"]
["WX191","MIR1191","Rmin191","MHR1391","Rmax191","MHR1591","EngMin191","MHR1982","engMax191","MHR2382","MotorTorq:","MIR2382","rh191","MHR2782","rhh191","MHR3182","rl191","MHR3582","rll191","MHR3982","Filt191","MHR4191","SqRt191","MC2191","Alarmbit191","MC3191","TripBit191","MC4191"]
["WX192","MIR1192","Rmin192","MHR1392","Rmax192","MHR1592","EngMin192","MHR1984","engMax192","MHR2384","TorqRefPct:","MIR2384","rh192","MHR2784","rhh192","MHR3184","rl192","MHR3584","rll192","MHR3984","Filt192","MHR4192","SqRt192","MC2192","Alarmbit192","MC3192","TripBit192","MC4192"]
["WX193","MIR1193","Rmin193","MHR1393","Rmax193","MHR1593","EngMin193","MHR1986","engMax193","MHR2386","TorqDemdPct:","MIR2386","rh193","MHR2786","rhh193","MHR3186","rl193","MHR3586","rll193","MHR3986","Filt193","MHR4193","SqRt193","MC2193","Alarmbit193","MC3193","TripBit193","MC4193"]
["WX194","MIR1194","Rmin194","MHR1394","Rmax194","MHR1594","EngMin194","MHR1988","engMax194","MHR2388","MotorTorqPct:","MIR2388","rh194","MHR2788","rhh194","MHR3188","rl194","MHR3588","rll194","MHR3988","Filt194","MHR4194","SqRt194","MC2194","Alarmbit194","MC3194","TripBit194","MC4194"]
["WX195","MIR1195","Rmin195","MHR1395","Rmax195","MHR1595","EngMin195","MHR1990","engMax195","MHR2390","MotorTorqLimt:","MIR2390","rh195","MHR2790","rhh195","MHR3190","rl195","MHR3590","rll195","MHR3990","Filt195","MHR4195","SqRt195","MC2195","Alarmbit195","MC3195","TripBit195","MC4195"]
["WX196","MIR1196","Rmin196","MHR1396","Rmax196","MHR1596","EngMin196","MHR1992","engMax196","MHR2392","MotTorqUsed:","MIR2392","rh196","MHR2792","rhh196","MHR3192","rl196","MHR3592","rll196","MHR3992","Filt196","MHR4196","SqRt196","MC2196","Alarmbit196","MC3196","TripBit196","MC4196"]
["WX197","MIR1197","Rmin197","MHR1397","Rmax197","MHR1597","EngMin197","MHR1994","engMax197","MHR2394","MotTorqPctUsed:","MIR2394","rh197","MHR2794","rhh197","MHR3194","rl197","MHR3594","rll197","MHR3994","Filt197","MHR4197","SqRt197","MC2197","Alarmbit197","MC3197","TripBit197","MC4197"]
["WX198","MIR1198","Rmin198","MHR1398","Rmax198","MHR1598","EngMin198","MHR1996","engMax198","MHR2396","TorqueLimPctUse:","MIR2396","rh198","MHR2796","rhh198","MHR3196","rl198","MHR3596","rll198","MHR3996","Filt198","MHR4198","SqRt198","MC2198","Alarmbit198","MC3198","TripBit198","MC4198"]
["WX199","MIR1199","Rmin199","MHR1399","Rmax199","MHR1599","EngMin199","MHR1998","engMax199","MHR2398","FluxRef:","MIR2398","rh199","MHR2798","rhh199","MHR3198","rl199","MHR3598","rll199","MHR3998","Filt199","MHR4199","SqRt199","MC2199","Alarmbit199","MC3199","TripBit199","MC4199"]
[null,0,null,0,null,1000,null,0,null,150,null,0,null,0,null,0,null,0,null,0,null,100,null,0.6,null,1,null,0]
[null,0,null,0,null,1000,null,0,null,150,null,0,null,0,null,0,null,0,null,0,null,100,null,0.6,null,1,null,0]
[null,0,null,0,null,1000,null,0,null,150,null,0,null,0,null,0,null,0,null,0,null,100,null,0.6,null,1,null,0]
[null,0,null,0,null,1000,null,0,null,150,null,0,null,0,null,0,null,0,null,0,null,100,null,0.6,null,1,null,0]
[null,0,null,0,null,1000,null,0,null,150,null,0,null,0,null,0,null,0,null,0,null,100,null,0.6,null,1,null,0]
[null,0,null,0,null,1000,null,0,null,150,null,0,null,0,null,0,null,0,null,0,null,100,null,0.6,null,1,null,0]
[null,0,null,0,null,1000,null,0,null,150,null,0,null,0,null,0,null,0,null,0,null,100,null,0.6,null,1,null,0]
[null,0,null,0,null,1000,null,0,null,150,null,0,null,0,null,0,null,0,null,0,null,100,null,0.6,null,1,null,0]
[null,0,null,0,null,1000,null,0,null,150,null,0,null,0,null,0,null,0,null,0,null,100,null,0.6,null,1,null,0]
[null,0,null,0,null,1000,null,0,null,150,null,0,null,0,null,0,null,0,null,0,null,100,null,0.6,null,1,null,0]
[null,0,null,0,null,1000,null,0,null,150,null,0,null,0,null,0,null,0,null,0,null,100,null,0.6,null,1,null,0]
[null,0,null,0,null,1000,null,0,null,150,null,0,null,0,null,0,null,0,null,0,null,100,null,0.6,null,1,null,0]
[null,0,null,0,null,1000,null,0,null,150,null,0,null,0,null,0,null,0,null,0,null,100,null,0.6,null,1,null,0]
[null,0,null,0,null,1000,null,0,null,150,null,0,null,0,null,0,null,0,null,0,null,100,null,0.6,null,1,null,0]
[null,0,null,0,null,1000,null,0,null,150,null,0,null,0,null,0,null,0,null,0,null,100,null,0.6,null,1,null,0]
[null,0,null,0,null,1000,null,0,null,150,null,0,null,0,null,0,null,0,null,0,null,100,null,0.6,null,1,null,0]
[null,0,null,0,null,1000,null,0,null,150,null,0,null,0,null,0,null,0,null,0,null,100,null,0.6,null,1,null,0]
[null,0,null,0,null,1000,null,0,null,150,null,0,null,0,null,0,null,0,null,0,null,100,null,0.6,null,1,null,0]
[null,0,null,0,null,1000,null,0,null,150,null,0,null,0,null,0,null,0,null,0,null,100,null,0.6,null,1,null,0]
[null,0,null,0,null,1000,null,0,null,150,null,0,null,0,null,0,null,0,null,0,null,100,null,0.6,null,1,null,0]
[null,0,null,0,null,1000,null,0,null,150,null,0,null,0,null,0,null,0,null,0,null,100,null,0.6,null,1,null,0]
[null,0,null,0,null,1000,null,0,null,150,null,0,null,0,null,0,null,0,null,0,null,100,null,0.6,null,1,null,0]
[null,0,null,0,null,1000,null,0,null,150,null,0,null,0,null,0,null,0,null,0,null,100,null,0.6,null,1,null,0]
[null,0,null,0,null,1000,null,0,null,150,null,0,null,0,null,0,null,0,null,0,null,100,null,0.6,null,1,null,0]
[null,0,null,0,null,1000,null,0,null,150,null,0,null,0,null,0,null,0,null,0,null,100,null,0.6,null,1,null,0]
[null,0,null,0,null,1000,null,0,null,150,null,0,null,0,null,0,null,0,null,0,null,100,null,0.6,null,1,null,0]
[null,0,null,0,null,1000,null,0,null,150,null,0,null,0,null,0,null,0,null,0,null,100,null,0.6,null,1,null,0]
[null,0,null,0,null,1000,null,0,null,150,null,0,null,0,null,0,null,0,null,0,null,100,null,0.6,null,1,null,0]
[null,0,null,0,null,1000,null,0,null,150,null,0,null,0,null,0,null,0,null,0,null,100,null,0.6,null,1,null,0]
[null,0,null,0,null,1000,null,0,null,150,null,0,null,0,null,0,null,0,null,0,null,100,null,0.6,null,1,null,0]
[null,0,null,0,null,1000,null,0,null,150,null,0,null,0,null,0,null,0,null,0,null,100,null,0.6,null,1,null,0]
[null,0,null,0,null,1000,null,0,null,150,null,0,null,0,null,0,null,0,null,0,null,100,null,0.6,null,1,null,0]
[null,0,null,0,null,1000,null,0,null,150,null,0,null,0,null,0,null,0,null,0,null,100,null,0.6,null,1,null,0]
[null,0,null,0,null,1000,null,0,null,150,null,0,null,0,null,0,null,0,null,0,null,100,null,0.6,null,1,null,0]
[null,0,null,0,null,1000,null,0,null,150,null,0,null,0,null,0,null,0,null,0,null,100,null,0.6,null,1,null,0]
[null,0,null,0,null,1000,null,0,null,150,null,0,null,0,null,0,null,0,null,0,null,100,null,0.6,null,1,null,0]
[null,0,null,0,null,1000,null,0,null,150,null,0,null,0,null,0,null,0,null,0,null,100,null,0.6,null,1,null,0]
[null,0,null,0,null,1000,null,0,null,150,null,0,null,0,null,0,null,0,null,0,null,100,null,0.6,null,1,null,0]
[null,0,null,0,null,1000,null,0,null,150,null,0,null,0,null,0,null,0,null,0,null,100,null,0.6,null,1,null,0]
[null,0,null,0,null,1000,null,0,null,150,null,0,null,0,null,0,null,0,null,0,null,100,null,0.6,null,1,null,0]
[null,0,null,0,null,1000,null,0,null,150,null,0,null,0,null,0,null,0,null,0,null,100,null,0.6,null,1,null,0]
[null,0,null,0,null,1000,null,0,null,150,null,0,null,0,null,0,null,0,null,0,null,100,null,0.6,null,1,null,0]

{"sheet":"Sheet1","index":6,"n_rows":0,"n_cols":0,"rows_kept":0,"cut":false,"hidden":false,"merged":[]}

{"sheet":"ModbusScalingList","index":7,"n_rows":204,"n_cols":28,"rows_kept":204,"cut":false,"hidden":false,"merged":[]}
[]
[]
["Analog Input",null,"Rmin",null,"Rmax",null,"EngMin",null,"EngMax",null,"EngUnits","ModbusFloats","rh","ModbusHi","rhh",null,"rl",null,"rll",null,"Filter milisecond",null,null,"Square Root","Alarm enable",null,"Trip Enabled"]
["Signed Word","Signed Word","Signed Word","Signed Word","Signed Word","Signed Word","Reals",null,null,null,null,null,"real",{"$f":"Tsat_s(332)","v":{"$error":"#NAME?"}},null,{"$f":"Tsat_p(339)","v":{"$error":"#NAME?"}}]
["WX0","MIR1000","Rmin0","MHR1200","Rmax0","MHR1400","EngMin0","MHR1600","engMax0","MHR2000","RX0","MIR2000","rh0","MHR2400","rhh0","MHR2800","rl0","MHR3200","rll0","MHR3600","Filt0","MHR4000","SqRt0","MC2000","Alarmbit0","MC3000","TripBit0","MC4000"]
["WX1","MIR1001","Rmin1","MHR1201","Rmax1","MHR1401","EngMin1","MHR1602","engMax1","MHR2002","RX1","MIR2002","rh1","MHR2402","rhh1","MHR2802","rl1","MHR3202","rll1","MHR3602","Filt1","MHR4001","SqRt1","MC2001","Alarmbit1","MC3001","TripBit1","MC4001"]
["WX2","MIR1002","Rmin2","MHR1202","Rmax2","MHR1402","EngMin2","MHR1604","engMax2","MHR2004","RX2","MIR2004","rh2","MHR2404","rhh2","MHR2804","rl2","MHR3204","rll2","MHR3604","Filt2","MHR4002","SqRt2","MC2002","Alarmbit2","MC3002","TripBit2","MC4002"]
["WX3","MIR1003","Rmin3","MHR1203","Rmax3","MHR1403","EngMin3","MHR1606","engMax3","MHR2006","RX3","MIR2006","rh3","MHR2406","rhh3","MHR2806","rl3","MHR3206","rll3","MHR3606","Filt3","MHR4003","SqRt3","MC2003","Alarmbit3","MC3003","TripBit3","MC4003"]
["WX4","MIR1004","Rmin4","MHR1204","Rmax4","MHR1404","EngMin4","MHR1608","engMax4","MHR2008","RX4","MIR2008","rh4","MHR2408","rhh4","MHR2808","rl4","MHR3208","rll4","MHR3608","Filt4","MHR4004","SqRt4","MC2004","Alarmbit4","MC3004","TripBit4","MC4004"]
["WX5","MIR1005","Rmin5","MHR1205","Rmax5","MHR1405","EngMin5","MHR1610","engMax5","MHR2010","RX5","MIR2010","rh5","MHR2410","rhh5","MHR2810","rl5","MHR3210","rll5","MHR3610","Filt5","MHR4005","SqRt5","MC2005","Alarmbit5","MC3005","TripBit5","MC4005"]
["WX6","MIR1006","Rmin6","MHR1206","Rmax6","MHR1406","EngMin6","MHR1612","engMax6","MHR2012","RX6","MIR2012","rh6","MHR2412","rhh6","MHR2812","rl6","MHR3212","rll6","MHR3612","Filt6","MHR4006","SqRt6","MC2006","Alarmbit6","MC3006","TripBit6","MC4006"]
["WX7","MIR1007","Rmin7","MHR1207","Rmax7","MHR1407","EngMin7","MHR1614","engMax7","MHR2014","RX7","MIR2014","rh7","MHR2414","rhh7","MHR2814","rl7","MHR3214","rll7","MHR3614","Filt7","MHR4007","SqRt7","MC2007","Alarmbit7","MC3007","TripBit7","MC4007"]
["WX8","MIR1008","Rmin8","MHR1208","Rmax8","MHR1408","EngMin8","MHR1616","engMax8","MHR2016","RX8","MIR2016","rh8","MHR2416","rhh8","MHR2816","rl8","MHR3216","rll8","MHR3616","Filt8","MHR4008","SqRt8","MC2008","Alarmbit8","MC3008","TripBit8","MC4008"]
["WX9","MIR1009","Rmin9","MHR1209","Rmax9","MHR1409","EngMin9","MHR1618","engMax9","MHR2018","RX9","MIR2018","rh9","MHR2418","rhh9","MHR2818","rl9","MHR3218","rll9","MHR3618","Filt9","MHR4009","SqRt9","MC2009","Alarmbit9","MC3009","TripBit9","MC4009"]
["WX10","MIR1010","Rmin10","MHR1210","Rmax10","MHR1410","EngMin10","MHR1620","engMax10","MHR2020","RX10","MIR2020","rh10","MHR2420","rhh10","MHR2820","rl10","MHR3220","rll10","MHR3620","Filt10","MHR4010","SqRt10","MC2010","Alarmbit10","MC3010","TripBit10","MC4010"]
["WX11","MIR1011","Rmin11","MHR1211","Rmax11","MHR1411","EngMin11","MHR1622","engMax11","MHR2022","RX11","MIR2022","rh11","MHR2422","rhh11","MHR2822","rl11","MHR3222","rll11","MHR3622","Filt11","MHR4011","SqRt11","MC2011","Alarmbit11","MC3011","TripBit11","MC4011"]
["WX12","MIR1012","Rmin12","MHR1212","Rmax12","MHR1412","EngMin12","MHR1624","engMax12","MHR2024","RX12","MIR2024","rh12","MHR2424","rhh12","MHR2824","rl12","MHR3224","rll12","MHR3624","Filt12","MHR4012","SqRt12","MC2012","Alarmbit12","MC3012","TripBit12","MC4012"]
["WX13","MIR1013","Rmin13","MHR1213","Rmax13","MHR1413","EngMin13","MHR1626","engMax13","MHR2026","RX13","MIR2026","rh13","MHR2426","rhh13","MHR2826","rl13","MHR3226","rll13","MHR3626","Filt13","MHR4013","SqRt13","MC2013","Alarmbit13","MC3013","TripBit13","MC4013"]
["WX14","MIR1014","Rmin14","MHR1214","Rmax14","MHR1414","EngMin14","MHR1628","engMax14","MHR2028","RX14","MIR2028","rh14","MHR2428","rhh14","MHR2828","rl14","MHR3228","rll14","MHR3628","Filt14","MHR4014","SqRt14","MC2014","Alarmbit14","MC3014","TripBit14","MC4014"]
["WX15","MIR1015","Rmin15","MHR1215","Rmax15","MHR1415","EngMin15","MHR1630","engMax15","MHR2030","RX15","MIR2030","rh15","MHR2430","rhh15","MHR2830","rl15","MHR3230","rll15","MHR3630","Filt15","MHR4015","SqRt15","MC2015","Alarmbit15","MC3015","TripBit15","MC4015"]
["WX16","MIR1016","Rmin16","MHR1216","Rmax16","MHR1416","EngMin16","MHR1632","engMax16","MHR2032","RX16","MIR2032","rh16","MHR2432","rhh16","MHR2832","rl16","MHR3232","rll16","MHR3632","Filt16","MHR4016","SqRt16","MC2016","Alarmbit16","MC3016","TripBit16","MC4016"]
["WX17","MIR1017","Rmin17","MHR1217","Rmax17","MHR1417","EngMin17","MHR1634","engMax17","MHR2034","RX17","MIR2034","rh17","MHR2434","rhh17","MHR2834","rl17","MHR3234","rll17","MHR3634","Filt17","MHR4017","SqRt17","MC2017","Alarmbit17","MC3017","TripBit17","MC4017"]
["WX18","MIR1018","Rmin18","MHR1218","Rmax18","MHR1418","EngMin18","MHR1636","engMax18","MHR2036","RX18","MIR2036","rh18","MHR2436","rhh18","MHR2836","rl18","MHR3236","rll18","MHR3636","Filt18","MHR4018","SqRt18","MC2018","Alarmbit18","MC3018","TripBit18","MC4018"]
["WX19","MIR1019","Rmin19","MHR1219","Rmax19","MHR1419","EngMin19","MHR1638","engMax19","MHR2038","RX19","MIR2038","rh19","MHR2438","rhh19","MHR2838","rl19","MHR3238","rll19","MHR3638","Filt19","MHR4019","SqRt19","MC2019","Alarmbit19","MC3019","TripBit19","MC4019"]
["WX20","MIR1020","Rmin20","MHR1220","Rmax20","MHR1420","EngMin20","MHR1640","engMax20","MHR2040","RX20","MIR2040","rh20","MHR2440","rhh20","MHR2840","rl20","MHR3240","rll20","MHR3640","Filt20","MHR4020","SqRt20","MC2020","Alarmbit20","MC3020","TripBit20","MC4020"]
["WX21","MIR1021","Rmin21","MHR1221","Rmax21","MHR1421","EngMin21","MHR1642","engMax21","MHR2042","RX21","MIR2042","rh21","MHR2442","rhh21","MHR2842","rl21","MHR3242","rll21","MHR3642","Filt21","MHR4021","SqRt21","MC2021","Alarmbit21","MC3021","TripBit21","MC4021"]
["WX22","MIR1022","Rmin22","MHR1222","Rmax22","MHR1422","EngMin22","MHR1644","engMax22","MHR2044","RX22","MIR2044","rh22","MHR2444","rhh22","MHR2844","rl22","MHR3244","rll22","MHR3644","Filt22","MHR4022","SqRt22","MC2022","Alarmbit22","MC3022","TripBit22","MC4022"]
["WX23","MIR1023","Rmin23","MHR1223","Rmax23","MHR1423","EngMin23","MHR1646","engMax23","MHR2046","RX23","MIR2046","rh23","MHR2446","rhh23","MHR2846","rl23","MHR3246","rll23","MHR3646","Filt23","MHR4023","SqRt23","MC2023","Alarmbit23","MC3023","TripBit23","MC4023"]
["WX24","MIR1024","Rmin24","MHR1224","Rmax24","MHR1424","EngMin24","MHR1648","engMax24","MHR2048","RX24","MIR2048","rh24","MHR2448","rhh24","MHR2848","rl24","MHR3248","rll24","MHR3648","Filt24","MHR4024","SqRt24","MC2024","Alarmbit24","MC3024","TripBit24","MC4024"]
["WX25","MIR1025","Rmin25","MHR1225","Rmax25","MHR1425","EngMin25","MHR1650","engMax25","MHR2050","RX25","MIR2050","rh25","MHR2450","rhh25","MHR2850","rl25","MHR3250","rll25","MHR3650","Filt25","MHR4025","SqRt25","MC2025","Alarmbit25","MC3025","TripBit25","MC4025"]
["WX26","MIR1026","Rmin26","MHR1226","Rmax26","MHR1426","EngMin26","MHR1652","engMax26","MHR2052","RX26","MIR2052","rh26","MHR2452","rhh26","MHR2852","rl26","MHR3252","rll26","MHR3652","Filt26","MHR4026","SqRt26","MC2026","Alarmbit26","MC3026","TripBit26","MC4026"]
["WX27","MIR1027","Rmin27","MHR1227","Rmax27","MHR1427","EngMin27","MHR1654","engMax27","MHR2054","RX27","MIR2054","rh27","MHR2454","rhh27","MHR2854","rl27","MHR3254","rll27","MHR3654","Filt27","MHR4027","SqRt27","MC2027","Alarmbit27","MC3027","TripBit27","MC4027"]
["WX28","MIR1028","Rmin28","MHR1228","Rmax28","MHR1428","EngMin28","MHR1656","engMax28","MHR2056","RX28","MIR2056","rh28","MHR2456","rhh28","MHR2856","rl28","MHR3256","rll28","MHR3656","Filt28","MHR4028","SqRt28","MC2028","Alarmbit28","MC3028","TripBit28","MC4028"]
["WX29","MIR1029","Rmin29","MHR1229","Rmax29","MHR1429","EngMin29","MHR1658","engMax29","MHR2058","RX29","MIR2058","rh29","MHR2458","rhh29","MHR2858","rl29","MHR3258","rll29","MHR3658","Filt29","MHR4029","SqRt29","MC2029","Alarmbit29","MC3029","TripBit29","MC4029"]
["WX30","MIR1030","Rmin30","MHR1230","Rmax30","MHR1430","EngMin30","MHR1660","engMax30","MHR2060","RX30","MIR2060","rh30","MHR2460","rhh30","MHR2860","rl30","MHR3260","rll30","MHR3660","Filt30","MHR4030","SqRt30","MC2030","Alarmbit30","MC3030","TripBit30","MC4030"]
["WX31","MIR1031","Rmin31","MHR1231","Rmax31","MHR1431","EngMin31","MHR1662","engMax31","MHR2062","RX31","MIR2062","rh31","MHR2462","rhh31","MHR2862","rl31","MHR3262","rll31","MHR3662","Filt31","MHR4031","SqRt31","MC2031","Alarmbit31","MC3031","TripBit31","MC4031"]
["WX32","MIR1032","Rmin32","MHR1232","Rmax32","MHR1432","EngMin32","MHR1664","engMax32","MHR2064","RX32","MIR2064","rh32","MHR2464","rhh32","MHR2864","rl32","MHR3264","rll32","MHR3664","Filt32","MHR4032","SqRt32","MC2032","Alarmbit32","MC3032","TripBit32","MC4032"]
["WX33","MIR1033","Rmin33","MHR1233","Rmax33","MHR1433","EngMin33","MHR1666","engMax33","MHR2066","RX33","MIR2066","rh33","MHR2466","rhh33","MHR2866","rl33","MHR3266","rll33","MHR3666","Filt33","MHR4033","SqRt33","MC2033","Alarmbit33","MC3033","TripBit33","MC4033"]
["WX34","MIR1034","Rmin34","MHR1234","Rmax34","MHR1434","EngMin34","MHR1668","engMax34","MHR2068","RX34","MIR2068","rh34","MHR2468","rhh34","MHR2868","rl34","MHR3268","rll34","MHR3668","Filt34","MHR4034","SqRt34","MC2034","Alarmbit34","MC3034","TripBit34","MC4034"]
["WX35","MIR1035","Rmin35","MHR1235","Rmax35","MHR1435","EngMin35","MHR1670","engMax35","MHR2070","RX35","MIR2070","rh35","MHR2470","rhh35","MHR2870","rl35","MHR3270","rll35","MHR3670","Filt35","MHR4035","SqRt35","MC2035","Alarmbit35","MC3035","TripBit35","MC4035"]
["WX36","MIR1036","Rmin36","MHR1236","Rmax36","MHR1436","EngMin36","MHR1672","engMax36","MHR2072","RX36","MIR2072","rh36","MHR2472","rhh36","MHR2872","rl36","MHR3272","rll36","MHR3672","Filt36","MHR4036","SqRt36","MC2036","Alarmbit36","MC3036","TripBit36","MC4036"]
["WX37","MIR1037","Rmin37","MHR1237","Rmax37","MHR1437","EngMin37","MHR1674","engMax37","MHR2074","RX37","MIR2074","rh37","MHR2474","rhh37","MHR2874","rl37","MHR3274","rll37","MHR3674","Filt37","MHR4037","SqRt37","MC2037","Alarmbit37","MC3037","TripBit37","MC4037"]
["WX38","MIR1038","Rmin38","MHR1238","Rmax38","MHR1438","EngMin38","MHR1676","engMax38","MHR2076","RX38","MIR2076","rh38","MHR2476","rhh38","MHR2876","rl38","MHR3276","rll38","MHR3676","Filt38","MHR4038","SqRt38","MC2038","Alarmbit38","MC3038","TripBit38","MC4038"]
["WX39","MIR1039","Rmin39","MHR1239","Rmax39","MHR1439","EngMin39","MHR1678","engMax39","MHR2078","RX39","MIR2078","rh39","MHR2478","rhh39","MHR2878","rl39","MHR3278","rll39","MHR3678","Filt39","MHR4039","SqRt39","MC2039","Alarmbit39","MC3039","TripBit39","MC4039"]
["WX40","MIR1040","Rmin40","MHR1240","Rmax40","MHR1440","EngMin40","MHR1680","engMax40","MHR2080","RX40","MIR2080","rh40","MHR2480","rhh40","MHR2880","rl40","MHR3280","rll40","MHR3680","Filt40","MHR4040","SqRt40","MC2040","Alarmbit40","MC3040","TripBit40","MC4040"]
["WX41","MIR1041","Rmin41","MHR1241","Rmax41","MHR1441","EngMin41","MHR1682","engMax41","MHR2082","RX41","MIR2082","rh41","MHR2482","rhh41","MHR2882","rl41","MHR3282","rll41","MHR3682","Filt41","MHR4041","SqRt41","MC2041","Alarmbit41","MC3041","TripBit41","MC4041"]
["WX42","MIR1042","Rmin42","MHR1242","Rmax42","MHR1442","EngMin42","MHR1684","engMax42","MHR2084","RX42","MIR2084","rh42","MHR2484","rhh42","MHR2884","rl42","MHR3284","rll42","MHR3684","Filt42","MHR4042","SqRt42","MC2042","Alarmbit42","MC3042","TripBit42","MC4042"]
["WX43","MIR1043","Rmin43","MHR1243","Rmax43","MHR1443","EngMin43","MHR1686","engMax43","MHR2086","RX43","MIR2086","rh43","MHR2486","rhh43","MHR2886","rl43","MHR3286","rll43","MHR3686","Filt43","MHR4043","SqRt43","MC2043","Alarmbit43","MC3043","TripBit43","MC4043"]
["WX44","MIR1044","Rmin44","MHR1244","Rmax44","MHR1444","EngMin44","MHR1688","engMax44","MHR2088","RX44","MIR2088","rh44","MHR2488","rhh44","MHR2888","rl44","MHR3288","rll44","MHR3688","Filt44","MHR4044","SqRt44","MC2044","Alarmbit44","MC3044","TripBit44","MC4044"]
["WX45","MIR1045","Rmin45","MHR1245","Rmax45","MHR1445","EngMin45","MHR1690","engMax45","MHR2090","RX45","MIR2090","rh45","MHR2490","rhh45","MHR2890","rl45","MHR3290","rll45","MHR3690","Filt45","MHR4045","SqRt45","MC2045","Alarmbit45","MC3045","TripBit45","MC4045"]
["WX46","MIR1046","Rmin46","MHR1246","Rmax46","MHR1446","EngMin46","MHR1692","engMax46","MHR2092","RX46","MIR2092","rh46","MHR2492","rhh46","MHR2892","rl46","MHR3292","rll46","MHR3692","Filt46","MHR4046","SqRt46","MC2046","Alarmbit46","MC3046","TripBit46","MC4046"]
["WX47","MIR1047","Rmin47","MHR1247","Rmax47","MHR1447","EngMin47","MHR1694","engMax47","MHR2094","RX47","MIR2094","rh47","MHR2494","rhh47","MHR2894","rl47","MHR3294","rll47","MHR3694","Filt47","MHR4047","SqRt47","MC2047","Alarmbit47","MC3047","TripBit47","MC4047"]
["WX48","MIR1048","Rmin48","MHR1248","Rmax48","MHR1448","EngMin48","MHR1696","engMax48","MHR2096","RX48","MIR2096","rh48","MHR2496","rhh48","MHR2896","rl48","MHR3296","rll48","MHR3696","Filt48","MHR4048","SqRt48","MC2048","Alarmbit48","MC3048","TripBit48","MC4048"]
["WX49","MIR1049","Rmin49","MHR1249","Rmax49","MHR1449","EngMin49","MHR1698","engMax49","MHR2098","RX49","MIR2098","rh49","MHR2498","rhh49","MHR2898","rl49","MHR3298","rll49","MHR3698","Filt49","MHR4049","SqRt49","MC2049","Alarmbit49","MC3049","TripBit49","MC4049"]
["WX50","MIR1050","Rmin50","MHR1250","Rmax50","MHR1450","EngMin50","MHR1700","engMax50","MHR2100","RX50","MIR2100","rh50","MHR2500","rhh50","MHR2900","rl50","MHR3300","rll50","MHR3700","Filt50","MHR4050","SqRt50","MC2050","Alarmbit50","MC3050","TripBit50","MC4050"]
["WX51","MIR1051","Rmin51","MHR1251","Rmax51","MHR1451","EngMin51","MHR1702","engMax51","MHR2102","RX51","MIR2102","rh51","MHR2502","rhh51","MHR2902","rl51","MHR3302","rll51","MHR3702","Filt51","MHR4051","SqRt51","MC2051","Alarmbit51","MC3051","TripBit51","MC4051"]
["WX52","MIR1052","Rmin52","MHR1252","Rmax52","MHR1452","EngMin52","MHR1704","engMax52","MHR2104","RX52","MIR2104","rh52","MHR2504","rhh52","MHR2904","rl52","MHR3304","rll52","MHR3704","Filt52","MHR4052","SqRt52","MC2052","Alarmbit52","MC3052","TripBit52","MC4052"]
["WX53","MIR1053","Rmin53","MHR1253","Rmax53","MHR1453","EngMin53","MHR1706","engMax53","MHR2106","RX53","MIR2106","rh53","MHR2506","rhh53","MHR2906","rl53","MHR3306","rll53","MHR3706","Filt53","MHR4053","SqRt53","MC2053","Alarmbit53","MC3053","TripBit53","MC4053"]
["WX54","MIR1054","Rmin54","MHR1254","Rmax54","MHR1454","EngMin54","MHR1708","engMax54","MHR2108","RX54","MIR2108","rh54","MHR2508","rhh54","MHR2908","rl54","MHR3308","rll54","MHR3708","Filt54","MHR4054","SqRt54","MC2054","Alarmbit54","MC3054","TripBit54","MC4054"]
["WX55","MIR1055","Rmin55","MHR1255","Rmax55","MHR1455","EngMin55","MHR1710","engMax55","MHR2110","RX55","MIR2110","rh55","MHR2510","rhh55","MHR2910","rl55","MHR3310","rll55","MHR3710","Filt55","MHR4055","SqRt55","MC2055","Alarmbit55","MC3055","TripBit55","MC4055"]
["WX56","MIR1056","Rmin56","MHR1256","Rmax56","MHR1456","EngMin56","MHR1712","engMax56","MHR2112","RX56","MIR2112","rh56","MHR2512","rhh56","MHR2912","rl56","MHR3312","rll56","MHR3712","Filt56","MHR4056","SqRt56","MC2056","Alarmbit56","MC3056","TripBit56","MC4056"]
["WX57","MIR1057","Rmin57","MHR1257","Rmax57","MHR1457","EngMin57","MHR1714","engMax57","MHR2114","RX57","MIR2114","rh57","MHR2514","rhh57","MHR2914","rl57","MHR3314","rll57","MHR3714","Filt57","MHR4057","SqRt57","MC2057","Alarmbit57","MC3057","TripBit57","MC4057"]
["WX58","MIR1058","Rmin58","MHR1258","Rmax58","MHR1458","EngMin58","MHR1716","engMax58","MHR2116","RX58","MIR2116","rh58","MHR2516","rhh58","MHR2916","rl58","MHR3316","rll58","MHR3716","Filt58","MHR4058","SqRt58","MC2058","Alarmbit58","MC3058","TripBit58","MC4058"]
["WX59","MIR1059","Rmin59","MHR1259","Rmax59","MHR1459","EngMin59","MHR1718","engMax59","MHR2118","RX59","MIR2118","rh59","MHR2518","rhh59","MHR2918","rl59","MHR3318","rll59","MHR3718","Filt59","MHR4059","SqRt59","MC2059","Alarmbit59","MC3059","TripBit59","MC4059"]
["WX60","MIR1060","Rmin60","MHR1260","Rmax60","MHR1460","EngMin60","MHR1720","engMax60","MHR2120","RX60","MIR2120","rh60","MHR2520","rhh60","MHR2920","rl60","MHR3320","rll60","MHR3720","Filt60","MHR4060","SqRt60","MC2060","Alarmbit60","MC3060","TripBit60","MC4060"]
["WX61","MIR1061","Rmin61","MHR1261","Rmax61","MHR1461","EngMin61","MHR1722","engMax61","MHR2122","RX61","MIR2122","rh61","MHR2522","rhh61","MHR2922","rl61","MHR3322","rll61","MHR3722","Filt61","MHR4061","SqRt61","MC2061","Alarmbit61","MC3061","TripBit61","MC4061"]
["WX62","MIR1062","Rmin62","MHR1262","Rmax62","MHR1462","EngMin62","MHR1724","engMax62","MHR2124","RX62","MIR2124","rh62","MHR2524","rhh62","MHR2924","rl62","MHR3324","rll62","MHR3724","Filt62","MHR4062","SqRt62","MC2062","Alarmbit62","MC3062","TripBit62","MC4062"]
["WX63","MIR1063","Rmin63","MHR1263","Rmax63","MHR1463","EngMin63","MHR1726","engMax63","MHR2126","RX63","MIR2126","rh63","MHR2526","rhh63","MHR2926","rl63","MHR3326","rll63","MHR3726","Filt63","MHR4063","SqRt63","MC2063","Alarmbit63","MC3063","TripBit63","MC4063"]
["WX64","MIR1064","Rmin64","MHR1264","Rmax64","MHR1464","EngMin64","MHR1728","engMax64","MHR2128","RX64","MIR2128","rh64","MHR2528","rhh64","MHR2928","rl64","MHR3328","rll64","MHR3728","Filt64","MHR4064","SqRt64","MC2064","Alarmbit64","MC3064","TripBit64","MC4064"]
["WX65","MIR1065","Rmin65","MHR1265","Rmax65","MHR1465","EngMin65","MHR1730","engMax65","MHR2130","RX65","MIR2130","rh65","MHR2530","rhh65","MHR2930","rl65","MHR3330","rll65","MHR3730","Filt65","MHR4065","SqRt65","MC2065","Alarmbit65","MC3065","TripBit65","MC4065"]
["WX66","MIR1066","Rmin66","MHR1266","Rmax66","MHR1466","EngMin66","MHR1732","engMax66","MHR2132","RX66","MIR2132","rh66","MHR2532","rhh66","MHR2932","rl66","MHR3332","rll66","MHR3732","Filt66","MHR4066","SqRt66","MC2066","Alarmbit66","MC3066","TripBit66","MC4066"]
["WX67","MIR1067","Rmin67","MHR1267","Rmax67","MHR1467","EngMin67","MHR1734","engMax67","MHR2134","RX67","MIR2134","rh67","MHR2534","rhh67","MHR2934","rl67","MHR3334","rll67","MHR3734","Filt67","MHR4067","SqRt67","MC2067","Alarmbit67","MC3067","TripBit67","MC4067"]
["WX68","MIR1068","Rmin68","MHR1268","Rmax68","MHR1468","EngMin68","MHR1736","engMax68","MHR2136","RX68","MIR2136","rh68","MHR2536","rhh68","MHR2936","rl68","MHR3336","rll68","MHR3736","Filt68","MHR4068","SqRt68","MC2068","Alarmbit68","MC3068","TripBit68","MC4068"]
["WX69","MIR1069","Rmin69","MHR1269","Rmax69","MHR1469","EngMin69","MHR1738","engMax69","MHR2138","RX69","MIR2138","rh69","MHR2538","rhh69","MHR2938","rl69","MHR3338","rll69","MHR3738","Filt69","MHR4069","SqRt69","MC2069","Alarmbit69","MC3069","TripBit69","MC4069"]
["WX70","MIR1070","Rmin70","MHR1270","Rmax70","MHR1470","EngMin70","MHR1740","engMax70","MHR2140","RX70","MIR2140","rh70","MHR2540","rhh70","MHR2940","rl70","MHR3340","rll70","MHR3740","Filt70","MHR4070","SqRt70","MC2070","Alarmbit70","MC3070","TripBit70","MC4070"]
["WX71","MIR1071","Rmin71","MHR1271","Rmax71","MHR1471","EngMin71","MHR1742","engMax71","MHR2142","RX71","MIR2142","rh71","MHR2542","rhh71","MHR2942","rl71","MHR3342","rll71","MHR3742","Filt71","MHR4071","SqRt71","MC2071","Alarmbit71","MC3071","TripBit71","MC4071"]
["WX72","MIR1072","Rmin72","MHR1272","Rmax72","MHR1472","EngMin72","MHR1744","engMax72","MHR2144","RX72","MIR2144","rh72","MHR2544","rhh72","MHR2944","rl72","MHR3344","rll72","MHR3744","Filt72","MHR4072","SqRt72","MC2072","Alarmbit72","MC3072","TripBit72","MC4072"]
["WX73","MIR1073","Rmin73","MHR1273","Rmax73","MHR1473","EngMin73","MHR1746","engMax73","MHR2146","RX73","MIR2146","rh73","MHR2546","rhh73","MHR2946","rl73","MHR3346","rll73","MHR3746","Filt73","MHR4073","SqRt73","MC2073","Alarmbit73","MC3073","TripBit73","MC4073"]
["WX74","MIR1074","Rmin74","MHR1274","Rmax74","MHR1474","EngMin74","MHR1748","engMax74","MHR2148","RX74","MIR2148","rh74","MHR2548","rhh74","MHR2948","rl74","MHR3348","rll74","MHR3748","Filt74","MHR4074","SqRt74","MC2074","Alarmbit74","MC3074","TripBit74","MC4074"]
["WX75","MIR1075","Rmin75","MHR1275","Rmax75","MHR1475","EngMin75","MHR1750","engMax75","MHR2150","RX75","MIR2150","rh75","MHR2550","rhh75","MHR2950","rl75","MHR3350","rll75","MHR3750","Filt75","MHR4075","SqRt75","MC2075","Alarmbit75","MC3075","TripBit75","MC4075"]
["WX76","MIR1076","Rmin76","MHR1276","Rmax76","MHR1476","EngMin76","MHR1752","engMax76","MHR2152","RX76","MIR2152","rh76","MHR2552","rhh76","MHR2952","rl76","MHR3352","rll76","MHR3752","Filt76","MHR4076","SqRt76","MC2076","Alarmbit76","MC3076","TripBit76","MC4076"]
["WX77","MIR1077","Rmin77","MHR1277","Rmax77","MHR1477","EngMin77","MHR1754","engMax77","MHR2154","RX77","MIR2154","rh77","MHR2554","rhh77","MHR2954","rl77","MHR3354","rll77","MHR3754","Filt77","MHR4077","SqRt77","MC2077","Alarmbit77","MC3077","TripBit77","MC4077"]
["WX78","MIR1078","Rmin78","MHR1278","Rmax78","MHR1478","EngMin78","MHR1756","engMax78","MHR2156","RX78","MIR2156","rh78","MHR2556","rhh78","MHR2956","rl78","MHR3356","rll78","MHR3756","Filt78","MHR4078","SqRt78","MC2078","Alarmbit78","MC3078","TripBit78","MC4078"]
["WX79","MIR1079","Rmin79","MHR1279","Rmax79","MHR1479","EngMin79","MHR1758","engMax79","MHR2158","RX79","MIR2158","rh79","MHR2558","rhh79","MHR2958","rl79","MHR3358","rll79","MHR3758","Filt79","MHR4079","SqRt79","MC2079","Alarmbit79","MC3079","TripBit79","MC4079"]
["WX80","MIR1080","Rmin80","MHR1280","Rmax80","MHR1480","EngMin80","MHR1760","engMax80","MHR2160","RX80","MIR2160","rh80","MHR2560","rhh80","MHR2960","rl80","MHR3360","rll80","MHR3760","Filt80","MHR4080","SqRt80","MC2080","Alarmbit80","MC3080","TripBit80","MC4080"]
["WX81","MIR1081","Rmin81","MHR1281","Rmax81","MHR1481","EngMin81","MHR1762","engMax81","MHR2162","RX81","MIR2162","rh81","MHR2562","rhh81","MHR2962","rl81","MHR3362","rll81","MHR3762","Filt81","MHR4081","SqRt81","MC2081","Alarmbit81","MC3081","TripBit81","MC4081"]
["WX82","MIR1082","Rmin82","MHR1282","Rmax82","MHR1482","EngMin82","MHR1764","engMax82","MHR2164","RX82","MIR2164","rh82","MHR2564","rhh82","MHR2964","rl82","MHR3364","rll82","MHR3764","Filt82","MHR4082","SqRt82","MC2082","Alarmbit82","MC3082","TripBit82","MC4082"]
["WX83","MIR1083","Rmin83","MHR1283","Rmax83","MHR1483","EngMin83","MHR1766","engMax83","MHR2166","RX83","MIR2166","rh83","MHR2566","rhh83","MHR2966","rl83","MHR3366","rll83","MHR3766","Filt83","MHR4083","SqRt83","MC2083","Alarmbit83","MC3083","TripBit83","MC4083"]
["WX84","MIR1084","Rmin84","MHR1284","Rmax84","MHR1484","EngMin84","MHR1768","engMax84","MHR2168","RX84","MIR2168","rh84","MHR2568","rhh84","MHR2968","rl84","MHR3368","rll84","MHR3768","Filt84","MHR4084","SqRt84","MC2084","Alarmbit84","MC3084","TripBit84","MC4084"]
["WX85","MIR1085","Rmin85","MHR1285","Rmax85","MHR1485","EngMin85","MHR1770","engMax85","MHR2170","RX85","MIR2170","rh85","MHR2570","rhh85","MHR2970","rl85","MHR3370","rll85","MHR3770","Filt85","MHR4085","SqRt85","MC2085","Alarmbit85","MC3085","TripBit85","MC4085"]
["WX86","MIR1086","Rmin86","MHR1286","Rmax86","MHR1486","EngMin86","MHR1772","engMax86","MHR2172","RX86","MIR2172","rh86","MHR2572","rhh86","MHR2972","rl86","MHR3372","rll86","MHR3772","Filt86","MHR4086","SqRt86","MC2086","Alarmbit86","MC3086","TripBit86","MC4086"]
["WX87","MIR1087","Rmin87","MHR1287","Rmax87","MHR1487","EngMin87","MHR1774","engMax87","MHR2174","RX87","MIR2174","rh87","MHR2574","rhh87","MHR2974","rl87","MHR3374","rll87","MHR3774","Filt87","MHR4087","SqRt87","MC2087","Alarmbit87","MC3087","TripBit87","MC4087"]
["WX88","MIR1088","Rmin88","MHR1288","Rmax88","MHR1488","EngMin88","MHR1776","engMax88","MHR2176","RX88","MIR2176","rh88","MHR2576","rhh88","MHR2976","rl88","MHR3376","rll88","MHR3776","Filt88","MHR4088","SqRt88","MC2088","Alarmbit88","MC3088","TripBit88","MC4088"]
["WX89","MIR1089","Rmin89","MHR1289","Rmax89","MHR1489","EngMin89","MHR1778","engMax89","MHR2178","RX89","MIR2178","rh89","MHR2578","rhh89","MHR2978","rl89","MHR3378","rll89","MHR3778","Filt89","MHR4089","SqRt89","MC2089","Alarmbit89","MC3089","TripBit89","MC4089"]
["WX90","MIR1090","Rmin90","MHR1290","Rmax90","MHR1490","EngMin90","MHR1780","engMax90","MHR2180","RX90","MIR2180","rh90","MHR2580","rhh90","MHR2980","rl90","MHR3380","rll90","MHR3780","Filt90","MHR4090","SqRt90","MC2090","Alarmbit90","MC3090","TripBit90","MC4090"]
["WX91","MIR1091","Rmin91","MHR1291","Rmax91","MHR1491","EngMin91","MHR1782","engMax91","MHR2182","RX91","MIR2182","rh91","MHR2582","rhh91","MHR2982","rl91","MHR3382","rll91","MHR3782","Filt91","MHR4091","SqRt91","MC2091","Alarmbit91","MC3091","TripBit91","MC4091"]
["WX92","MIR1092","Rmin92","MHR1292","Rmax92","MHR1492","EngMin92","MHR1784","engMax92","MHR2184","RX92","MIR2184","rh92","MHR2584","rhh92","MHR2984","rl92","MHR3384","rll92","MHR3784","Filt92","MHR4092","SqRt92","MC2092","Alarmbit92","MC3092","TripBit92","MC4092"]
["WX93","MIR1093","Rmin93","MHR1293","Rmax93","MHR1493","EngMin93","MHR1786","engMax93","MHR2186","RX93","MIR2186","rh93","MHR2586","rhh93","MHR2986","rl93","MHR3386","rll93","MHR3786","Filt93","MHR4093","SqRt93","MC2093","Alarmbit93","MC3093","TripBit93","MC4093"]
["WX94","MIR1094","Rmin94","MHR1294","Rmax94","MHR1494","EngMin94","MHR1788","engMax94","MHR2188","RX94","MIR2188","rh94","MHR2588","rhh94","MHR2988","rl94","MHR3388","rll94","MHR3788","Filt94","MHR4094","SqRt94","MC2094","Alarmbit94","MC3094","TripBit94","MC4094"]
["WX95","MIR1095","Rmin95","MHR1295","Rmax95","MHR1495","EngMin95","MHR1790","engMax95","MHR2190","RX95","MIR2190","rh95","MHR2590","rhh95","MHR2990","rl95","MHR3390","rll95","MHR3790","Filt95","MHR4095","SqRt95","MC2095","Alarmbit95","MC3095","TripBit95","MC4095"]
["WX96","MIR1096","Rmin96","MHR1296","Rmax96","MHR1496","EngMin96","MHR1792","engMax96","MHR2192","RX96","MIR2192","rh96","MHR2592","rhh96","MHR2992","rl96","MHR3392","rll96","MHR3792","Filt96","MHR4096","SqRt96","MC2096","Alarmbit96","MC3096","TripBit96","MC4096"]
["WX97","MIR1097","Rmin97","MHR1297","Rmax97","MHR1497","EngMin97","MHR1794","engMax97","MHR2194","RX97","MIR2194","rh97","MHR2594","rhh97","MHR2994","rl97","MHR3394","rll97","MHR3794","Filt97","MHR4097","SqRt97","MC2097","Alarmbit97","MC3097","TripBit97","MC4097"]
["WX98","MIR1098","Rmin98","MHR1298","Rmax98","MHR1498","EngMin98","MHR1796","engMax98","MHR2196","RX98","MIR2196","rh98","MHR2596","rhh98","MHR2996","rl98","MHR3396","rll98","MHR3796","Filt98","MHR4098","SqRt98","MC2098","Alarmbit98","MC3098","TripBit98","MC4098"]
["WX99","MIR1099","Rmin99","MHR1299","Rmax99","MHR1499","EngMin99","MHR1798","engMax99","MHR2198","RX99","MIR2198","rh99","MHR2598","rhh99","MHR2998","rl99","MHR3398","rll99","MHR3798","Filt99","MHR4099","SqRt99","MC2099","Alarmbit99","MC3099","TripBit99","MC4099"]
["WX100","MIR1100","Rmin100","MHR1300","Rmax100","MHR1500","EngMin100","MHR1800","engMax100","MHR2200","RX100","MIR2200","rh100","MHR2600","rhh100","MHR3000","rl100","MHR3400","rll100","MHR3800","Filt100","MHR4100","SqRt100","MC2100","Alarmbit100","MC3100","TripBit100","MC4100"]
["WX101","MIR1101","Rmin101","MHR1301","Rmax101","MHR1501","EngMin101","MHR1802","engMax101","MHR2202","RX101","MIR2202","rh101","MHR2602","rhh101","MHR3002","rl101","MHR3402","rll101","MHR3802","Filt101","MHR4101","SqRt101","MC2101","Alarmbit101","MC3101","TripBit101","MC4101"]
["WX102","MIR1102","Rmin102","MHR1302","Rmax102","MHR1502","EngMin102","MHR1804","engMax102","MHR2204","RX102","MIR2204","rh102","MHR2604","rhh102","MHR3004","rl102","MHR3404","rll102","MHR3804","Filt102","MHR4102","SqRt102","MC2102","Alarmbit102","MC3102","TripBit102","MC4102"]
["WX103","MIR1103","Rmin103","MHR1303","Rmax103","MHR1503","EngMin103","MHR1806","engMax103","MHR2206","RX103","MIR2206","rh103","MHR2606","rhh103","MHR3006","rl103","MHR3406","rll103","MHR3806","Filt103","MHR4103","SqRt103","MC2103","Alarmbit103","MC3103","TripBit103","MC4103"]
["WX104","MIR1104","Rmin104","MHR1304","Rmax104","MHR1504","EngMin104","MHR1808","engMax104","MHR2208","RX104","MIR2208","rh104","MHR2608","rhh104","MHR3008","rl104","MHR3408","rll104","MHR3808","Filt104","MHR4104","SqRt104","MC2104","Alarmbit104","MC3104","TripBit104","MC4104"]
["WX105","MIR1105","Rmin105","MHR1305","Rmax105","MHR1505","EngMin105","MHR1810","engMax105","MHR2210","RX105","MIR2210","rh105","MHR2610","rhh105","MHR3010","rl105","MHR3410","rll105","MHR3810","Filt105","MHR4105","SqRt105","MC2105","Alarmbit105","MC3105","TripBit105","MC4105"]
["WX106","MIR1106","Rmin106","MHR1306","Rmax106","MHR1506","EngMin106","MHR1812","engMax106","MHR2212","RX106","MIR2212","rh106","MHR2612","rhh106","MHR3012","rl106","MHR3412","rll106","MHR3812","Filt106","MHR4106","SqRt106","MC2106","Alarmbit106","MC3106","TripBit106","MC4106"]
["WX107","MIR1107","Rmin107","MHR1307","Rmax107","MHR1507","EngMin107","MHR1814","engMax107","MHR2214","RX107","MIR2214","rh107","MHR2614","rhh107","MHR3014","rl107","MHR3414","rll107","MHR3814","Filt107","MHR4107","SqRt107","MC2107","Alarmbit107","MC3107","TripBit107","MC4107"]
["WX108","MIR1108","Rmin108","MHR1308","Rmax108","MHR1508","EngMin108","MHR1816","engMax108","MHR2216","RX108","MIR2216","rh108","MHR2616","rhh108","MHR3016","rl108","MHR3416","rll108","MHR3816","Filt108","MHR4108","SqRt108","MC2108","Alarmbit108","MC3108","TripBit108","MC4108"]
["WX109","MIR1109","Rmin109","MHR1309","Rmax109","MHR1509","EngMin109","MHR1818","engMax109","MHR2218","RX109","MIR2218","rh109","MHR2618","rhh109","MHR3018","rl109","MHR3418","rll109","MHR3818","Filt109","MHR4109","SqRt109","MC2109","Alarmbit109","MC3109","TripBit109","MC4109"]
["WX110","MIR1110","Rmin110","MHR1310","Rmax110","MHR1510","EngMin110","MHR1820","engMax110","MHR2220","RX110","MIR2220","rh110","MHR2620","rhh110","MHR3020","rl110","MHR3420","rll110","MHR3820","Filt110","MHR4110","SqRt110","MC2110","Alarmbit110","MC3110","TripBit110","MC4110"]
["WX111","MIR1111","Rmin111","MHR1311","Rmax111","MHR1511","EngMin111","MHR1822","engMax111","MHR2222","RX111","MIR2222","rh111","MHR2622","rhh111","MHR3022","rl111","MHR3422","rll111","MHR3822","Filt111","MHR4111","SqRt111","MC2111","Alarmbit111","MC3111","TripBit111","MC4111"]
["WX112","MIR1112","Rmin112","MHR1312","Rmax112","MHR1512","EngMin112","MHR1824","engMax112","MHR2224","RX112","MIR2224","rh112","MHR2624","rhh112","MHR3024","rl112","MHR3424","rll112","MHR3824","Filt112","MHR4112","SqRt112","MC2112","Alarmbit112","MC3112","TripBit112","MC4112"]
["WX113","MIR1113","Rmin113","MHR1313","Rmax113","MHR1513","EngMin113","MHR1826","engMax113","MHR2226","RX113","MIR2226","rh113","MHR2626","rhh113","MHR3026","rl113","MHR3426","rll113","MHR3826","Filt113","MHR4113","SqRt113","MC2113","Alarmbit113","MC3113","TripBit113","MC4113"]
["WX114","MIR1114","Rmin114","MHR1314","Rmax114","MHR1514","EngMin114","MHR1828","engMax114","MHR2228","RX114","MIR2228","rh114","MHR2628","rhh114","MHR3028","rl114","MHR3428","rll114","MHR3828","Filt114","MHR4114","SqRt114","MC2114","Alarmbit114","MC3114","TripBit114","MC4114"]
["WX115","MIR1115","Rmin115","MHR1315","Rmax115","MHR1515","EngMin115","MHR1830","engMax115","MHR2230","RX115","MIR2230","rh115","MHR2630","rhh115","MHR3030","rl115","MHR3430","rll115","MHR3830","Filt115","MHR4115","SqRt115","MC2115","Alarmbit115","MC3115","TripBit115","MC4115"]
["WX116","MIR1116","Rmin116","MHR1316","Rmax116","MHR1516","EngMin116","MHR1832","engMax116","MHR2232","RX116","MIR2232","rh116","MHR2632","rhh116","MHR3032","rl116","MHR3432","rll116","MHR3832","Filt116","MHR4116","SqRt116","MC2116","Alarmbit116","MC3116","TripBit116","MC4116"]
["WX117","MIR1117","Rmin117","MHR1317","Rmax117","MHR1517","EngMin117","MHR1834","engMax117","MHR2234","RX117","MIR2234","rh117","MHR2634","rhh117","MHR3034","rl117","MHR3434","rll117","MHR3834","Filt117","MHR4117","SqRt117","MC2117","Alarmbit117","MC3117","TripBit117","MC4117"]
["WX118","MIR1118","Rmin118","MHR1318","Rmax118","MHR1518","EngMin118","MHR1836","engMax118","MHR2236","RX118","MIR2236","rh118","MHR2636","rhh118","MHR3036","rl118","MHR3436","rll118","MHR3836","Filt118","MHR4118","SqRt118","MC2118","Alarmbit118","MC3118","TripBit118","MC4118"]
["WX119","MIR1119","Rmin119","MHR1319","Rmax119","MHR1519","EngMin119","MHR1838","engMax119","MHR2238","RX119","MIR2238","rh119","MHR2638","rhh119","MHR3038","rl119","MHR3438","rll119","MHR3838","Filt119","MHR4119","SqRt119","MC2119","Alarmbit119","MC3119","TripBit119","MC4119"]
["WX120","MIR1120","Rmin120","MHR1320","Rmax120","MHR1520","EngMin120","MHR1840","engMax120","MHR2240","RX120","MIR2240","rh120","MHR2640","rhh120","MHR3040","rl120","MHR3440","rll120","MHR3840","Filt120","MHR4120","SqRt120","MC2120","Alarmbit120","MC3120","TripBit120","MC4120"]
["WX121","MIR1121","Rmin121","MHR1321","Rmax121","MHR1521","EngMin121","MHR1842","engMax121","MHR2242","RX121","MIR2242","rh121","MHR2642","rhh121","MHR3042","rl121","MHR3442","rll121","MHR3842","Filt121","MHR4121","SqRt121","MC2121","Alarmbit121","MC3121","TripBit121","MC4121"]
["WX122","MIR1122","Rmin122","MHR1322","Rmax122","MHR1522","EngMin122","MHR1844","engMax122","MHR2244","RX122","MIR2244","rh122","MHR2644","rhh122","MHR3044","rl122","MHR3444","rll122","MHR3844","Filt122","MHR4122","SqRt122","MC2122","Alarmbit122","MC3122","TripBit122","MC4122"]
["WX123","MIR1123","Rmin123","MHR1323","Rmax123","MHR1523","EngMin123","MHR1846","engMax123","MHR2246","RX123","MIR2246","rh123","MHR2646","rhh123","MHR3046","rl123","MHR3446","rll123","MHR3846","Filt123","MHR4123","SqRt123","MC2123","Alarmbit123","MC3123","TripBit123","MC4123"]
["WX124","MIR1124","Rmin124","MHR1324","Rmax124","MHR1524","EngMin124","MHR1848","engMax124","MHR2248","RX124","MIR2248","rh124","MHR2648","rhh124","MHR3048","rl124","MHR3448","rll124","MHR3848","Filt124","MHR4124","SqRt124","MC2124","Alarmbit124","MC3124","TripBit124","MC4124"]
["WX125","MIR1125","Rmin125","MHR1325","Rmax125","MHR1525","EngMin125","MHR1850","engMax125","MHR2250","RX125","MIR2250","rh125","MHR2650","rhh125","MHR3050","rl125","MHR3450","rll125","MHR3850","Filt125","MHR4125","SqRt125","MC2125","Alarmbit125","MC3125","TripBit125","MC4125"]
["WX126","MIR1126","Rmin126","MHR1326","Rmax126","MHR1526","EngMin126","MHR1852","engMax126","MHR2252","RX126","MIR2252","rh126","MHR2652","rhh126","MHR3052","rl126","MHR3452","rll126","MHR3852","Filt126","MHR4126","SqRt126","MC2126","Alarmbit126","MC3126","TripBit126","MC4126"]
["WX127","MIR1127","Rmin127","MHR1327","Rmax127","MHR1527","EngMin127","MHR1854","engMax127","MHR2254","RX127","MIR2254","rh127","MHR2654","rhh127","MHR3054","rl127","MHR3454","rll127","MHR3854","Filt127","MHR4127","SqRt127","MC2127","Alarmbit127","MC3127","TripBit127","MC4127"]
["WX128","MIR1128","Rmin128","MHR1328","Rmax128","MHR1528","EngMin128","MHR1856","engMax128","MHR2256","RX128","MIR2256","rh128","MHR2656","rhh128","MHR3056","rl128","MHR3456","rll128","MHR3856","Filt128","MHR4128","SqRt128","MC2128","Alarmbit128","MC3128","TripBit128","MC4128"]
["WX129","MIR1129","Rmin129","MHR1329","Rmax129","MHR1529","EngMin129","MHR1858","engMax129","MHR2258","RX129","MIR2258","rh129","MHR2658","rhh129","MHR3058","rl129","MHR3458","rll129","MHR3858","Filt129","MHR4129","SqRt129","MC2129","Alarmbit129","MC3129","TripBit129","MC4129"]
["WX130","MIR1130","Rmin130","MHR1330","Rmax130","MHR1530","EngMin130","MHR1860","engMax130","MHR2260","RX130","MIR2260","rh130","MHR2660","rhh130","MHR3060","rl130","MHR3460","rll130","MHR3860","Filt130","MHR4130","SqRt130","MC2130","Alarmbit130","MC3130","TripBit130","MC4130"]
["WX131","MIR1131","Rmin131","MHR1331","Rmax131","MHR1531","EngMin131","MHR1862","engMax131","MHR2262","RX131","MIR2262","rh131","MHR2662","rhh131","MHR3062","rl131","MHR3462","rll131","MHR3862","Filt131","MHR4131","SqRt131","MC2131","Alarmbit131","MC3131","TripBit131","MC4131"]
["WX132","MIR1132","Rmin132","MHR1332","Rmax132","MHR1532","EngMin132","MHR1864","engMax132","MHR2264","RX132","MIR2264","rh132","MHR2664","rhh132","MHR3064","rl132","MHR3464","rll132","MHR3864","Filt132","MHR4132","SqRt132","MC2132","Alarmbit132","MC3132","TripBit132","MC4132"]
["WX133","MIR1133","Rmin133","MHR1333","Rmax133","MHR1533","EngMin133","MHR1866","engMax133","MHR2266","RX133","MIR2266","rh133","MHR2666","rhh133","MHR3066","rl133","MHR3466","rll133","MHR3866","Filt133","MHR4133","SqRt133","MC2133","Alarmbit133","MC3133","TripBit133","MC4133"]
["WX134","MIR1134","Rmin134","MHR1334","Rmax134","MHR1534","EngMin134","MHR1868","engMax134","MHR2268","RX134","MIR2268","rh134","MHR2668","rhh134","MHR3068","rl134","MHR3468","rll134","MHR3868","Filt134","MHR4134","SqRt134","MC2134","Alarmbit134","MC3134","TripBit134","MC4134"]
["WX135","MIR1135","Rmin135","MHR1335","Rmax135","MHR1535","EngMin135","MHR1870","engMax135","MHR2270","RX135","MIR2270","rh135","MHR2670","rhh135","MHR3070","rl135","MHR3470","rll135","MHR3870","Filt135","MHR4135","SqRt135","MC2135","Alarmbit135","MC3135","TripBit135","MC4135"]
["WX136","MIR1136","Rmin136","MHR1336","Rmax136","MHR1536","EngMin136","MHR1872","engMax136","MHR2272","RX136","MIR2272","rh136","MHR2672","rhh136","MHR3072","rl136","MHR3472","rll136","MHR3872","Filt136","MHR4136","SqRt136","MC2136","Alarmbit136","MC3136","TripBit136","MC4136"]
["WX137","MIR1137","Rmin137","MHR1337","Rmax137","MHR1537","EngMin137","MHR1874","engMax137","MHR2274","RX137","MIR2274","rh137","MHR2674","rhh137","MHR3074","rl137","MHR3474","rll137","MHR3874","Filt137","MHR4137","SqRt137","MC2137","Alarmbit137","MC3137","TripBit137","MC4137"]
["WX138","MIR1138","Rmin138","MHR1338","Rmax138","MHR1538","EngMin138","MHR1876","engMax138","MHR2276","RX138","MIR2276","rh138","MHR2676","rhh138","MHR3076","rl138","MHR3476","rll138","MHR3876","Filt138","MHR4138","SqRt138","MC2138","Alarmbit138","MC3138","TripBit138","MC4138"]
["WX139","MIR1139","Rmin139","MHR1339","Rmax139","MHR1539","EngMin139","MHR1878","engMax139","MHR2278","RX139","MIR2278","rh139","MHR2678","rhh139","MHR3078","rl139","MHR3478","rll139","MHR3878","Filt139","MHR4139","SqRt139","MC2139","Alarmbit139","MC3139","TripBit139","MC4139"]
["WX140","MIR1140","Rmin140","MHR1340","Rmax140","MHR1540","EngMin140","MHR1880","engMax140","MHR2280","RX140","MIR2280","rh140","MHR2680","rhh140","MHR3080","rl140","MHR3480","rll140","MHR3880","Filt140","MHR4140","SqRt140","MC2140","Alarmbit140","MC3140","TripBit140","MC4140"]
["WX141","MIR1141","Rmin141","MHR1341","Rmax141","MHR1541","EngMin141","MHR1882","engMax141","MHR2282","RX141","MIR2282","rh141","MHR2682","rhh141","MHR3082","rl141","MHR3482","rll141","MHR3882","Filt141","MHR4141","SqRt141","MC2141","Alarmbit141","MC3141","TripBit141","MC4141"]
["WX142","MIR1142","Rmin142","MHR1342","Rmax142","MHR1542","EngMin142","MHR1884","engMax142","MHR2284","RX142","MIR2284","rh142","MHR2684","rhh142","MHR3084","rl142","MHR3484","rll142","MHR3884","Filt142","MHR4142","SqRt142","MC2142","Alarmbit142","MC3142","TripBit142","MC4142"]
["WX143","MIR1143","Rmin143","MHR1343","Rmax143","MHR1543","EngMin143","MHR1886","engMax143","MHR2286","RX143","MIR2286","rh143","MHR2686","rhh143","MHR3086","rl143","MHR3486","rll143","MHR3886","Filt143","MHR4143","SqRt143","MC2143","Alarmbit143","MC3143","TripBit143","MC4143"]
["WX144","MIR1144","Rmin144","MHR1344","Rmax144","MHR1544","EngMin144","MHR1888","engMax144","MHR2288","RX144","MIR2288","rh144","MHR2688","rhh144","MHR3088","rl144","MHR3488","rll144","MHR3888","Filt144","MHR4144","SqRt144","MC2144","Alarmbit144","MC3144","TripBit144","MC4144"]
["WX145","MIR1145","Rmin145","MHR1345","Rmax145","MHR1545","EngMin145","MHR1890","engMax145","MHR2290","RX145","MIR2290","rh145","MHR2690","rhh145","MHR3090","rl145","MHR3490","rll145","MHR3890","Filt145","MHR4145","SqRt145","MC2145","Alarmbit145","MC3145","TripBit145","MC4145"]
["WX146","MIR1146","Rmin146","MHR1346","Rmax146","MHR1546","EngMin146","MHR1892","engMax146","MHR2292","RX146","MIR2292","rh146","MHR2692","rhh146","MHR3092","rl146","MHR3492","rll146","MHR3892","Filt146","MHR4146","SqRt146","MC2146","Alarmbit146","MC3146","TripBit146","MC4146"]
["WX147","MIR1147","Rmin147","MHR1347","Rmax147","MHR1547","EngMin147","MHR1894","engMax147","MHR2294","RX147","MIR2294","rh147","MHR2694","rhh147","MHR3094","rl147","MHR3494","rll147","MHR3894","Filt147","MHR4147","SqRt147","MC2147","Alarmbit147","MC3147","TripBit147","MC4147"]
["WX148","MIR1148","Rmin148","MHR1348","Rmax148","MHR1548","EngMin148","MHR1896","engMax148","MHR2296","RX148","MIR2296","rh148","MHR2696","rhh148","MHR3096","rl148","MHR3496","rll148","MHR3896","Filt148","MHR4148","SqRt148","MC2148","Alarmbit148","MC3148","TripBit148","MC4148"]
["WX149","MIR1149","Rmin149","MHR1349","Rmax149","MHR1549","EngMin149","MHR1898","engMax149","MHR2298","RX149","MIR2298","rh149","MHR2698","rhh149","MHR3098","rl149","MHR3498","rll149","MHR3898","Filt149","MHR4149","SqRt149","MC2149","Alarmbit149","MC3149","TripBit149","MC4149"]
["WX150","MIR1150","Rmin150","MHR1350","Rmax150","MHR1550","EngMin150","MHR1900","engMax150","MHR2300","RX150","MIR2300","rh150","MHR2700","rhh150","MHR3100","rl150","MHR3500","rll150","MHR3900","Filt150","MHR4150","SqRt150","MC2150","Alarmbit150","MC3150","TripBit150","MC4150"]
["WX151","MIR1151","Rmin151","MHR1351","Rmax151","MHR1551","EngMin151","MHR1902","engMax151","MHR2302","RX151","MIR2302","rh151","MHR2702","rhh151","MHR3102","rl151","MHR3502","rll151","MHR3902","Filt151","MHR4151","SqRt151","MC2151","Alarmbit151","MC3151","TripBit151","MC4151"]
["WX152","MIR1152","Rmin152","MHR1352","Rmax152","MHR1552","EngMin152","MHR1904","engMax152","MHR2304","RX152","MIR2304","rh152","MHR2704","rhh152","MHR3104","rl152","MHR3504","rll152","MHR3904","Filt152","MHR4152","SqRt152","MC2152","Alarmbit152","MC3152","TripBit152","MC4152"]
["WX153","MIR1153","Rmin153","MHR1353","Rmax153","MHR1553","EngMin153","MHR1906","engMax153","MHR2306","RX153","MIR2306","rh153","MHR2706","rhh153","MHR3106","rl153","MHR3506","rll153","MHR3906","Filt153","MHR4153","SqRt153","MC2153","Alarmbit153","MC3153","TripBit153","MC4153"]
["WX154","MIR1154","Rmin154","MHR1354","Rmax154","MHR1554","EngMin154","MHR1908","engMax154","MHR2308","RX154","MIR2308","rh154","MHR2708","rhh154","MHR3108","rl154","MHR3508","rll154","MHR3908","Filt154","MHR4154","SqRt154","MC2154","Alarmbit154","MC3154","TripBit154","MC4154"]
["WX155","MIR1155","Rmin155","MHR1355","Rmax155","MHR1555","EngMin155","MHR1910","engMax155","MHR2310","RX155","MIR2310","rh155","MHR2710","rhh155","MHR3110","rl155","MHR3510","rll155","MHR3910","Filt155","MHR4155","SqRt155","MC2155","Alarmbit155","MC3155","TripBit155","MC4155"]
["WX156","MIR1156","Rmin156","MHR1356","Rmax156","MHR1556","EngMin156","MHR1912","engMax156","MHR2312","RX156","MIR2312","rh156","MHR2712","rhh156","MHR3112","rl156","MHR3512","rll156","MHR3912","Filt156","MHR4156","SqRt156","MC2156","Alarmbit156","MC3156","TripBit156","MC4156"]
["WX157","MIR1157","Rmin157","MHR1357","Rmax157","MHR1557","EngMin157","MHR1914","engMax157","MHR2314","RX157","MIR2314","rh157","MHR2714","rhh157","MHR3114","rl157","MHR3514","rll157","MHR3914","Filt157","MHR4157","SqRt157","MC2157","Alarmbit157","MC3157","TripBit157","MC4157"]
["WX158","MIR1158","Rmin158","MHR1358","Rmax158","MHR1558","EngMin158","MHR1916","engMax158","MHR2316","RX158","MIR2316","rh158","MHR2716","rhh158","MHR3116","rl158","MHR3516","rll158","MHR3916","Filt158","MHR4158","SqRt158","MC2158","Alarmbit158","MC3158","TripBit158","MC4158"]
["WX159","MIR1159","Rmin159","MHR1359","Rmax159","MHR1559","EngMin159","MHR1918","engMax159","MHR2318","RX159","MIR2318","rh159","MHR2718","rhh159","MHR3118","rl159","MHR3518","rll159","MHR3918","Filt159","MHR4159","SqRt159","MC2159","Alarmbit159","MC3159","TripBit159","MC4159"]
["WX160","MIR1160","Rmin160","MHR1360","Rmax160","MHR1560","EngMin160","MHR1920","engMax160","MHR2320","RX160","MIR2320","rh160","MHR2720","rhh160","MHR3120","rl160","MHR3520","rll160","MHR3920","Filt160","MHR4160","SqRt160","MC2160","Alarmbit160","MC3160","TripBit160","MC4160"]
["WX161","MIR1161","Rmin161","MHR1361","Rmax161","MHR1561","EngMin161","MHR1922","engMax161","MHR2322","RX161","MIR2322","rh161","MHR2722","rhh161","MHR3122","rl161","MHR3522","rll161","MHR3922","Filt161","MHR4161","SqRt161","MC2161","Alarmbit161","MC3161","TripBit161","MC4161"]
["WX162","MIR1162","Rmin162","MHR1362","Rmax162","MHR1562","EngMin162","MHR1924","engMax162","MHR2324","RX162","MIR2324","rh162","MHR2724","rhh162","MHR3124","rl162","MHR3524","rll162","MHR3924","Filt162","MHR4162","SqRt162","MC2162","Alarmbit162","MC3162","TripBit162","MC4162"]
["WX163","MIR1163","Rmin163","MHR1363","Rmax163","MHR1563","EngMin163","MHR1926","engMax163","MHR2326","RX163","MIR2326","rh163","MHR2726","rhh163","MHR3126","rl163","MHR3526","rll163","MHR3926","Filt163","MHR4163","SqRt163","MC2163","Alarmbit163","MC3163","TripBit163","MC4163"]
["WX164","MIR1164","Rmin164","MHR1364","Rmax164","MHR1564","EngMin164","MHR1928","engMax164","MHR2328","RX164","MIR2328","rh164","MHR2728","rhh164","MHR3128","rl164","MHR3528","rll164","MHR3928","Filt164","MHR4164","SqRt164","MC2164","Alarmbit164","MC3164","TripBit164","MC4164"]
["WX165","MIR1165","Rmin165","MHR1365","Rmax165","MHR1565","EngMin165","MHR1930","engMax165","MHR2330","RX165","MIR2330","rh165","MHR2730","rhh165","MHR3130","rl165","MHR3530","rll165","MHR3930","Filt165","MHR4165","SqRt165","MC2165","Alarmbit165","MC3165","TripBit165","MC4165"]
["WX166","MIR1166","Rmin166","MHR1366","Rmax166","MHR1566","EngMin166","MHR1932","engMax166","MHR2332","RX166","MIR2332","rh166","MHR2732","rhh166","MHR3132","rl166","MHR3532","rll166","MHR3932","Filt166","MHR4166","SqRt166","MC2166","Alarmbit166","MC3166","TripBit166","MC4166"]
["WX167","MIR1167","Rmin167","MHR1367","Rmax167","MHR1567","EngMin167","MHR1934","engMax167","MHR2334","RX167","MIR2334","rh167","MHR2734","rhh167","MHR3134","rl167","MHR3534","rll167","MHR3934","Filt167","MHR4167","SqRt167","MC2167","Alarmbit167","MC3167","TripBit167","MC4167"]
["WX168","MIR1168","Rmin168","MHR1368","Rmax168","MHR1568","EngMin168","MHR1936","engMax168","MHR2336","RX168","MIR2336","rh168","MHR2736","rhh168","MHR3136","rl168","MHR3536","rll168","MHR3936","Filt168","MHR4168","SqRt168","MC2168","Alarmbit168","MC3168","TripBit168","MC4168"]
["WX169","MIR1169","Rmin169","MHR1369","Rmax169","MHR1569","EngMin169","MHR1938","engMax169","MHR2338","RX169","MIR2338","rh169","MHR2738","rhh169","MHR3138","rl169","MHR3538","rll169","MHR3938","Filt169","MHR4169","SqRt169","MC2169","Alarmbit169","MC3169","TripBit169","MC4169"]
["WX170","MIR1170","Rmin170","MHR1370","Rmax170","MHR1570","EngMin170","MHR1940","engMax170","MHR2340","RX170","MIR2340","rh170","MHR2740","rhh170","MHR3140","rl170","MHR3540","rll170","MHR3940","Filt170","MHR4170","SqRt170","MC2170","Alarmbit170","MC3170","TripBit170","MC4170"]
["WX171","MIR1171","Rmin171","MHR1371","Rmax171","MHR1571","EngMin171","MHR1942","engMax171","MHR2342","RX171","MIR2342","rh171","MHR2742","rhh171","MHR3142","rl171","MHR3542","rll171","MHR3942","Filt171","MHR4171","SqRt171","MC2171","Alarmbit171","MC3171","TripBit171","MC4171"]
["WX172","MIR1172","Rmin172","MHR1372","Rmax172","MHR1572","EngMin172","MHR1944","engMax172","MHR2344","RX172","MIR2344","rh172","MHR2744","rhh172","MHR3144","rl172","MHR3544","rll172","MHR3944","Filt172","MHR4172","SqRt172","MC2172","Alarmbit172","MC3172","TripBit172","MC4172"]
["WX173","MIR1173","Rmin173","MHR1373","Rmax173","MHR1573","EngMin173","MHR1946","engMax173","MHR2346","RX173","MIR2346","rh173","MHR2746","rhh173","MHR3146","rl173","MHR3546","rll173","MHR3946","Filt173","MHR4173","SqRt173","MC2173","Alarmbit173","MC3173","TripBit173","MC4173"]
["WX174","MIR1174","Rmin174","MHR1374","Rmax174","MHR1574","EngMin174","MHR1948","engMax174","MHR2348","RX174","MIR2348","rh174","MHR2748","rhh174","MHR3148","rl174","MHR3548","rll174","MHR3948","Filt174","MHR4174","SqRt174","MC2174","Alarmbit174","MC3174","TripBit174","MC4174"]
["WX175","MIR1175","Rmin175","MHR1375","Rmax175","MHR1575","EngMin175","MHR1950","engMax175","MHR2350","RX175","MIR2350","rh175","MHR2750","rhh175","MHR3150","rl175","MHR3550","rll175","MHR3950","Filt175","MHR4175","SqRt175","MC2175","Alarmbit175","MC3175","TripBit175","MC4175"]
["WX176","MIR1176","Rmin176","MHR1376","Rmax176","MHR1576","EngMin176","MHR1952","engMax176","MHR2352","RX176","MIR2352","rh176","MHR2752","rhh176","MHR3152","rl176","MHR3552","rll176","MHR3952","Filt176","MHR4176","SqRt176","MC2176","Alarmbit176","MC3176","TripBit176","MC4176"]
["WX177","MIR1177","Rmin177","MHR1377","Rmax177","MHR1577","EngMin177","MHR1954","engMax177","MHR2354","RX177","MIR2354","rh177","MHR2754","rhh177","MHR3154","rl177","MHR3554","rll177","MHR3954","Filt177","MHR4177","SqRt177","MC2177","Alarmbit177","MC3177","TripBit177","MC4177"]
["WX178","MIR1178","Rmin178","MHR1378","Rmax178","MHR1578","EngMin178","MHR1956","engMax178","MHR2356","RX178","MIR2356","rh178","MHR2756","rhh178","MHR3156","rl178","MHR3556","rll178","MHR3956","Filt178","MHR4178","SqRt178","MC2178","Alarmbit178","MC3178","TripBit178","MC4178"]
["WX179","MIR1179","Rmin179","MHR1379","Rmax179","MHR1579","EngMin179","MHR1958","engMax179","MHR2358","RX179","MIR2358","rh179","MHR2758","rhh179","MHR3158","rl179","MHR3558","rll179","MHR3958","Filt179","MHR4179","SqRt179","MC2179","Alarmbit179","MC3179","TripBit179","MC4179"]
["WX180","MIR1180","Rmin180","MHR1380","Rmax180","MHR1580","EngMin180","MHR1960","engMax180","MHR2360","RX180","MIR2360","rh180","MHR2760","rhh180","MHR3160","rl180","MHR3560","rll180","MHR3960","Filt180","MHR4180","SqRt180","MC2180","Alarmbit180","MC3180","TripBit180","MC4180"]
["WX181","MIR1181","Rmin181","MHR1381","Rmax181","MHR1581","EngMin181","MHR1962","engMax181","MHR2362","RX181","MIR2362","rh181","MHR2762","rhh181","MHR3162","rl181","MHR3562","rll181","MHR3962","Filt181","MHR4181","SqRt181","MC2181","Alarmbit181","MC3181","TripBit181","MC4181"]
["WX182","MIR1182","Rmin182","MHR1382","Rmax182","MHR1582","EngMin182","MHR1964","engMax182","MHR2364","RX182","MIR2364","rh182","MHR2764","rhh182","MHR3164","rl182","MHR3564","rll182","MHR3964","Filt182","MHR4182","SqRt182","MC2182","Alarmbit182","MC3182","TripBit182","MC4182"]
["WX183","MIR1183","Rmin183","MHR1383","Rmax183","MHR1583","EngMin183","MHR1966","engMax183","MHR2366","RX183","MIR2366","rh183","MHR2766","rhh183","MHR3166","rl183","MHR3566","rll183","MHR3966","Filt183","MHR4183","SqRt183","MC2183","Alarmbit183","MC3183","TripBit183","MC4183"]
["WX184","MIR1184","Rmin184","MHR1384","Rmax184","MHR1584","EngMin184","MHR1968","engMax184","MHR2368","RX184","MIR2368","rh184","MHR2768","rhh184","MHR3168","rl184","MHR3568","rll184","MHR3968","Filt184","MHR4184","SqRt184","MC2184","Alarmbit184","MC3184","TripBit184","MC4184"]
["WX185","MIR1185","Rmin185","MHR1385","Rmax185","MHR1585","EngMin185","MHR1970","engMax185","MHR2370","RX185","MIR2370","rh185","MHR2770","rhh185","MHR3170","rl185","MHR3570","rll185","MHR3970","Filt185","MHR4185","SqRt185","MC2185","Alarmbit185","MC3185","TripBit185","MC4185"]
["WX186","MIR1186","Rmin186","MHR1386","Rmax186","MHR1586","EngMin186","MHR1972","engMax186","MHR2372","RX186","MIR2372","rh186","MHR2772","rhh186","MHR3172","rl186","MHR3572","rll186","MHR3972","Filt186","MHR4186","SqRt186","MC2186","Alarmbit186","MC3186","TripBit186","MC4186"]
["WX187","MIR1187","Rmin187","MHR1387","Rmax187","MHR1587","EngMin187","MHR1974","engMax187","MHR2374","RX187","MIR2374","rh187","MHR2774","rhh187","MHR3174","rl187","MHR3574","rll187","MHR3974","Filt187","MHR4187","SqRt187","MC2187","Alarmbit187","MC3187","TripBit187","MC4187"]
["WX188","MIR1188","Rmin188","MHR1388","Rmax188","MHR1588","EngMin188","MHR1976","engMax188","MHR2376","RX188","MIR2376","rh188","MHR2776","rhh188","MHR3176","rl188","MHR3576","rll188","MHR3976","Filt188","MHR4188","SqRt188","MC2188","Alarmbit188","MC3188","TripBit188","MC4188"]
["WX189","MIR1189","Rmin189","MHR1389","Rmax189","MHR1589","EngMin189","MHR1978","engMax189","MHR2378","RX189","MIR2378","rh189","MHR2778","rhh189","MHR3178","rl189","MHR3578","rll189","MHR3978","Filt189","MHR4189","SqRt189","MC2189","Alarmbit189","MC3189","TripBit189","MC4189"]
["WX190","MIR1190","Rmin190","MHR1390","Rmax190","MHR1590","EngMin190","MHR1980","engMax190","MHR2380","RX190","MIR2380","rh190","MHR2780","rhh190","MHR3180","rl190","MHR3580","rll190","MHR3980","Filt190","MHR4190","SqRt190","MC2190","Alarmbit190","MC3190","TripBit190","MC4190"]
["WX191","MIR1191","Rmin191","MHR1391","Rmax191","MHR1591","EngMin191","MHR1982","engMax191","MHR2382","RX191","MIR2382","rh191","MHR2782","rhh191","MHR3182","rl191","MHR3582","rll191","MHR3982","Filt191","MHR4191","SqRt191","MC2191","Alarmbit191","MC3191","TripBit191","MC4191"]
["WX192","MIR1192","Rmin192","MHR1392","Rmax192","MHR1592","EngMin192","MHR1984","engMax192","MHR2384","RX192","MIR2384","rh192","MHR2784","rhh192","MHR3184","rl192","MHR3584","rll192","MHR3984","Filt192","MHR4192","SqRt192","MC2192","Alarmbit192","MC3192","TripBit192","MC4192"]
["WX193","MIR1193","Rmin193","MHR1393","Rmax193","MHR1593","EngMin193","MHR1986","engMax193","MHR2386","RX193","MIR2386","rh193","MHR2786","rhh193","MHR3186","rl193","MHR3586","rll193","MHR3986","Filt193","MHR4193","SqRt193","MC2193","Alarmbit193","MC3193","TripBit193","MC4193"]
["WX194","MIR1194","Rmin194","MHR1394","Rmax194","MHR1594","EngMin194","MHR1988","engMax194","MHR2388","RX194","MIR2388","rh194","MHR2788","rhh194","MHR3188","rl194","MHR3588","rll194","MHR3988","Filt194","MHR4194","SqRt194","MC2194","Alarmbit194","MC3194","TripBit194","MC4194"]
["WX195","MIR1195","Rmin195","MHR1395","Rmax195","MHR1595","EngMin195","MHR1990","engMax195","MHR2390","RX195","MIR2390","rh195","MHR2790","rhh195","MHR3190","rl195","MHR3590","rll195","MHR3990","Filt195","MHR4195","SqRt195","MC2195","Alarmbit195","MC3195","TripBit195","MC4195"]
["WX196","MIR1196","Rmin196","MHR1396","Rmax196","MHR1596","EngMin196","MHR1992","engMax196","MHR2392","RX196","MIR2392","rh196","MHR2792","rhh196","MHR3192","rl196","MHR3592","rll196","MHR3992","Filt196","MHR4196","SqRt196","MC2196","Alarmbit196","MC3196","TripBit196","MC4196"]
["WX197","MIR1197","Rmin197","MHR1397","Rmax197","MHR1597","EngMin197","MHR1994","engMax197","MHR2394","RX197","MIR2394","rh197","MHR2794","rhh197","MHR3194","rl197","MHR3594","rll197","MHR3994","Filt197","MHR4197","SqRt197","MC2197","Alarmbit197","MC3197","TripBit197","MC4197"]
["WX198","MIR1198","Rmin198","MHR1398","Rmax198","MHR1598","EngMin198","MHR1996","engMax198","MHR2396","RX198","MIR2396","rh198","MHR2796","rhh198","MHR3196","rl198","MHR3596","rll198","MHR3996","Filt198","MHR4198","SqRt198","MC2198","Alarmbit198","MC3198","TripBit198","MC4198"]
["WX199","MIR1199","Rmin199","MHR1399","Rmax199","MHR1599","EngMin199","MHR1998","engMax199","MHR2398","RX199","MIR2398","rh199","MHR2798","rhh199","MHR3198","rl199","MHR3598","rll199","MHR3998","Filt199","MHR4199","SqRt199","MC2199","Alarmbit199","MC3199","TripBit199","MC4199"]

{"sheet":"Modbus Register mapping","index":8,"n_rows":506,"n_cols":33,"rows_kept":506,"cut":false,"hidden":false,"merged":[]}
["Main Screen"]
[]
["MC1","Pcmainscreen",null,0]
["MC2","PCCurveWrite",null,1]
["MC3","PCsettingsWrite",null,2]
["MC4","PCEnvWrite",null,3]
["MC5","PCScalingWrit",null,4]
["MC6",null,null,5]
["MC7",null,null,6]
["MC8"]
["MC9"]
["MC10","PCBoilerOnOff",null,"Boiler On Off Button (used to be b1770.0)"]
["MC11"]
["MC12"]
["MC13"]
["MC14","BMSPLC/OTHER",null,"was B2000.5 This defines what type of bms is being used"]
["MC15","Feedwater on",null,"was B2000.6",null,null,null,null,null,{"$f":"2^70","v":1.1805916207174113E+21}]
["MC16","annunciator",null,"was B2000.7"]
["MC17","Master Control",null,"was B2000.8"]
["MC18","Alarm Acknowledg",null,"was B2000.9",null,null,"Read Write"]
["MC19","Drum PID Man",null,"was B2000.10"]
["MC20","PC_LOOP AUT0",null,"was B2000.11"]
["MC21","PC_diagnostic",null,"was B2000.12"]
["MC22","PC_Fuel Valve",null,"was B2000.13"]
["MC23","Primary Fuel Sel",null,"was B2000.14"]
["MC24","Drum Loop Auto",null,"was B2000.15"]
["MC25"]
["MC26"]
["MC27"]
["MC28"]
["MC29"]
["MC30",null,null,null,null,null,null,null,null,{"$f":"((2^40)-1)-L32","v":1099511627774},0,{"$f":"2^K32","v":1}]
["MC100","PC_BoilerOn",null,"Stage 2 -was B2001.0",null,null,"Read only",null,null,65538]
["MC101","PC_Prepurge",null,"Stage 3 -was B2001.5",null,null,null,null,null,{"$f":"_xlfn.BITAND(J32,J33)","v":65538}]
["MC102","PC_LFPurge",null,"Stage 4 -was B2001.6"]
["MC103","PC_PilotTrial",null,"Stage 5 -was B2001.3",null,null,null,null,null,{"$f":"_xlfn.BITAND(256,8)","v":0}]
["MC104","PC_TrialMainFlame",null,"Stage 5 - Still"]
["MC105","PC_FLAMEON",null,"Stage 6 -was B2001.4"]
["MC106","PC_POSTPURGE",null,"Stage 7 -was B2001.7"]
["MC107"]
["MC108"]
["MC109"]
["MC110","Status Diagnost",null,"was B2001.8"]
["MC111","PC_FGR Fault",null,"was B2001.9"]
["MC112","PC_ID FAULT",null,"was B2001.10"]
["MC113","PC_FD Error",null,"was B2001.1"]
["MC114","PC_LOW AIR",null,"was B2001.2"]
["MC115"]
["MC116"]
["MC117"]
["MC118"]
["MC119"]
["MC120"]
["MC121"]
["MC122"]
["MC123"]
["MC124"]
["MC125"]
["MC126"]
["MC127"]
["MC128"]
["MC129"]
["MC130"]
["MC131"]
["MC132"]
["MC133"]
["MHR10","PC_FuelFlow"]
["MHR11"]
["MHR12"]
["MHR13"]
["MHR14"]
["MHR15"]
["MHR16"]
["MHR17"]
["MHR18"]
["MHR19"]
["MHR20"]
["MHR21"]
["MHR22"]
["MHR23"]
["MHR24"]
["MHR25"]
["MHR26"]
["MHR27"]
["MHR28"]
["MHR29"]
["MHR30"]
["MHR31"]
["MHR32"]
["MHR33"]
["MHR34"]
["MHR35"]
["MHR36"]
["MHR37"]
["MHR38"]
["MHR39"]
["MHR40"]
["MHR41"]
["MHR100","PC_FDFanSetpt",null,"Goes to R100"]
["MHR102","PC_FGRFanSetpt",null,"Goes to R101"]
["MHR104","PC_AirSeptoint",null,"Goes to R102"]
["MHR106","PC_Damp2Setpt",null,"Goes to R103"]
["MHR108","PC_OxSetpt",null,"Goes to R104"]
["MHR110",null,null,"Goes to R105"]
["MHR112",null,null,"Goes to R106"]
["MHR114",null,null,"Goes to R107"]
["MHR116",null,null,"Goes to R108"]
["MHR118",null,null,"Goes to R109"]
["MHR120","PC_FuelSetPt",null,"Goes to R110"]
["MHR122","PC_DeltasetPt",null,"Goes to R111"]
["MHR124",null,null,"Goes to R112"]
["MHR126",null,null,"Goes to R113"]
["MHR128",null,null,"Goes to R114"]
["MHR130",null,null,"Goes to R115"]
["MHR132",null,null,"Goes to R116"]
["MHR134",null,null,"Goes to R117"]
["MHR136",null,null,"Goes to R118"]
["MHR138",null,null,"Goes to R119"]
["MHR300","PC_SteamPreSet",null,"Goes to R300"]
["MHR302","PC_ManFuelSet",null,"Goes to R301"]
["MHR304",null,null,"Goes to R302"]
["MHR306","PC_FDsetDiagnotic",null,"Goes to R303"]
["MHR308",null,null,"Goes to R304"]
["MHR310",null,null,"Goes to R305"]
["MHR312",null,null,"Goes to R306"]
["MHR314",null,null,"Goes to R307"]
["MHR316",null,null,"Goes to R308"]
["MHR318",null,null,"Goes to R309"]
["MHR320",null,null,"Goes to R310"]
["MHR322",null,null,"Goes to R311"]
["MHR324",null,null,"Goes to R312"]
["MHR326",null,null,"Goes to R313"]
["MHR328",null,null,"Goes to R314"]
["MHR330",null,null,"Goes to R315"]
["MHR332",null,null,"Goes to R316"]
["MHR334",null,null,"Goes to R317"]
["MHR336",null,null,"Goes to R318"]
["MHR338",null,null,"Goes to R319"]
[]
["MHR800","PC_PurgeSpeed",null,"goes to R800"]
["MHR801"]
["MHR802","PC Ignition Spee",null,"goes to R801"]
["MHR803"]
["MHR804","PC_KP",null,"goes to R802"]
["MHR805"]
["MHR806","PC_Tkd",null,"goes to R803"]
["MHR807"]
["MHR808","PC_KD",null,"goes to R804"]
["MHR809"]
["MHR810","PC_ControDmpner",null,"goes to R805"]
["MHR811"]
["MHR812","PC Fuel Multipli",null,"goes to R806"]
["MHR813"]
["MHR814","Fuel Filter Size",null,"goes to R807"]
["MHR815"]
["MHR816","Steam Filter",null,"goes to R808"]
["MHR817"]
["MHR818","Prepurge Time",null,"goes to R809"]
["MHR819"]
["MHR820","Postpurge Time",null,"goes to R810"]
["MHR821"]
["MHR822","PC_Fuel Reaction",null,"goes to R811"]
["MHR823"]
["MHR824","PC_Draft Filter",null,"goes to R812"]
["MHR825"]
["MHR826","Advance Time",null,"goes to R813"]
["MHR827"]
["MHR828","Advance Speed",null,"goes to R814"]
["MHR829"]
["MHR830","PM_MANVLVDLY",null,"goes to R815"]
["MHR831"]
["MHR832","Air Filter",null,"goes to R816"]
["MHR833"]
["MHR834","Fgr Timer On",null,"goes to R817- Puts a time limit on when Fgr can turn on"]
["MHR835"]
["MHR836","FGR Steam on",null,"goes to R818"]
["MHR837"]
["MHR838","Drumoffset",null,"goes to R819"]
["MHR839"]
["MHR840","FeedwaterFilter",null,"goes to R820"]
["MHR841"]
["MHR842","oil filter size",null,"goes to R821"]
["MHR843"]
["MHR844"]
["MHR1000","Mod_wx0",null,"FuelFlowInp",null,null,null,null,null,null,"Analog Input",null,"Rmin",null,"Rmax",null,"EngMin",null,"EngMax",null,"EngUnits","ModbusFloats","rh","ModbusHi","rhh",null,"rl",null,"rll"]
["MHR1001","Mod_wx1",null,"AirFlowInp",null,null,null,null,null,null,"Signed Word","Signed Word","Signed Word","Signed Word","Signed Word","Signed Word","Reals",null,null,null,null,null,"real",null,null,null,null,null,null,null,"Square Root",null,"Scaling functions"]
["MHR1002","Mod_wx2",null,"SteamFlowInp",null,null,null,null,null,null,"WX0","MHR1000","Rmin0","MHR1200","Rmax0","MHR1400","EngMin0","MHR1600","engMax0","MHR1800","engUnits0","MHR2000","rh0","MHR2200","rhh0","MHR2400","rl0","MHR2600","rll0","MHR2800","MC1000",null,"mc900"]
["MHR1003","Mod_wx3",null,"SteamPreInp",null,null,null,null,null,null,null,"MHR1199"]
["MHR1004","Mod_wx4",null,"DrumLevelInp"]
["MHR1005","Mod_wx5",null,"FurnaceDPInp"]
["MHR1006","Mod_wx6",null,"MasterInp"]
["MHR1007","Mod_wx7",null,"GasPreInp"]
["MHR1008","Mod_wx8",null,"GasTempInp"]
["MHR1009","Mod_wx9",null,"OilFlowInp"]
["MHR1010","Mod_wx10",null,"O2sensorRAW"]
["MHR1011","Mod_wx11",null,"NOraw"]
["MHR1012","Mod_wx12",null,"CORaw"]
["MHR1199","Mod_wx199"]
["MHR1200","Mod_rmin0",null,"FuelFlowInp"]
["MHR1201","Mod_rmin1",null,"AirFlowInp"]
["MHR1202","Mod_rmin2",null,"SteamFlowInp"]
["MHR1203","Mod_rmin3",null,"SteamPreInp"]
["MHR1204","Mod_rmin4",null,"DrumLevelInp"]
["MHR1205","Mod_rmin5",null,"FurnaceDPInp"]
["MHR1206","Mod_rmin6",null,"MasterInp"]
["MHR1207","Mod_rmin7",null,"GasPreInp"]
["MHR1208","Mod_rmin8",null,"GasTempInp"]
["MHR1209","Mod_rmin9",null,"OilFlowInp"]
["MHR1210","Mod_rmin10",null,"O2sensorRAW"]
["MHR1211","Mod_rmin11",null,"NOraw"]
["MHR1212","Mod_rmin12",null,"CORaw"]
["MHR1399","Mod_rmin199"]
["MHR1400","Mod_rmax0",null,"FuelFlowInp"]
["MHR1401","Mod_rmax1",null,"AirFlowInp"]
["MHR1402","Mod_rmax2",null,"SteamFlowInp"]
["MHR1403","Mod_rmax3",null,"SteamPreInp"]
["MHR1404","Mod_rmax4",null,"DrumLevelInp"]
["MHR1405","Mod_rmax5",null,"FurnaceDPInp"]
["MHR1406","Mod_rmax6",null,"MasterInp"]
["MHR1407","Mod_rmax7",null,"GasPreInp"]
["MHR1408","Mod_rmax8",null,"GasTempInp"]
["MHR1409","Mod_rmax9",null,"OilFlowInp"]
["MHR1410","Mod_rmax10",null,"O2sensorRAW"]
["MHR1411","Mod_rmax11",null,"NOraw"]
["MHR1412","Mod_rmax12",null,"CORaw"]
[]
["MHR1599"]
["MHR1600","Mod_engmin"]
["MHR1799"]
["MHR1800","Mod_engmax"]
["MHR1999"]
["MHR2000","Mod_engunits0",null,"FuelFlow"]
["MHR2001"]
["MHR2002","Mod_engunits1",null,"AirFlow"]
["MHR2003"]
["MHR2004","Mod_engunits2",null,"SteamFlow"]
["MHR2005"]
["MHR2006","Mod_engunits3",null,"SteamPressure"]
["MHR2007"]
["MHR2008","Mod_engunits4",null,"DrumLevel"]
["MHR2009"]
["MHR2010","Mod_engunits5",null,"FurnaceDP"]
["MHR2011"]
["MHR2012","Mod_engunits6",null,"Master"]
["MHR2013"]
["MHR2014","Mod_engunits7",null,"GasPressure"]
["MHR2015"]
["MHR2016","Mod_engunits8",null,"GasTemp"]
["MHR2017"]
["MHR2018","Mod_engunits9",null,"OilFlow"]
["MHR2019"]
["MHR2020","Mod_engunits10",null,"O2"]
["MHR2021"]
["MHR2022","Mod_engunits11",null,"NO"]
["MHR2023"]
["MHR2199"]
["MHR2200","Mod_rh"]
["MHR2399"]
["MHR2400","Mod_rhh"]
["MHR2599"]
["MHR2600","Mod_rl"]
["MHR2799"]
["MHR2800","Mod_rll"]
["MHR2999"]
["MHR3000","CurvesFDx0",null,"Goes to R3000",null,0]
["MHR3001",null,null,null,null,1]
["MHR3002","CurvesFDx1",null,"Goes to R3001",null,2]
["MHR3003",null,null,null,null,3]
["MHR3004","CurvesFDx2",null,"Goes to R3002",null,4]
["MHR3005",null,null,null,null,5]
["MHR3006","CurvesFDx3",null,"Goes to R3003",null,6]
["MHR3007",null,null,null,null,7]
["MHR3008","CurvesFDx4",null,"Goes to R3004",null,8]
["MHR3009",null,null,null,null,9]
["MHR3010","CurvesFDx5",null,"Goes to R3005",null,10]
["MHR3011",null,null,null,null,11]
["MHR3012","CurvesFDx6",null,"Goes to R3006",null,12]
["MHR3013",null,null,null,null,13]
["MHR3014","CurvesFDx7",null,"Goes to R3007",null,14]
["MHR3015",null,null,null,null,15]
["MHR3016","CurvesFDx8",null,"Goes to R3008",null,16]
["MHR3017",null,null,null,null,17]
["MHR3018","CurvesFDx9",null,"Goes to R3009",null,18]
["MHR3019",null,null,null,null,19]
["MHR3020","CurvesFDY0",null,"Goes to R3010",null,20]
["MHR3021",null,null,null,null,21]
["MHR3022","CurvesFDY1",null,"Goes to R3011",null,22]
["MHR3023",null,null,null,null,23]
["MHR3024","CurvesFDY2",null,"Goes to R3012",null,24]
["MHR3025",null,null,null,null,25]
["MHR3026","CurvesFDY3",null,"Goes to R3013",null,26]
["MHR3027",null,null,null,null,27]
["MHR3028","CurvesFDY4",null,"Goes to R3014",null,28]
["MHR3029",null,null,null,null,29]
["MHR3030","CurvesFDY5",null,"Goes to R3015",null,30]
["MHR3031",null,null,null,null,31]
["MHR3032","CurvesFDY6",null,"Goes to R3016",null,32]
["MHR3033",null,null,null,null,33]
["MHR3034","CurvesFDY7",null,"Goes to R3017",null,34]
["MHR3035",null,null,null,null,35]
["MHR3036","CurvesFDY8",null,"Goes to R3018",null,36]
["MHR3037",null,null,null,null,37]
["MHR3038","CurvesFDY9",null,"Goes to R3019",null,38]
["MHR3039",null,null,null,null,39]
["MHR3040","CurvesFGRx0",null,"Goes to R3020",null,40]
["MHR3041",null,null,null,null,41]
["MHR3042","CurvesFGRx1",null,"Goes to R3021",null,42]
["MHR3043",null,null,null,null,43]
["MHR3044","CurvesFGRx2",null,"Goes to R3022",null,44]
["MHR3045",null,null,null,null,45]
["MHR3046","CurvesFGRx3",null,"Goes to R3023",null,46]
["MHR3047",null,null,null,null,47]
["MHR3048","CurvesFGRx4",null,"Goes to R3024",null,48]
["MHR3049",null,null,null,null,49]
["MHR3050","CurvesFGRx5",null,"Goes to R3025",null,50]
["MHR3051",null,null,null,null,51]
["MHR3052","CurvesFGRx6",null,"Goes to R3026",null,52]
["MHR3053",null,null,null,null,53]
["MHR3054","CurvesFGRx7",null,"Goes to R3027",null,54]
["MHR3055",null,null,null,null,55]
["MHR3056","CurvesFGRx8",null,"Goes to R3028",null,56]
["MHR3057",null,null,null,null,57]
["MHR3058","CurvesFGRx9",null,"Goes to R3029",null,58]
["MHR3059",null,null,null,null,59]
["MHR3060","CurvesFGRy0",null,"Goes to R3030",null,60]
["MHR3061",null,null,null,null,61]
["MHR3062","CurvesFGRy1",null,"Goes to R3031",null,62]
["MHR3063",null,null,null,null,63]
["MHR3064","CurvesFGRy2",null,"Goes to R3032",null,64]
["MHR3065",null,null,null,null,65]
["MHR3066","CurvesFGRy3",null,"Goes to R3033",null,66]
["MHR3067",null,null,null,null,67]
["MHR3068","CurvesFGRy4",null,"Goes to R3034",null,68]
["MHR3069",null,null,null,null,69]
["MHR3070","CurvesFGRy5",null,"Goes to R3035",null,70]
["MHR3071",null,null,null,null,71]
["MHR3072","CurvesFGRy6",null,"Goes to R3036",null,72]
["MHR3073",null,null,null,null,73]
["MHR3074","CurvesFGRy7",null,"Goes to R3037",null,74]
["MHR3075",null,null,null,null,75]
["MHR3076","CurvesFGRy8",null,"Goes to R3038",null,76]
["MHR3077",null,null,null,null,77]
["MHR3078","CurvesFGRy9",null,"Goes to R3039",null,78]
["MHR3079",null,null,null,null,79]
["MHR3080","CurvesDampx0",null,"Goes to R3040",null,80]
["MHR3081",null,null,null,null,81]
["MHR3082","CurvesDampx1",null,"Goes to R3041",null,82]
["MHR3083",null,null,null,null,83]
["MHR3084","CurvesDampx2",null,"Goes to R3042",null,84]
["MHR3085",null,null,null,null,85]
["MHR3086","CurvesDampx3",null,"Goes to R3043",null,86]
["MHR3087",null,null,null,null,87]
["MHR3088","CurvesDampx4",null,"Goes to R3044",null,88]
["MHR3089",null,null,null,null,89]
["MHR3090","CurvesDampx5",null,"Goes to R3045",null,90]
["MHR3091",null,null,null,null,91]
["MHR3092","CurvesDampx6",null,"Goes to R3046",null,92]
["MHR3093",null,null,null,null,93]
["MHR3094","CurvesDampx7",null,"Goes to R3047",null,94]
["MHR3095",null,null,null,null,95]
["MHR3096","CurvesDampx8",null,"Goes to R3048",null,96]
["MHR3097",null,null,null,null,97]
["MHR3098","CurvesDampx9",null,"Goes to R3049",null,98]
["MHR3099",null,null,null,null,99]
["MHR3100","CurvesDampY0",null,"Goes to R3050",null,100]
["MHR3101",null,null,null,null,101]
["MHR3102","CurvesDampY1",null,"Goes to R3051",null,102]
["MHR3103",null,null,null,null,103]
["MHR3104","CurvesDampY2",null,"Goes to R3052",null,104]
["MHR3105",null,null,null,null,105]
["MHR3106","CurvesDampY3",null,"Goes to R3053",null,106]
["MHR3107",null,null,null,null,107]
["MHR3108","CurvesDampY4",null,"Goes to R3054",null,108]
["MHR3109",null,null,null,null,109]
["MHR3110","CurvesDampY5",null,"Goes to R3055",null,110]
["MHR3111",null,null,null,null,111]
["MHR3112","CurvesDampY6",null,"Goes to R3056",null,112]
["MHR3113",null,null,null,null,113]
["MHR3114","CurvesDampY7",null,"Goes to R3057",null,114]
["MHR3115",null,null,null,null,115]
["MHR3116","CurvesDampY8",null,"Goes to R3058",null,116]
["MHR3117",null,null,null,null,117]
["MHR3118","CurvesDampY9",null,"Goes to R3059",null,118]
["MHR3119",null,null,null,null,119]
["MHR3120","CurvesAirX0",null,"Goes to R3060",null,120]
["MHR3121",null,null,null,null,121]
["MHR3122","CurvesAirX1",null,"Goes to R3061",null,122]
["MHR3123",null,null,null,null,123]
["MHR3124","CurvesAirX2",null,"Goes to R3062",null,124]
["MHR3125",null,null,null,null,125]
["MHR3126","CurvesAirX3",null,"Goes to R3063",null,126]
["MHR3127",null,null,null,null,127]
["MHR3128","CurvesAirX4",null,"Goes to R3064",null,128]
["MHR3129",null,null,null,null,129]
["MHR3130","CurvesAirX5",null,"Goes to R3065",null,130]
["MHR3131",null,null,null,null,131]
["MHR3132","CurvesAirX6",null,"Goes to R3066",null,132]
["MHR3133",null,null,null,null,133]
["MHR3134","CurvesAirX7",null,"Goes to R3067",null,134]
["MHR3135",null,null,null,null,135]
["MHR3136","CurvesAirX8",null,"Goes to R3068",null,136]
["MHR3137",null,null,null,null,137]
["MHR3138","CurvesAirX9",null,"Goes to R3069",null,138]
["MHR3139",null,null,null,null,139]
["MHR3140","CurvesAirY0",null,"Goes to R3070",null,140]
["MHR3141",null,null,null,null,141]
["MHR3142","CurvesAirY1",null,"Goes to R3071",null,142]
["MHR3143",null,null,null,null,143]
["MHR3144","CurvesAirY2",null,"Goes to R3072",null,144]
["MHR3145",null,null,null,null,145]
["MHR3146","CurvesAirY3",null,"Goes to R3073",null,146]
["MHR3147",null,null,null,null,147]
["MHR3148","CurvesAirY4",null,"Goes to R3074",null,148]
["MHR3149",null,null,null,null,149]
["MHR3150","CurvesAirY5",null,"Goes to R3075",null,150]
["MHR3151",null,null,null,null,151]
["MHR3152","CurvesAirY6",null,"Goes to R3076",null,152]
["MHR3153",null,null,null,null,153]
["MHR3154","CurvesAirY7",null,"Goes to R3077",null,154]
["MHR3155",null,null,null,null,155]
["MHR3156","CurvesAirY8",null,"Goes to R3078",null,156]
["MHR3157",null,null,null,null,157]
["MHR3158","CurvesAirY9",null,"Goes to R3079",null,158]
["MHR3159",null,null,null,null,159]
["MHR3160",null,null,"Goes to R3080",null,160]
["MHR3161",null,null,null,null,161]
["MHR3162","Damper2X1",null,"Goes to R3081",null,162]
["MHR3163",null,null,null,null,163]
["MHR3164","Damper2X2",null,"Goes to R3082",null,164]
["MHR3165",null,null,null,null,165]
["MHR3166","Damper2X3",null,"Goes to R3083",null,166]
["MHR3167",null,null,null,null,167]
["MHR3168","Damper2X4",null,"Goes to R3084",null,168]
["MHR3169",null,null,null,null,169]
["MHR3170","Damper2X5",null,"Goes to R3085",null,170]
["MHR3171",null,null,null,null,171]
["MHR3172","Damper2X6",null,"Goes to R3086",null,172]
["MHR3173",null,null,null,null,173]
["MHR3174","Damper2X7",null,"Goes to R3087",null,174]
["MHR3175",null,null,null,null,175]
["MHR3176","Damper2X8",null,"Goes to R3088",null,176]
["MHR3177",null,null,null,null,177]
["MHR3178","Damper2X9",null,"Goes to R3089",null,178]
["MHR3179",null,null,null,null,179]
["MHR3180","Damper2Y0",null,"Goes to R3090",null,180]
["MHR3181",null,null,null,null,181]
["MHR3182","Damper2Y1",null,"Goes to R3091",null,182]
["MHR3183",null,null,null,null,183]
["MHR3184","Damper2Y2",null,"Goes to R3092",null,184]
["MHR3185",null,null,null,null,185]
["MHR3186","Damper2Y3",null,"Goes to R3093",null,186]
["MHR3187",null,null,null,null,187]
["MHR3188","Damper2Y4",null,"Goes to R3094",null,188]
["MHR3189",null,null,null,null,189]
["MHR3190","Damper2Y5",null,"Goes to R3095",null,190]
["MHR3191",null,null,null,null,191]
["MHR3192","Damper2Y6",null,"Goes to R3096",null,192]
["MHR3193",null,null,null,null,193]
["MHR3194","Damper2Y7",null,"Goes to R3097",null,194]
["MHR3195",null,null,null,null,195]
["MHR3196","Damper2Y8",null,"Goes to R3098",null,196]
["MHR3197",null,null,null,null,197]
["MHR3198","Damper2Y9",null,"Goes to R3099",null,198]
["MHR3199",null,null,null,null,199]
["MHR3200","O2X0",null,"Goes to R3100"]
["MHR3201"]
["MHR3202","O2X1",null,"Goes to R3101"]
["MHR3203"]
["MHR3204","O2X2",null,"Goes to R3102"]
["MHR3205"]
["MHR3206","O2X3",null,"Goes to R3103"]
["MHR3207"]
["MHR3208","O2X4",null,"Goes to R3104"]
["MHR3209"]
["MHR3210","O2X5",null,"Goes to R3105"]
["MHR3211"]
["MHR3212","O2X6",null,"Goes to R3106"]
["MHR3213"]
["MHR3214","O2X7",null,"Goes to R3107"]
["MHR3215"]
["MHR3216","O2X8",null,"Goes to R3108"]
["MHR3217"]
["MHR3218","O2X9",null,"Goes to R3109"]
["MHR3219"]
["MHR3220","O2Y0",null,"Goes to R3110"]
["MHR3221"]
["MHR3222","O2Y1",null,"Goes to R3111"]
["MHR3223"]
["MHR3224","O2Y2",null,"Goes to R3112"]
["MHR3225"]
["MHR3226","O2Y3",null,"Goes to R3113"]
["MHR3227"]
["MHR3228","O2Y4",null,"Goes to R3114"]
["MHR3229"]
["MHR3230","O2Y5",null,"Goes to R3115"]
["MHR3231"]
["MHR3232","O2Y6",null,"Goes to R3116"]
["MHR3233"]
["MHR3234","O2Y7",null,"Goes to R3117"]
["MHR3235"]
["MHR3236","O2Y8",null,"Goes to R3118"]
["MHR3237"]
["MHR3238","O2Y9",null,"Goes to R3119"]
["MHR3239"]
["MHR3399",null,null,"Last Gas Curve Point - R3199"]
["MHR3400","CurvesOILFDx0",null,"Goes to R3200"]

{"sheet":"SanternoVFDOut","index":9,"n_rows":0,"n_cols":0,"rows_kept":0,"cut":false,"hidden":false,"merged":[]}

{"sheet":"Devlog","index":10,"n_rows":37,"n_cols":1,"rows_kept":37,"cut":false,"hidden":false,"merged":[]}
[]
[]
[]
[]
[]
[]
[]
[]
["Changelog -Paste in the xls file"]
[]
["v10, retrograde version with conventional slidebars for steam and air setpoints but old problems with coding and missing links. "]
["10.7 retrograde version that fixes some misalignment of the UI in v 10.9 but otherwise uses the old code beware. "]
["date ~8/22"]
["v10.101 Modules: 1, forms.main, ModIPcolin modified orginial stable function to determine IP address at launch of the program without using the cell values. Set to grab the first IP it sees in logs..will need to implement interface for multiple IP host networks"]
["removal of missing referenced controls: adhocreportingExcelClientLibm, adobeAAMDetect 1.0 client library, i-drop type library,m"]
[]
["Added devlog sheet to notify of changes to sheet."]
["64 bit Modbus, connection is said to be ok, but no data is being passed will try to diagnose on other pcs."]
[]
[]
[]
[]
[]
[]
[]
[]
[]
[]
["v4modv6 "]
["Changed the Mainscreenpopulate now function to update to a string in mainscreenpopulate and 1 a second for the once a second function. "]
["Bob right, removal of now() from formula resulted in significant performance improvement, set J1 to text value and able to track seconds with almost no delay now"]
[]
[]
[]
["2017-06-13"]
["removed linked cell from steamset object that was screwing up setting it"]
["added updatedisable to the steamset and fuelset to prevent writing loops."]

{"sheet":"Sheet2","index":11,"n_rows":50,"n_cols":7,"rows_kept":50,"cut":false,"hidden":false,"merged":[]}
[2,1,0,-1,-2,-3,-4]
[2,2,2,2,2,2,2]
[2,5,8,11,14,17,20]
[2,10,18,26,34,42,50]
[2,17,32,47,62,77,92]
[2,26,50,74,98,122,146]
[2,37,72,107,142,177,212]
[2,50,98,146,194,242,290]
[2,65,128,191,254,317,380]
[2,82,162,242,322,402,482]
[2,101,200,299,398,497,596]
[2,122,242,362,482,602,722]
[2,145,288,431,574,717,860]
[2,170,338,506,674,842,1010]
[2,197,392,587,782,977,1172]
[2,226,450,674,898,1122,1346]
[2,257,512,767,1022,1277,1532]
[2,290,578,866,1154,1442,1730]
[2,325,648,971,1294,1617,1940]
[2,362,722,1082,1442,1802,2162]
[2,401,800,1199,1598,1997,2396]
[2,442,882,1322,1762,2202,2642]
[2,485,968,1451,1934,2417,2900]
[2,530,1058,1586,2114,2642,3170]
[2,577,1152,1727,2302,2877,3452]
[2,626,1250,1874,2498,3122,3746]
[2,677,1352,2027,2702,3377,4052]
[2,730,1458,2186,2914,3642,4370]
[2,785,1568,2351,3134,3917,4700]
[2,842,1682,2522,3362,4202,5042]
[2,901,1800,2699,3598,4497,5396]
[2,962,1922,2882,3842,4802,5762]
[2,1025,2048,3071,4094,5117,6140]
[2,1090,2178,3266,4354,5442,6530]
[2,1157,2312,3467,4622,5777,6932]
[2,1226,2450,3674,4898,6122,7346]
[2,1297,2592,3887,5182,6477,7772]
[2,1370,2738,4106,5474,6842,8210]
[2,1445,2888,4331,5774,7217,8660]
[2,1522,3042,4562,6082,7602,9122]
[2,1601,3200,4799,6398,7997,9596]
[2,1682,3362,5042,6722,8402,10082]
[2,1765,3528,5291,7054,8817,10580]
[2,1850,3698,5546,7394,9242,11090]
[2,1937,3872,5807,7742,9677,11612]
[2,2026,4050,6074,8098,10122,12146]
[2,2117,4232,6347,8462,10577,12692]
[2,2210,4418,6626,8834,11042,13250]
[2,2305,4608,6911,9214,11517,13820]
[2,2402,4802,7202,9602,12002,14402]